Organisation Name,Organisation Code,Date Paid,Transaction Number,Amount,Supplier Name,Supplier ID,Supplier post code (first 4 digits),Directorate,Service Area,General Ledger code Description,BVACOP class,Revenue/ Capital Spend
Wiltshire,http://opendatacommunities.org/id/unitary-authority/wiltshire,24/10/2022,1903471034,3069.69,1st Choice Stairlifts ,113095,SN11,Wiltshire Council,Wiltshire Council,Other Contracts,Third Party Payments,CAPITAL
Wiltshire,http://opendatacommunities.org/id/unitary-authority/wiltshire,25/10/2022,1903472433,4000,1st Choice Stairlifts ,113095,SN11,Wiltshire Council,Wiltshire Council,Other Contracts,Third Party Payments,CAPITAL
Wiltshire,http://opendatacommunities.org/id/unitary-authority/wiltshire,17/10/2022,1903462621,1824,1st Select Cabs ,154985,SP3 ,Neighbourhood & Planning,SEN Secondary Tspt,Transport Contracts,Third Party Payments,REVENUE
Wiltshire,http://opendatacommunities.org/id/unitary-authority/wiltshire,26/10/2022,1903472649,2601.4,2 Care UK Ltd ,110002,BH7 ,Community Services,MH OP South Locality,Supported Living,Third Party Payments,REVENUE
Wiltshire,http://opendatacommunities.org/id/unitary-authority/wiltshire,26/10/2022,1903472650,2601.4,2 Care UK Ltd ,110002,BH7 ,Community Services,MH OP South Locality,Supported Living,Third Party Payments,REVENUE
Wiltshire,http://opendatacommunities.org/id/unitary-authority/wiltshire,26/10/2022,1903472651,2600,2 Care UK Ltd ,110002,BH7 ,Community Services,MH AOWA South Locali,Supported Living,Third Party Payments,REVENUE
Wiltshire,http://opendatacommunities.org/id/unitary-authority/wiltshire,26/10/2022,1903472652,2600,2 Care UK Ltd ,110002,BH7 ,Community Services,MH AOWA South Locali,Supported Living,Third Party Payments,REVENUE
Wiltshire,http://opendatacommunities.org/id/unitary-authority/wiltshire,26/10/2022,1903472653,2601.4,2 Care UK Ltd ,110002,BH7 ,Community Services,MH AOWA South Locali,Supported Living,Third Party Payments,REVENUE
Wiltshire,http://opendatacommunities.org/id/unitary-authority/wiltshire,26/10/2022,1903472654,2601.4,2 Care UK Ltd ,110002,BH7 ,Community Services,MH AOWA South Locali,Supported Living,Third Party Payments,REVENUE
Wiltshire,http://opendatacommunities.org/id/unitary-authority/wiltshire,26/10/2022,1903472655,2601.4,2 Care UK Ltd ,110002,BH7 ,Community Services,MH AOWA South Locali,Supported Living,Third Party Payments,REVENUE
Wiltshire,http://opendatacommunities.org/id/unitary-authority/wiltshire,26/10/2022,5107468815,1250,2 KBW Miss Caroline Kinloch-Jones ,153854,PO1 ,Children & Education,HQ Social Care,Legal Fees,Supplies and Services,REVENUE
Wiltshire,http://opendatacommunities.org/id/unitary-authority/wiltshire,20/10/2022,1903469568,1140,24/7 Passenger Trans Services Ltd ,148136,SN4 ,Neighbourhood & Planning,Mainstream Secondary,Transport Contracts,Third Party Payments,REVENUE
Wiltshire,http://opendatacommunities.org/id/unitary-authority/wiltshire,20/10/2022,1903469569,1020,24/7 Passenger Trans Services Ltd ,148136,SN4 ,Neighbourhood & Planning,Mainstream Primary,Transport Contracts,Third Party Payments,REVENUE
Wiltshire,http://opendatacommunities.org/id/unitary-authority/wiltshire,20/10/2022,1903469570,996,24/7 Passenger Trans Services Ltd ,148136,SN4 ,Neighbourhood & Planning,Mainstream Primary,Transport Contracts,Third Party Payments,REVENUE
Wiltshire,http://opendatacommunities.org/id/unitary-authority/wiltshire,20/10/2022,1903469571,604.2,24/7 Passenger Trans Services Ltd ,148136,SN4 ,Neighbourhood & Planning,Mainstream 16+ Sec,Transport Contracts,Third Party Payments,REVENUE
Wiltshire,http://opendatacommunities.org/id/unitary-authority/wiltshire,20/10/2022,1903469571,906.3,24/7 Passenger Trans Services Ltd ,148136,SN4 ,Neighbourhood & Planning,Mainstream Secondary,Transport Contracts,Third Party Payments,REVENUE
Wiltshire,http://opendatacommunities.org/id/unitary-authority/wiltshire,20/10/2022,1903469572,316.67,24/7 Passenger Trans Services Ltd ,148136,SN4 ,Neighbourhood & Planning,Mainstream 16+ Sec,Transport Contracts,Third Party Payments,REVENUE
Wiltshire,http://opendatacommunities.org/id/unitary-authority/wiltshire,20/10/2022,1903469572,1583.33,24/7 Passenger Trans Services Ltd ,148136,SN4 ,Neighbourhood & Planning,Mainstream Secondary,Transport Contracts,Third Party Payments,REVENUE
Wiltshire,http://opendatacommunities.org/id/unitary-authority/wiltshire,20/10/2022,1903469573,950,24/7 Passenger Trans Services Ltd ,148136,SN4 ,Neighbourhood & Planning,SEN 16+ Transport,Transport Contracts,Third Party Payments,REVENUE
Wiltshire,http://opendatacommunities.org/id/unitary-authority/wiltshire,20/10/2022,1903469574,540,24/7 Passenger Trans Services Ltd ,148136,SN4 ,Neighbourhood & Planning,SEN Secondary Tspt,Transport Contracts,Third Party Payments,REVENUE
Wiltshire,http://opendatacommunities.org/id/unitary-authority/wiltshire,20/10/2022,1903469574,1080,24/7 Passenger Trans Services Ltd ,148136,SN4 ,Neighbourhood & Planning,Mainstream Secondary,Transport Contracts,Third Party Payments,REVENUE
Wiltshire,http://opendatacommunities.org/id/unitary-authority/wiltshire,20/10/2022,1903469581,996,24/7 Passenger Trans Services Ltd ,148136,SN4 ,Neighbourhood & Planning,Mainstream Secondary,Transport Contracts,Third Party Payments,REVENUE
Wiltshire,http://opendatacommunities.org/id/unitary-authority/wiltshire,20/10/2022,1903469582,494.88,24/7 Passenger Trans Services Ltd ,148136,SN4 ,Neighbourhood & Planning,Mainstream 16+ Sec,Transport Contracts,Third Party Payments,REVENUE
Wiltshire,http://opendatacommunities.org/id/unitary-authority/wiltshire,20/10/2022,1903469582,742.32,24/7 Passenger Trans Services Ltd ,148136,SN4 ,Neighbourhood & Planning,Mainstream Secondary,Transport Contracts,Third Party Payments,REVENUE
Wiltshire,http://opendatacommunities.org/id/unitary-authority/wiltshire,20/10/2022,1903469583,1123.96,24/7 Passenger Trans Services Ltd ,148136,SN4 ,Neighbourhood & Planning,Mainstream Secondary,Transport Contracts,Third Party Payments,REVENUE
Wiltshire,http://opendatacommunities.org/id/unitary-authority/wiltshire,20/10/2022,1903469585,498.02,24/7 Passenger Trans Services Ltd ,148136,SN4 ,Neighbourhood & Planning,SEN Secondary Tspt,Transport Contracts,Third Party Payments,REVENUE
Wiltshire,http://opendatacommunities.org/id/unitary-authority/wiltshire,20/10/2022,1903469585,996.06,24/7 Passenger Trans Services Ltd ,148136,SN4 ,Neighbourhood & Planning,Mainstream Secondary,Transport Contracts,Third Party Payments,REVENUE
Wiltshire,http://opendatacommunities.org/id/unitary-authority/wiltshire,21/10/2022,1903470432,950,24/7 Passenger Trans Services Ltd ,148136,SN4 ,Neighbourhood & Planning,SEN 16+ Transport,Transport Contracts,Third Party Payments,REVENUE
Wiltshire,http://opendatacommunities.org/id/unitary-authority/wiltshire,24/10/2022,1903470839,412.4,24/7 Passenger Trans Services Ltd ,148136,SN4 ,Neighbourhood & Planning,Mainstream 16+ Sec,Transport Contracts,Third Party Payments,REVENUE
Wiltshire,http://opendatacommunities.org/id/unitary-authority/wiltshire,24/10/2022,1903470839,1237.2,24/7 Passenger Trans Services Ltd ,148136,SN4 ,Neighbourhood & Planning,Mainstream Secondary,Transport Contracts,Third Party Payments,REVENUE
Wiltshire,http://opendatacommunities.org/id/unitary-authority/wiltshire,24/10/2022,1903470841,394.25,24/7 Passenger Trans Services Ltd ,148136,SN4 ,Neighbourhood & Planning,Mainstream 16+ Sec,Transport Contracts,Third Party Payments,REVENUE
Wiltshire,http://opendatacommunities.org/id/unitary-authority/wiltshire,24/10/2022,1903470841,1577,24/7 Passenger Trans Services Ltd ,148136,SN4 ,Neighbourhood & Planning,Mainstream Secondary,Transport Contracts,Third Party Payments,REVENUE
Wiltshire,http://opendatacommunities.org/id/unitary-authority/wiltshire,28/10/2022,1903477535,1245,24/7 Passenger Trans Services Ltd ,148136,SN4 ,Neighbourhood & Planning,Mainstream Secondary,Transport Contracts,Third Party Payments,REVENUE
Wiltshire,http://opendatacommunities.org/id/unitary-authority/wiltshire,04/10/2022,1903456382,16318.75,247 Home Care ,148234,SN5 ,Community Services,Wilts Support at Hom,Adult Domiciliary Care,Third Party Payments,REVENUE
Wiltshire,http://opendatacommunities.org/id/unitary-authority/wiltshire,26/10/2022,1903473023,1477.6,247 Home Care ,148234,SN5 ,Community Services,South Care Packages,Supported Living,Third Party Payments,REVENUE
Wiltshire,http://opendatacommunities.org/id/unitary-authority/wiltshire,26/10/2022,1903473024,1429.16,247 Home Care ,148234,SN5 ,Community Services,LDAS North,Supported Living,Third Party Payments,REVENUE
Wiltshire,http://opendatacommunities.org/id/unitary-authority/wiltshire,26/10/2022,1903473025,1050.08,247 Home Care ,148234,SN5 ,Community Services,LDAS North,Supported Living,Third Party Payments,REVENUE
Wiltshire,http://opendatacommunities.org/id/unitary-authority/wiltshire,25/10/2022,1903473506,1548.24,247 Home Care ,148234,SN5 ,Community Services,North Care Packages,Adult Domiciliary Care,Third Party Payments,REVENUE
Wiltshire,http://opendatacommunities.org/id/unitary-authority/wiltshire,25/10/2022,1903473507,3603.34,247 Home Care ,148234,SN5 ,Community Services,North Care Packages,Adult Domiciliary Care,Third Party Payments,REVENUE
Wiltshire,http://opendatacommunities.org/id/unitary-authority/wiltshire,26/10/2022,1903475134,260,247 Home Care ,148234,SN5 ,Community Services,Rapid Response,Adult Domiciliary Care,Third Party Payments,REVENUE
Wiltshire,http://opendatacommunities.org/id/unitary-authority/wiltshire,26/10/2022,1903475135,5136.6,247 Home Care ,148234,SN5 ,Community Services,Rapid Response,Adult Domiciliary Care,Third Party Payments,REVENUE
Wiltshire,http://opendatacommunities.org/id/unitary-authority/wiltshire,26/10/2022,1903475136,2173.13,247 Home Care ,148234,SN5 ,Community Services,North Care Packages,Adult Domiciliary Care,Third Party Payments,REVENUE
Wiltshire,http://opendatacommunities.org/id/unitary-authority/wiltshire,26/10/2022,1903475137,2230.84,247 Home Care ,148234,SN5 ,Community Services,North Care Packages,Adult Domiciliary Care,Third Party Payments,REVENUE
Wiltshire,http://opendatacommunities.org/id/unitary-authority/wiltshire,26/10/2022,1903475138,2239.29,247 Home Care ,148234,SN5 ,Community Services,North Care Packages,Adult Domiciliary Care,Third Party Payments,REVENUE
Wiltshire,http://opendatacommunities.org/id/unitary-authority/wiltshire,26/10/2022,1903475139,2542.91,247 Home Care ,148234,SN5 ,Community Services,North Care Packages,Adult Domiciliary Care,Third Party Payments,REVENUE
Wiltshire,http://opendatacommunities.org/id/unitary-authority/wiltshire,26/10/2022,1903475140,620.65,247 Home Care ,148234,SN5 ,Community Services,North Care Packages,Adult Domiciliary Care,Third Party Payments,REVENUE
Wiltshire,http://opendatacommunities.org/id/unitary-authority/wiltshire,26/10/2022,1903475141,2945.99,247 Home Care ,148234,SN5 ,Community Services,MH AOWA N&E Locality,Adult Domiciliary Care,Third Party Payments,REVENUE
Wiltshire,http://opendatacommunities.org/id/unitary-authority/wiltshire,26/10/2022,1903475142,1177,247 Home Care ,148234,SN5 ,Community Services,North Care Packages,Adult Domiciliary Care,Third Party Payments,REVENUE
Wiltshire,http://opendatacommunities.org/id/unitary-authority/wiltshire,26/10/2022,1903475143,3581.55,247 Home Care ,148234,SN5 ,Community Services,North Care Packages,Adult Domiciliary Care,Third Party Payments,REVENUE
Wiltshire,http://opendatacommunities.org/id/unitary-authority/wiltshire,26/10/2022,1903475144,426.42,247 Home Care ,148234,SN5 ,Community Services,North Care Packages,Adult Domiciliary Care,Third Party Payments,REVENUE
Wiltshire,http://opendatacommunities.org/id/unitary-authority/wiltshire,26/10/2022,1903475145,620.65,247 Home Care ,148234,SN5 ,Community Services,North Care Packages,Adult Domiciliary Care,Third Party Payments,REVENUE
Wiltshire,http://opendatacommunities.org/id/unitary-authority/wiltshire,26/10/2022,1903475146,6487.95,247 Home Care ,148234,SN5 ,Community Services,North Care Packages,Adult Domiciliary Care,Third Party Payments,REVENUE
Wiltshire,http://opendatacommunities.org/id/unitary-authority/wiltshire,06/10/2022,5107467389,511.68,247 Home Care ,148234,SN5 ,Children & Education,0-25 extnl disabty p,Other Social & Welfare Costs,Third Party Payments,REVENUE
Wiltshire,http://opendatacommunities.org/id/unitary-authority/wiltshire,18/10/2022,1903463187,1397,2get2 Taxi Services Ltd ,101102,SP4 ,Neighbourhood & Planning,SEN Secondary Tspt,Transport Contracts,Third Party Payments,REVENUE
Wiltshire,http://opendatacommunities.org/id/unitary-authority/wiltshire,18/10/2022,1903463187,1397,2get2 Taxi Services Ltd ,101102,SP4 ,Neighbourhood & Planning,SEN 16+ Transport,Transport Contracts,Third Party Payments,REVENUE
Wiltshire,http://opendatacommunities.org/id/unitary-authority/wiltshire,18/10/2022,1903463188,2722.5,2get2 Taxi Services Ltd ,101102,SP4 ,Neighbourhood & Planning,SEN Secondary Tspt,Transport Contracts,Third Party Payments,REVENUE
Wiltshire,http://opendatacommunities.org/id/unitary-authority/wiltshire,12/10/2022,1903460575,3668.6,4K Travel ,146614,SN2 ,Neighbourhood & Planning,Mainstream Secondary,Transport Contracts,Third Party Payments,REVENUE
Wiltshire,http://opendatacommunities.org/id/unitary-authority/wiltshire,12/10/2022,1903460576,3668.6,4K Travel ,146614,SN2 ,Neighbourhood & Planning,Mainstream Secondary,Transport Contracts,Third Party Payments,REVENUE
Wiltshire,http://opendatacommunities.org/id/unitary-authority/wiltshire,12/10/2022,1903460577,565.44,4K Travel ,146614,SN2 ,Neighbourhood & Planning,Public Transport,Transport Contracts,Third Party Payments,REVENUE
Wiltshire,http://opendatacommunities.org/id/unitary-authority/wiltshire,12/10/2022,1903460577,2333.33,4K Travel ,146614,SN2 ,Neighbourhood & Planning,Mainstream Primary,Transport Contracts,Third Party Payments,REVENUE
Wiltshire,http://opendatacommunities.org/id/unitary-authority/wiltshire,12/10/2022,1903460578,2546.68,4K Travel ,146614,SN2 ,Neighbourhood & Planning,Mainstream Secondary,Transport Contracts,Third Party Payments,REVENUE
Wiltshire,http://opendatacommunities.org/id/unitary-authority/wiltshire,12/10/2022,1903460580,4604.1,4K Travel ,146614,SN2 ,Neighbourhood & Planning,Mainstream Secondary,Transport Contracts,Third Party Payments,REVENUE
Wiltshire,http://opendatacommunities.org/id/unitary-authority/wiltshire,12/10/2022,1903460583,3600,4K Travel ,146614,SN2 ,Neighbourhood & Planning,SEN Secondary Tspt,Transport Contracts,Third Party Payments,REVENUE
Wiltshire,http://opendatacommunities.org/id/unitary-authority/wiltshire,12/10/2022,1903460586,3776.5,4K Travel ,146614,SN2 ,Neighbourhood & Planning,Mainstream Primary,Transport Contracts,Third Party Payments,REVENUE
Wiltshire,http://opendatacommunities.org/id/unitary-authority/wiltshire,12/10/2022,1903460587,559.86,4K Travel ,146614,SN2 ,Neighbourhood & Planning,Public Transport,Transport Contracts,Third Party Payments,REVENUE
Wiltshire,http://opendatacommunities.org/id/unitary-authority/wiltshire,12/10/2022,1903460588,670.8,4K Travel ,146614,SN2 ,Neighbourhood & Planning,Mainstream Secondary,Transport Contracts,Third Party Payments,REVENUE
Wiltshire,http://opendatacommunities.org/id/unitary-authority/wiltshire,12/10/2022,1903460588,2004.19,4K Travel ,146614,SN2 ,Neighbourhood & Planning,Mainstream 16+ FE,Transport Contracts,Third Party Payments,REVENUE
Wiltshire,http://opendatacommunities.org/id/unitary-authority/wiltshire,12/10/2022,1903460589,4471.16,4K Travel ,146614,SN2 ,Neighbourhood & Planning,Mainstream 16+ FE,Transport Contracts,Third Party Payments,REVENUE
Wiltshire,http://opendatacommunities.org/id/unitary-authority/wiltshire,27/10/2022,5107467479,270,A D Young Technical Services Ltd ,131717,BS20,Resources,DesignPrintTrowbridg,Stationery,Supplies and Services,REVENUE
Wiltshire,http://opendatacommunities.org/id/unitary-authority/wiltshire,17/10/2022,1903462615,997.5,A G Minibuses Ltd ,100878,BA12,Neighbourhood & Planning,Mainstream Primary,Transport Contracts,Third Party Payments,REVENUE
Wiltshire,http://opendatacommunities.org/id/unitary-authority/wiltshire,17/10/2022,1903462615,4102.03,A G Minibuses Ltd ,100878,BA12,Neighbourhood & Planning,Public Transport,Transport Contracts,Third Party Payments,REVENUE
Wiltshire,http://opendatacommunities.org/id/unitary-authority/wiltshire,17/10/2022,1903462616,997.5,A G Minibuses Ltd ,100878,BA12,Neighbourhood & Planning,Mainstream Primary,Transport Contracts,Third Party Payments,REVENUE
Wiltshire,http://opendatacommunities.org/id/unitary-authority/wiltshire,17/10/2022,1903462616,4409.23,A G Minibuses Ltd ,100878,BA12,Neighbourhood & Planning,Public Transport,Transport Contracts,Third Party Payments,REVENUE
Wiltshire,http://opendatacommunities.org/id/unitary-authority/wiltshire,17/10/2022,1903462617,1583.33,A G Minibuses Ltd ,100878,BA12,Neighbourhood & Planning,Mainstream Secondary,Transport Contracts,Third Party Payments,REVENUE
Wiltshire,http://opendatacommunities.org/id/unitary-authority/wiltshire,17/10/2022,1903462617,4120.06,A G Minibuses Ltd ,100878,BA12,Neighbourhood & Planning,Public Transport,Transport Contracts,Third Party Payments,REVENUE
Wiltshire,http://opendatacommunities.org/id/unitary-authority/wiltshire,17/10/2022,1903462618,1583.33,A G Minibuses Ltd ,100878,BA12,Neighbourhood & Planning,Mainstream Secondary,Transport Contracts,Third Party Payments,REVENUE
Wiltshire,http://opendatacommunities.org/id/unitary-authority/wiltshire,17/10/2022,1903462618,3855,A G Minibuses Ltd ,100878,BA12,Neighbourhood & Planning,Public Transport,Transport Contracts,Third Party Payments,REVENUE
Wiltshire,http://opendatacommunities.org/id/unitary-authority/wiltshire,18/10/2022,1903463172,2824.64,A G Minibuses Ltd ,100878,BA12,Neighbourhood & Planning,SEN Secondary Tspt,Transport Contracts,Third Party Payments,REVENUE
Wiltshire,http://opendatacommunities.org/id/unitary-authority/wiltshire,18/10/2022,1903463173,2340.14,A G Minibuses Ltd ,100878,BA12,Neighbourhood & Planning,Mainstream Primary,Transport Contracts,Third Party Payments,REVENUE
Wiltshire,http://opendatacommunities.org/id/unitary-authority/wiltshire,18/10/2022,1903463174,2216.82,A G Minibuses Ltd ,100878,BA12,Community Services,LDAS West,Transport Contracts,Third Party Payments,REVENUE
Wiltshire,http://opendatacommunities.org/id/unitary-authority/wiltshire,18/10/2022,1903463176,3370.79,A G Minibuses Ltd ,100878,BA12,Neighbourhood & Planning,SEN Primary Transprt,Transport Contracts,Third Party Payments,REVENUE
Wiltshire,http://opendatacommunities.org/id/unitary-authority/wiltshire,18/10/2022,1903463177,1550.72,A G Minibuses Ltd ,100878,BA12,Neighbourhood & Planning,SEN Secondary Tspt,Transport Contracts,Third Party Payments,REVENUE
Wiltshire,http://opendatacommunities.org/id/unitary-authority/wiltshire,18/10/2022,1903463177,3101.43,A G Minibuses Ltd ,100878,BA12,Neighbourhood & Planning,SEN Primary Transprt,Transport Contracts,Third Party Payments,REVENUE
Wiltshire,http://opendatacommunities.org/id/unitary-authority/wiltshire,18/10/2022,1903463178,3282.25,A G Minibuses Ltd ,100878,BA12,Neighbourhood & Planning,SEN Secondary Tspt,Transport Contracts,Third Party Payments,REVENUE
Wiltshire,http://opendatacommunities.org/id/unitary-authority/wiltshire,18/10/2022,1903463189,473.1,A G Minibuses Ltd ,100878,BA12,Neighbourhood & Planning,SEN Primary Transprt,Transport Contracts,Third Party Payments,REVENUE
Wiltshire,http://opendatacommunities.org/id/unitary-authority/wiltshire,18/10/2022,1903463189,2365.5,A G Minibuses Ltd ,100878,BA12,Neighbourhood & Planning,SEN Secondary Tspt,Transport Contracts,Third Party Payments,REVENUE
Wiltshire,http://opendatacommunities.org/id/unitary-authority/wiltshire,18/10/2022,1903463190,1340.44,A G Minibuses Ltd ,100878,BA12,Neighbourhood & Planning,SEN Secondary Tspt,Transport Contracts,Third Party Payments,REVENUE
Wiltshire,http://opendatacommunities.org/id/unitary-authority/wiltshire,18/10/2022,1903463190,1340.46,A G Minibuses Ltd ,100878,BA12,Neighbourhood & Planning,SEN Primary Transprt,Transport Contracts,Third Party Payments,REVENUE
Wiltshire,http://opendatacommunities.org/id/unitary-authority/wiltshire,18/10/2022,1903463191,997.82,A G Minibuses Ltd ,100878,BA12,Neighbourhood & Planning,SEN Primary Transprt,Transport Contracts,Third Party Payments,REVENUE
Wiltshire,http://opendatacommunities.org/id/unitary-authority/wiltshire,18/10/2022,1903463191,1995.63,A G Minibuses Ltd ,100878,BA12,Neighbourhood & Planning,SEN Secondary Tspt,Transport Contracts,Third Party Payments,REVENUE
Wiltshire,http://opendatacommunities.org/id/unitary-authority/wiltshire,18/10/2022,1903463192,3084.08,A G Minibuses Ltd ,100878,BA12,Neighbourhood & Planning,SEN Secondary Tspt,Transport Contracts,Third Party Payments,REVENUE
Wiltshire,http://opendatacommunities.org/id/unitary-authority/wiltshire,18/10/2022,1903463193,465.64,A G Minibuses Ltd ,100878,BA12,Neighbourhood & Planning,SEN 16+ Transport,Transport Contracts,Third Party Payments,REVENUE
Wiltshire,http://opendatacommunities.org/id/unitary-authority/wiltshire,18/10/2022,1903463193,602.6,A G Minibuses Ltd ,100878,BA12,Neighbourhood & Planning,SEN Primary Transprt,Transport Contracts,Third Party Payments,REVENUE
Wiltshire,http://opendatacommunities.org/id/unitary-authority/wiltshire,18/10/2022,1903463193,1807.8,A G Minibuses Ltd ,100878,BA12,Neighbourhood & Planning,SEN Secondary Tspt,Transport Contracts,Third Party Payments,REVENUE
Wiltshire,http://opendatacommunities.org/id/unitary-authority/wiltshire,18/10/2022,1903463196,548.55,A G Minibuses Ltd ,100878,BA12,Neighbourhood & Planning,Public Transport,Transport Contracts,Third Party Payments,REVENUE
Wiltshire,http://opendatacommunities.org/id/unitary-authority/wiltshire,27/10/2022,1903477397,490,A1 Cab Company ,101233,SP4 ,Neighbourhood & Planning,SEN 16+ Transport,Transport Contracts,Third Party Payments,REVENUE
Wiltshire,http://opendatacommunities.org/id/unitary-authority/wiltshire,27/10/2022,1903477398,280,A1 Cab Company ,101233,SP4 ,Neighbourhood & Planning,SEN 16+ Transport,Transport Contracts,Third Party Payments,REVENUE
Wiltshire,http://opendatacommunities.org/id/unitary-authority/wiltshire,28/10/2022,5107467110,50544,A2 Dominion ,101167,SO23,Neighbourhood & Planning,Housing Solutions,Other Contracts,Third Party Payments,REVENUE
Wiltshire,http://opendatacommunities.org/id/unitary-authority/wiltshire,18/10/2022,1903463184,3325,A2B Taxis Westbury ,149947,BA13,Neighbourhood & Planning,SEN Primary Transprt,Transport Contracts,Third Party Payments,REVENUE
Wiltshire,http://opendatacommunities.org/id/unitary-authority/wiltshire,18/10/2022,1903463186,1386,A2B Taxis Westbury ,149947,BA13,Neighbourhood & Planning,Mainstream Primary,Transport Contracts,Third Party Payments,REVENUE
Wiltshire,http://opendatacommunities.org/id/unitary-authority/wiltshire,21/10/2022,1903470394,1565.6,AAP Taxis and Private Hire Ltd ,143342,SN10,Neighbourhood & Planning,SEN Secondary Tspt,Transport Contracts,Third Party Payments,REVENUE
Wiltshire,http://opendatacommunities.org/id/unitary-authority/wiltshire,21/10/2022,1903470397,2543.15,AAP Taxis and Private Hire Ltd ,143342,SN10,Neighbourhood & Planning,SEN Secondary Tspt,Transport Contracts,Third Party Payments,REVENUE
Wiltshire,http://opendatacommunities.org/id/unitary-authority/wiltshire,21/10/2022,1903470397,2664.25,AAP Taxis and Private Hire Ltd ,143342,SN10,Neighbourhood & Planning,SEN Primary Transprt,Transport Contracts,Third Party Payments,REVENUE
Wiltshire,http://opendatacommunities.org/id/unitary-authority/wiltshire,21/10/2022,1903470400,2979.2,AAP Taxis and Private Hire Ltd ,143342,SN10,Neighbourhood & Planning,SEN Secondary Tspt,Transport Contracts,Third Party Payments,REVENUE
Wiltshire,http://opendatacommunities.org/id/unitary-authority/wiltshire,18/10/2022,1903461860,6300.16,AB Learning and Education ,125864,SN8 ,Children & Education,Free Enttlmnt 3 & 4y,Childcare Free Entitlement Early Years,Supplies and Services,REVENUE
Wiltshire,http://opendatacommunities.org/id/unitary-authority/wiltshire,18/10/2022,1903461861,597.45,AB Learning and Education ,125864,SN8 ,Children & Education,Free Entitlement 2 Y,Childcare Free Entitlement Early Years,Supplies and Services,REVENUE
Wiltshire,http://opendatacommunities.org/id/unitary-authority/wiltshire,21/10/2022,1903470403,971.1,Abbey Taxis (Swindon) Ltd ,100920,SN2 ,Neighbourhood & Planning,SEN Primary Transprt,Transport Contracts,Third Party Payments,REVENUE
Wiltshire,http://opendatacommunities.org/id/unitary-authority/wiltshire,21/10/2022,1903470403,1643.4,Abbey Taxis (Swindon) Ltd ,100920,SN2 ,Neighbourhood & Planning,SEN Secondary Tspt,Transport Contracts,Third Party Payments,REVENUE
Wiltshire,http://opendatacommunities.org/id/unitary-authority/wiltshire,21/10/2022,1903470404,4264.02,Abbey Taxis (Swindon) Ltd ,100920,SN2 ,Neighbourhood & Planning,SEN Secondary Tspt,Transport Contracts,Third Party Payments,REVENUE
Wiltshire,http://opendatacommunities.org/id/unitary-authority/wiltshire,21/10/2022,1903470405,1618.5,Abbey Taxis (Swindon) Ltd ,100920,SN2 ,Neighbourhood & Planning,SEN Secondary Tspt,Transport Contracts,Third Party Payments,REVENUE
Wiltshire,http://opendatacommunities.org/id/unitary-authority/wiltshire,21/10/2022,1903470406,4389.38,Abbey Taxis (Swindon) Ltd ,100920,SN2 ,Neighbourhood & Planning,SEN Secondary Tspt,Transport Contracts,Third Party Payments,REVENUE
Wiltshire,http://opendatacommunities.org/id/unitary-authority/wiltshire,21/10/2022,1903470407,1577,Abbey Taxis (Swindon) Ltd ,100920,SN2 ,Neighbourhood & Planning,Mainstream Primary,Transport Contracts,Third Party Payments,REVENUE
Wiltshire,http://opendatacommunities.org/id/unitary-authority/wiltshire,21/10/2022,1903470408,1379.78,Abbey Taxis (Swindon) Ltd ,100920,SN2 ,Neighbourhood & Planning,Mainstream Secondary,Transport Contracts,Third Party Payments,REVENUE
Wiltshire,http://opendatacommunities.org/id/unitary-authority/wiltshire,21/10/2022,1903470409,2797.18,Abbey Taxis (Swindon) Ltd ,100920,SN2 ,Neighbourhood & Planning,SEN Primary Transprt,Transport Contracts,Third Party Payments,REVENUE
Wiltshire,http://opendatacommunities.org/id/unitary-authority/wiltshire,21/10/2022,1903470410,1379.78,Abbey Taxis (Swindon) Ltd ,100920,SN2 ,Neighbourhood & Planning,Mainstream Secondary,Transport Contracts,Third Party Payments,REVENUE
Wiltshire,http://opendatacommunities.org/id/unitary-authority/wiltshire,21/10/2022,1903470411,1037.12,Abbey Taxis (Swindon) Ltd ,100920,SN2 ,Neighbourhood & Planning,SEN Secondary Tspt,Transport Contracts,Third Party Payments,REVENUE
Wiltshire,http://opendatacommunities.org/id/unitary-authority/wiltshire,21/10/2022,1903470412,418.02,Abbey Taxis (Swindon) Ltd ,100920,SN2 ,Community Services,North Care Packages,Transport Contracts,Third Party Payments,REVENUE
Wiltshire,http://opendatacommunities.org/id/unitary-authority/wiltshire,21/10/2022,1903470413,2424.59,Abbey Taxis (Swindon) Ltd ,100920,SN2 ,Neighbourhood & Planning,SEN Primary Transprt,Transport Contracts,Third Party Payments,REVENUE
Wiltshire,http://opendatacommunities.org/id/unitary-authority/wiltshire,21/10/2022,1903470414,2956.97,Abbey Taxis (Swindon) Ltd ,100920,SN2 ,Neighbourhood & Planning,SEN Secondary Tspt,Transport Contracts,Third Party Payments,REVENUE
Wiltshire,http://opendatacommunities.org/id/unitary-authority/wiltshire,21/10/2022,1903470415,1213.94,Abbey Taxis (Swindon) Ltd ,100920,SN2 ,Community Services,LDAS North,Transport Contracts,Third Party Payments,REVENUE
Wiltshire,http://opendatacommunities.org/id/unitary-authority/wiltshire,21/10/2022,1903470416,1379.87,Abbey Taxis (Swindon) Ltd ,100920,SN2 ,Neighbourhood & Planning,Mainstream Primary,Transport Contracts,Third Party Payments,REVENUE
Wiltshire,http://opendatacommunities.org/id/unitary-authority/wiltshire,21/10/2022,1903470416,1379.88,Abbey Taxis (Swindon) Ltd ,100920,SN2 ,Neighbourhood & Planning,SEN Primary Transprt,Transport Contracts,Third Party Payments,REVENUE
Wiltshire,http://opendatacommunities.org/id/unitary-authority/wiltshire,21/10/2022,1903470417,3232.85,Abbey Taxis (Swindon) Ltd ,100920,SN2 ,Neighbourhood & Planning,SEN Secondary Tspt,Transport Contracts,Third Party Payments,REVENUE
Wiltshire,http://opendatacommunities.org/id/unitary-authority/wiltshire,21/10/2022,1903470418,1076.66,Abbey Taxis (Swindon) Ltd ,100920,SN2 ,Neighbourhood & Planning,SEN 16+ Transport,Transport Contracts,Third Party Payments,REVENUE
Wiltshire,http://opendatacommunities.org/id/unitary-authority/wiltshire,21/10/2022,1903470418,2153.34,Abbey Taxis (Swindon) Ltd ,100920,SN2 ,Neighbourhood & Planning,SEN Secondary Tspt,Transport Contracts,Third Party Payments,REVENUE
Wiltshire,http://opendatacommunities.org/id/unitary-authority/wiltshire,21/10/2022,1903470419,2848.48,Abbey Taxis (Swindon) Ltd ,100920,SN2 ,Neighbourhood & Planning,SEN Secondary Tspt,Transport Contracts,Third Party Payments,REVENUE
Wiltshire,http://opendatacommunities.org/id/unitary-authority/wiltshire,21/10/2022,1903470420,4053.63,Abbey Taxis (Swindon) Ltd ,100920,SN2 ,Neighbourhood & Planning,SEN Secondary Tspt,Transport Contracts,Third Party Payments,REVENUE
Wiltshire,http://opendatacommunities.org/id/unitary-authority/wiltshire,21/10/2022,1903470421,2759.75,Abbey Taxis (Swindon) Ltd ,100920,SN2 ,Neighbourhood & Planning,SEN Primary Transprt,Transport Contracts,Third Party Payments,REVENUE
Wiltshire,http://opendatacommunities.org/id/unitary-authority/wiltshire,21/10/2022,1903470422,3268.23,Abbey Taxis (Swindon) Ltd ,100920,SN2 ,Community Services,LDAS North,Transport Contracts,Third Party Payments,REVENUE
Wiltshire,http://opendatacommunities.org/id/unitary-authority/wiltshire,21/10/2022,1903470423,3197.32,Abbey Taxis (Swindon) Ltd ,100920,SN2 ,Neighbourhood & Planning,SEN Secondary Tspt,Transport Contracts,Third Party Payments,REVENUE
Wiltshire,http://opendatacommunities.org/id/unitary-authority/wiltshire,21/10/2022,1903470424,595.95,Abbey Taxis (Swindon) Ltd ,100920,SN2 ,Neighbourhood & Planning,SEN Primary Transprt,Transport Contracts,Third Party Payments,REVENUE
Wiltshire,http://opendatacommunities.org/id/unitary-authority/wiltshire,21/10/2022,1903470424,2004.58,Abbey Taxis (Swindon) Ltd ,100920,SN2 ,Neighbourhood & Planning,SEN Secondary Tspt,Transport Contracts,Third Party Payments,REVENUE
Wiltshire,http://opendatacommunities.org/id/unitary-authority/wiltshire,21/10/2022,1903470425,553.98,Abbey Taxis (Swindon) Ltd ,100920,SN2 ,Neighbourhood & Planning,SEN Primary Transprt,Transport Contracts,Third Party Payments,REVENUE
Wiltshire,http://opendatacommunities.org/id/unitary-authority/wiltshire,21/10/2022,1903470425,2769.88,Abbey Taxis (Swindon) Ltd ,100920,SN2 ,Neighbourhood & Planning,SEN Secondary Tspt,Transport Contracts,Third Party Payments,REVENUE
Wiltshire,http://opendatacommunities.org/id/unitary-authority/wiltshire,21/10/2022,1903470427,1307.25,Abbey Taxis (Swindon) Ltd ,100920,SN2 ,Neighbourhood & Planning,Mainstream Primary,Transport Contracts,Third Party Payments,REVENUE
Wiltshire,http://opendatacommunities.org/id/unitary-authority/wiltshire,21/10/2022,1903470429,2365.5,Abbey Taxis (Swindon) Ltd ,100920,SN2 ,Neighbourhood & Planning,SEN Secondary Tspt,Transport Contracts,Third Party Payments,REVENUE
Wiltshire,http://opendatacommunities.org/id/unitary-authority/wiltshire,21/10/2022,1903470430,621.84,Abbey Taxis (Swindon) Ltd ,100920,SN2 ,Neighbourhood & Planning,SEN Primary Transprt,Transport Contracts,Third Party Payments,REVENUE
Wiltshire,http://opendatacommunities.org/id/unitary-authority/wiltshire,21/10/2022,1903470430,3532.32,Abbey Taxis (Swindon) Ltd ,100920,SN2 ,Neighbourhood & Planning,SEN Secondary Tspt,Transport Contracts,Third Party Payments,REVENUE
Wiltshire,http://opendatacommunities.org/id/unitary-authority/wiltshire,21/10/2022,1903470431,2562.72,Abbey Taxis (Swindon) Ltd ,100920,SN2 ,Neighbourhood & Planning,SEN Secondary Tspt,Transport Contracts,Third Party Payments,REVENUE
Wiltshire,http://opendatacommunities.org/id/unitary-authority/wiltshire,21/10/2022,1903470433,2759.75,Abbey Taxis (Swindon) Ltd ,100920,SN2 ,Neighbourhood & Planning,SEN Secondary Tspt,Transport Contracts,Third Party Payments,REVENUE
Wiltshire,http://opendatacommunities.org/id/unitary-authority/wiltshire,21/10/2022,1903470434,4140,Abbey Taxis (Swindon) Ltd ,100920,SN2 ,Neighbourhood & Planning,SEN Primary Transprt,Transport Contracts,Third Party Payments,REVENUE
Wiltshire,http://opendatacommunities.org/id/unitary-authority/wiltshire,21/10/2022,1903470435,1108.34,Abbey Taxis (Swindon) Ltd ,100920,SN2 ,Neighbourhood & Planning,SEN 16+ Transport,Transport Contracts,Third Party Payments,REVENUE
Wiltshire,http://opendatacommunities.org/id/unitary-authority/wiltshire,21/10/2022,1903470435,2216.66,Abbey Taxis (Swindon) Ltd ,100920,SN2 ,Neighbourhood & Planning,SEN Secondary Tspt,Transport Contracts,Third Party Payments,REVENUE
Wiltshire,http://opendatacommunities.org/id/unitary-authority/wiltshire,21/10/2022,1903470436,3916.66,Abbey Taxis (Swindon) Ltd ,100920,SN2 ,Neighbourhood & Planning,SEN 16+ Transport,Transport Contracts,Third Party Payments,REVENUE
Wiltshire,http://opendatacommunities.org/id/unitary-authority/wiltshire,21/10/2022,1903470437,4370,Abbey Taxis (Swindon) Ltd ,100920,SN2 ,Neighbourhood & Planning,SEN 16+ Transport,Transport Contracts,Third Party Payments,REVENUE
Wiltshire,http://opendatacommunities.org/id/unitary-authority/wiltshire,21/10/2022,1903470438,950,Abbey Taxis (Swindon) Ltd ,100920,SN2 ,Neighbourhood & Planning,SEN Primary Transprt,Transport Contracts,Third Party Payments,REVENUE
Wiltshire,http://opendatacommunities.org/id/unitary-authority/wiltshire,21/10/2022,1903470438,2850,Abbey Taxis (Swindon) Ltd ,100920,SN2 ,Neighbourhood & Planning,SEN Secondary Tspt,Transport Contracts,Third Party Payments,REVENUE
Wiltshire,http://opendatacommunities.org/id/unitary-authority/wiltshire,21/10/2022,1903470439,2660,Abbey Taxis (Swindon) Ltd ,100920,SN2 ,Community Services,Afghan Resettleme,Transport Contracts,Third Party Payments,REVENUE
Wiltshire,http://opendatacommunities.org/id/unitary-authority/wiltshire,21/10/2022,1903470440,1336.5,Abbey Taxis (Swindon) Ltd ,100920,SN2 ,Neighbourhood & Planning,SEN Secondary Tspt,Transport Contracts,Third Party Payments,REVENUE
Wiltshire,http://opendatacommunities.org/id/unitary-authority/wiltshire,21/10/2022,1903470441,600,Abbey Taxis (Swindon) Ltd ,100920,SN2 ,Neighbourhood & Planning,SEN Primary Transprt,Transport Contracts,Third Party Payments,REVENUE
Wiltshire,http://opendatacommunities.org/id/unitary-authority/wiltshire,21/10/2022,1903470442,400,Abbey Taxis (Swindon) Ltd ,100920,SN2 ,Neighbourhood & Planning,Mainstream Primary,Transport Contracts,Third Party Payments,REVENUE
Wiltshire,http://opendatacommunities.org/id/unitary-authority/wiltshire,24/10/2022,1903470859,741.76,Abbey Taxis (Swindon) Ltd ,100920,SN2 ,Neighbourhood & Planning,Mainstream Primary,Transport Contracts,Third Party Payments,REVENUE
Wiltshire,http://opendatacommunities.org/id/unitary-authority/wiltshire,24/10/2022,1903470859,3708.8,Abbey Taxis (Swindon) Ltd ,100920,SN2 ,Neighbourhood & Planning,SEN Primary Transprt,Transport Contracts,Third Party Payments,REVENUE
Wiltshire,http://opendatacommunities.org/id/unitary-authority/wiltshire,07/10/2022,5107466432,700,Abbott Toxicology Ltd ,131373,OX14,Children & Education,Supp & Safe South,Pathology Fees,Supplies and Services,REVENUE
Wiltshire,http://opendatacommunities.org/id/unitary-authority/wiltshire,27/10/2022,5107467751,257,Abbott Toxicology Ltd ,131373,OX14,Children & Education,Supp & Safe East,Pathology Fees,Supplies and Services,REVENUE
Wiltshire,http://opendatacommunities.org/id/unitary-authority/wiltshire,21/10/2022,5107468507,431,Abbott Toxicology Ltd ,131373,OX14,Children & Education,Supp & Safe West 2,Other Social & Welfare Costs,Third Party Payments,REVENUE
Wiltshire,http://opendatacommunities.org/id/unitary-authority/wiltshire,18/10/2022,1903462321,11257.28,ABC Day Nursery (Melksham) Ltd ,154174,SN12,Children & Education,Free Enttlmnt 3 & 4y,Childcare Free Entitlement Early Years,Supplies and Services,REVENUE
Wiltshire,http://opendatacommunities.org/id/unitary-authority/wiltshire,18/10/2022,1903462322,896.17,ABC Day Nursery (Melksham) Ltd ,154174,SN12,Children & Education,Free Entitlement 2 Y,Childcare Free Entitlement Early Years,Supplies and Services,REVENUE
Wiltshire,http://opendatacommunities.org/id/unitary-authority/wiltshire,18/10/2022,1903462011,8437.53,ABC Nursery ,143051,SN13,Children & Education,Free Enttlmnt 3 & 4y,Childcare Free Entitlement Early Years,Supplies and Services,REVENUE
Wiltshire,http://opendatacommunities.org/id/unitary-authority/wiltshire,18/10/2022,1903462012,2867.76,ABC Nursery ,143051,SN13,Children & Education,Free Entitlement 2 Y,Childcare Free Entitlement Early Years,Supplies and Services,REVENUE
Wiltshire,http://opendatacommunities.org/id/unitary-authority/wiltshire,17/10/2022,1903462961,400,ABC Nursery ,143051,SN13,Resources,Covid 19 Winter Gra,Nursery / Childminder Fees / Sitting Service,Third Party Payments,REVENUE
Wiltshire,http://opendatacommunities.org/id/unitary-authority/wiltshire,03/10/2022,1903456223,405.06,Abicare Services Ltd Homecare ,110031,SP2 ,Community Services,West Care Packages,Adult Domiciliary Care Contribution,Income,REVENUE
Wiltshire,http://opendatacommunities.org/id/unitary-authority/wiltshire,03/10/2022,1903456224,1631.52,Abicare Services Ltd Homecare ,110031,SP2 ,Community Services,West Care Packages,Adult Domiciliary Care Contribution,Income,REVENUE
Wiltshire,http://opendatacommunities.org/id/unitary-authority/wiltshire,03/10/2022,1903456225,315.92,Abicare Services Ltd Homecare ,110031,SP2 ,Community Services,West Care Packages,Adult Domiciliary Care Contribution,Income,REVENUE
Wiltshire,http://opendatacommunities.org/id/unitary-authority/wiltshire,03/10/2022,1903456227,2493.12,Abicare Services Ltd Homecare ,110031,SP2 ,Community Services,West Care Packages,Adult Domiciliary Care,Third Party Payments,REVENUE
Wiltshire,http://opendatacommunities.org/id/unitary-authority/wiltshire,03/10/2022,1903456228,1184.96,Abicare Services Ltd Homecare ,110031,SP2 ,Community Services,MH AOWA West Localit,Adult Domiciliary Care,Third Party Payments,REVENUE
Wiltshire,http://opendatacommunities.org/id/unitary-authority/wiltshire,03/10/2022,1903456229,1169.09,Abicare Services Ltd Homecare ,110031,SP2 ,Community Services,LDAS West,Adult Domiciliary Care,Third Party Payments,REVENUE
Wiltshire,http://opendatacommunities.org/id/unitary-authority/wiltshire,03/10/2022,1903456230,1401.68,Abicare Services Ltd Homecare ,110031,SP2 ,Community Services,West Care Packages,Adult Domiciliary Care,Third Party Payments,REVENUE
Wiltshire,http://opendatacommunities.org/id/unitary-authority/wiltshire,03/10/2022,1903456231,296.24,Abicare Services Ltd Homecare ,110031,SP2 ,Community Services,West Care Packages,Adult Domiciliary Care,Third Party Payments,REVENUE
Wiltshire,http://opendatacommunities.org/id/unitary-authority/wiltshire,03/10/2022,1903456232,602,Abicare Services Ltd Homecare ,110031,SP2 ,Community Services,South Care Packages,Adult Domiciliary Care,Third Party Payments,REVENUE
Wiltshire,http://opendatacommunities.org/id/unitary-authority/wiltshire,03/10/2022,1903456233,1271.4,Abicare Services Ltd Homecare ,110031,SP2 ,Community Services,South Care Packages,Adult Domiciliary Care Contribution,Income,REVENUE
Wiltshire,http://opendatacommunities.org/id/unitary-authority/wiltshire,03/10/2022,1903456234,1791.49,Abicare Services Ltd Homecare ,110031,SP2 ,Community Services,South Care Packages,Adult Domiciliary Care,Third Party Payments,REVENUE
Wiltshire,http://opendatacommunities.org/id/unitary-authority/wiltshire,03/10/2022,1903456237,1857.36,Abicare Services Ltd Homecare ,110031,SP2 ,Community Services,MH OP South Locality,Adult Domiciliary Care,Third Party Payments,REVENUE
Wiltshire,http://opendatacommunities.org/id/unitary-authority/wiltshire,03/10/2022,1903456238,1211.12,Abicare Services Ltd Homecare ,110031,SP2 ,Community Services,South Care Packages,Adult Domiciliary Care Contribution,Income,REVENUE
Wiltshire,http://opendatacommunities.org/id/unitary-authority/wiltshire,03/10/2022,1903456239,318.48,Abicare Services Ltd Homecare ,110031,SP2 ,Community Services,South Care Packages,Adult Domiciliary Care,Third Party Payments,REVENUE
Wiltshire,http://opendatacommunities.org/id/unitary-authority/wiltshire,03/10/2022,1903456240,1253.56,Abicare Services Ltd Homecare ,110031,SP2 ,Community Services,South Care Packages,Adult Domiciliary Care Contribution,Income,REVENUE
Wiltshire,http://opendatacommunities.org/id/unitary-authority/wiltshire,03/10/2022,1903456241,484.68,Abicare Services Ltd Homecare ,110031,SP2 ,Community Services,South Care Packages,Adult Domiciliary Care,Third Party Payments,REVENUE
Wiltshire,http://opendatacommunities.org/id/unitary-authority/wiltshire,03/10/2022,1903456242,2373.33,Abicare Services Ltd Homecare ,110031,SP2 ,Community Services,North Care Packages,Adult Domiciliary Care,Third Party Payments,REVENUE
Wiltshire,http://opendatacommunities.org/id/unitary-authority/wiltshire,04/10/2022,1903456641,731.04,Abicare Services Ltd Homecare ,110031,SP2 ,Community Services,South Care Packages,Adult Domiciliary Care Contribution,Income,REVENUE
Wiltshire,http://opendatacommunities.org/id/unitary-authority/wiltshire,05/10/2022,1903456970,296.24,Abicare Services Ltd Homecare ,110031,SP2 ,Community Services,MH AOWA West Localit,Adult Domiciliary Care,Third Party Payments,REVENUE
Wiltshire,http://opendatacommunities.org/id/unitary-authority/wiltshire,20/10/2022,1903470021,586.84,Abicare Services Ltd Homecare ,110031,SP2 ,Community Services,West Care Packages,Adult Domiciliary Care Contribution,Income,REVENUE
Wiltshire,http://opendatacommunities.org/id/unitary-authority/wiltshire,03/10/2022,1903456260,2994.52,Abicare Services Ltd Live in Care. ,113071,SP2 ,Community Services,West Care Packages,Adult Domiciliary Care,Third Party Payments,REVENUE
Wiltshire,http://opendatacommunities.org/id/unitary-authority/wiltshire,03/10/2022,1903456261,3628.24,Abicare Services Ltd Live in Care. ,113071,SP2 ,Community Services,MH AOWA West Localit,Adult Domiciliary Care,Third Party Payments,REVENUE
Wiltshire,http://opendatacommunities.org/id/unitary-authority/wiltshire,03/10/2022,1903456322,2972.56,Abicare Services Ltd Live in Care. ,113071,SP2 ,Community Services,West Care Packages,Adult Domiciliary Care Contribution,Income,REVENUE
Wiltshire,http://opendatacommunities.org/id/unitary-authority/wiltshire,03/10/2022,1903456323,614.07,Abicare Services Ltd Live in Care. ,113071,SP2 ,Community Services,MH OP West Locality,Adult Domiciliary Care,Third Party Payments,REVENUE
Wiltshire,http://opendatacommunities.org/id/unitary-authority/wiltshire,03/10/2022,1903456324,3628.24,Abicare Services Ltd Live in Care. ,113071,SP2 ,Community Services,South Care Packages,Adult Domiciliary Care,Third Party Payments,REVENUE
Wiltshire,http://opendatacommunities.org/id/unitary-authority/wiltshire,03/10/2022,1903456325,1343,Abicare Services Ltd Live in Care. ,113071,SP2 ,Community Services,South Care Packages,Adult Domiciliary Care,Third Party Payments,REVENUE
Wiltshire,http://opendatacommunities.org/id/unitary-authority/wiltshire,03/10/2022,1903456326,3820.88,Abicare Services Ltd Live in Care. ,113071,SP2 ,Community Services,West Care Packages,Adult Domiciliary Care,Third Party Payments,REVENUE
Wiltshire,http://opendatacommunities.org/id/unitary-authority/wiltshire,04/10/2022,1903456726,1264,Abicare Services Ltd Live in Care. ,113071,SP2 ,Community Services,South Care Packages,Adult Domiciliary Care,Third Party Payments,REVENUE
Wiltshire,http://opendatacommunities.org/id/unitary-authority/wiltshire,26/10/2022,1903472602,592.12,ABLE ,101029,BA14,Community Services,MH AOWA N&E Locality,Supported Living,Third Party Payments,REVENUE
Wiltshire,http://opendatacommunities.org/id/unitary-authority/wiltshire,26/10/2022,1903472603,671.08,ABLE ,101029,BA14,Community Services,MH AOWA N&E Locality,Supported Living,Third Party Payments,REVENUE
Wiltshire,http://opendatacommunities.org/id/unitary-authority/wiltshire,26/10/2022,1903472604,836.16,ABLE ,101029,BA14,Community Services,MH AOWA West Localit,Supported Living,Third Party Payments,REVENUE
Wiltshire,http://opendatacommunities.org/id/unitary-authority/wiltshire,26/10/2022,1903472605,466.72,ABLE ,101029,BA14,Community Services,MH AOWA West Localit,Supported Living,Third Party Payments,REVENUE
Wiltshire,http://opendatacommunities.org/id/unitary-authority/wiltshire,26/10/2022,1903472606,394.76,ABLE ,101029,BA14,Community Services,MH AOWA West Localit,Supported Living,Third Party Payments,REVENUE
Wiltshire,http://opendatacommunities.org/id/unitary-authority/wiltshire,26/10/2022,1903472607,394.76,ABLE ,101029,BA14,Community Services,MH AOWA West Localit,Supported Living,Third Party Payments,REVENUE
Wiltshire,http://opendatacommunities.org/id/unitary-authority/wiltshire,26/10/2022,1903472608,311.12,ABLE ,101029,BA14,Community Services,MH OP West Locality,Supported Living,Third Party Payments,REVENUE
Wiltshire,http://opendatacommunities.org/id/unitary-authority/wiltshire,26/10/2022,1903472610,370.4,ABLE ,101029,BA14,Community Services,LDAS North,Supported Living,Third Party Payments,REVENUE
Wiltshire,http://opendatacommunities.org/id/unitary-authority/wiltshire,26/10/2022,1903472611,370.4,ABLE ,101029,BA14,Community Services,LDAS North,Supported Living,Third Party Payments,REVENUE
Wiltshire,http://opendatacommunities.org/id/unitary-authority/wiltshire,26/10/2022,1903472612,330.71,ABLE ,101029,BA14,Community Services,LDAS North,Supported Living,Third Party Payments,REVENUE
Wiltshire,http://opendatacommunities.org/id/unitary-authority/wiltshire,26/10/2022,1903472614,389,ABLE ,101029,BA14,Community Services,LDAS North,Supported Living,Third Party Payments,REVENUE
Wiltshire,http://opendatacommunities.org/id/unitary-authority/wiltshire,26/10/2022,1903472615,389,ABLE ,101029,BA14,Community Services,LDAS North,Supported Living,Third Party Payments,REVENUE
Wiltshire,http://opendatacommunities.org/id/unitary-authority/wiltshire,26/10/2022,1903472616,389,ABLE ,101029,BA14,Community Services,LDAS North,Supported Living,Third Party Payments,REVENUE
Wiltshire,http://opendatacommunities.org/id/unitary-authority/wiltshire,26/10/2022,1903472617,389,ABLE ,101029,BA14,Community Services,LDAS North,Supported Living,Third Party Payments,REVENUE
Wiltshire,http://opendatacommunities.org/id/unitary-authority/wiltshire,26/10/2022,1903472618,389,ABLE ,101029,BA14,Community Services,LDAS North,Supported Living,Third Party Payments,REVENUE
Wiltshire,http://opendatacommunities.org/id/unitary-authority/wiltshire,26/10/2022,1903472619,389,ABLE ,101029,BA14,Community Services,LDAS North,Supported Living,Third Party Payments,REVENUE
Wiltshire,http://opendatacommunities.org/id/unitary-authority/wiltshire,26/10/2022,1903472620,389,ABLE ,101029,BA14,Community Services,LDAS North,Supported Living,Third Party Payments,REVENUE
Wiltshire,http://opendatacommunities.org/id/unitary-authority/wiltshire,26/10/2022,1903472621,389,ABLE ,101029,BA14,Community Services,LDAS North,Supported Living,Third Party Payments,REVENUE
Wiltshire,http://opendatacommunities.org/id/unitary-authority/wiltshire,26/10/2022,1903472622,1125.32,ABLE ,101029,BA14,Community Services,MH OP N&E Locality,Supported Living,Third Party Payments,REVENUE
Wiltshire,http://opendatacommunities.org/id/unitary-authority/wiltshire,26/10/2022,1903472623,1167,ABLE ,101029,BA14,Community Services,MH OP N&E Locality,Supported Living,Third Party Payments,REVENUE
Wiltshire,http://opendatacommunities.org/id/unitary-authority/wiltshire,26/10/2022,1903472624,1167,ABLE ,101029,BA14,Community Services,MH OP N&E Locality,Supported Living,Third Party Payments,REVENUE
Wiltshire,http://opendatacommunities.org/id/unitary-authority/wiltshire,26/10/2022,1903472625,525.15,ABLE ,101029,BA14,Community Services,MH AOWA West Localit,Supported Living,Third Party Payments,REVENUE
Wiltshire,http://opendatacommunities.org/id/unitary-authority/wiltshire,26/10/2022,1903472626,700.2,ABLE ,101029,BA14,Community Services,MH AOWA West Localit,Supported Living,Third Party Payments,REVENUE
Wiltshire,http://opendatacommunities.org/id/unitary-authority/wiltshire,26/10/2022,1903472627,700.2,ABLE ,101029,BA14,Community Services,MH AOWA West Localit,Supported Living,Third Party Payments,REVENUE
Wiltshire,http://opendatacommunities.org/id/unitary-authority/wiltshire,26/10/2022,1903472628,700.2,ABLE ,101029,BA14,Community Services,MH AOWA West Localit,Supported Living,Third Party Payments,REVENUE
Wiltshire,http://opendatacommunities.org/id/unitary-authority/wiltshire,26/10/2022,1903472629,700.2,ABLE ,101029,BA14,Community Services,MH AOWA West Localit,Supported Living,Third Party Payments,REVENUE
Wiltshire,http://opendatacommunities.org/id/unitary-authority/wiltshire,26/10/2022,1903472630,700.2,ABLE ,101029,BA14,Community Services,MH AOWA West Localit,Supported Living,Third Party Payments,REVENUE
Wiltshire,http://opendatacommunities.org/id/unitary-authority/wiltshire,26/10/2022,1903472631,700.2,ABLE ,101029,BA14,Community Services,MH AOWA West Localit,Supported Living,Third Party Payments,REVENUE
Wiltshire,http://opendatacommunities.org/id/unitary-authority/wiltshire,10/10/2022,1903459306,900,Able Hands Together CIC ,144783,SP11,Community Services,LDAS South,Adult Day Care Contracts,Third Party Payments,REVENUE
Wiltshire,http://opendatacommunities.org/id/unitary-authority/wiltshire,10/10/2022,1903459307,840,Able Hands Together CIC ,144783,SP11,Community Services,LDAS South,Adult Day Care Contracts,Third Party Payments,REVENUE
Wiltshire,http://opendatacommunities.org/id/unitary-authority/wiltshire,13/10/2022,1903461502,1260,Able Hands Together CIC ,144783,SP11,Community Services,LDAS South,Adult Day Care Contracts,Third Party Payments,REVENUE
Wiltshire,http://opendatacommunities.org/id/unitary-authority/wiltshire,17/10/2022,1903462571,720,Able Hands Together CIC ,144783,SP11,Community Services,LDAS South,Adult Day Care Contracts,Third Party Payments,REVENUE
Wiltshire,http://opendatacommunities.org/id/unitary-authority/wiltshire,17/10/2022,1903462572,540,Able Hands Together CIC ,144783,SP11,Community Services,LDAS South,Adult Day Care Contracts,Third Party Payments,REVENUE
Wiltshire,http://opendatacommunities.org/id/unitary-authority/wiltshire,17/10/2022,1903462573,300,Able Hands Together CIC ,144783,SP11,Community Services,LDAS South,Adult Day Care - Spot Income Contribution,Income,REVENUE
Wiltshire,http://opendatacommunities.org/id/unitary-authority/wiltshire,17/10/2022,1903462574,300,Able Hands Together CIC ,144783,SP11,Community Services,LDAS South,Adult Day Care Contracts,Third Party Payments,REVENUE
Wiltshire,http://opendatacommunities.org/id/unitary-authority/wiltshire,17/10/2022,1903462575,300,Able Hands Together CIC ,144783,SP11,Community Services,LDAS South,Adult Day Care Contracts,Third Party Payments,REVENUE
Wiltshire,http://opendatacommunities.org/id/unitary-authority/wiltshire,17/10/2022,1903462576,300,Able Hands Together CIC ,144783,SP11,Community Services,LDAS South,Adult Day Care - Spot Income Contribution,Income,REVENUE
Wiltshire,http://opendatacommunities.org/id/unitary-authority/wiltshire,17/10/2022,1903462577,300,Able Hands Together CIC ,144783,SP11,Community Services,LDAS South,Adult Day Care Contracts,Third Party Payments,REVENUE
Wiltshire,http://opendatacommunities.org/id/unitary-authority/wiltshire,17/10/2022,1903462579,540,Able Hands Together CIC ,144783,SP11,Community Services,LDAS South,Adult Day Care Contracts,Third Party Payments,REVENUE
Wiltshire,http://opendatacommunities.org/id/unitary-authority/wiltshire,17/10/2022,1903462581,480,Able Hands Together CIC ,144783,SP11,Community Services,LDAS South,Adult Day Care Contracts,Third Party Payments,REVENUE
Wiltshire,http://opendatacommunities.org/id/unitary-authority/wiltshire,17/10/2022,1903462582,720,Able Hands Together CIC ,144783,SP11,Community Services,LDAS South,Adult Day Care - Spot Income Contribution,Income,REVENUE
Wiltshire,http://opendatacommunities.org/id/unitary-authority/wiltshire,17/10/2022,1903462583,304,Able Hands Together CIC ,144783,SP11,Community Services,LDAS South,Adult Day Care Contracts,Third Party Payments,REVENUE
Wiltshire,http://opendatacommunities.org/id/unitary-authority/wiltshire,17/10/2022,1903462585,473.68,Able Hands Together CIC ,144783,SP11,Community Services,LDAS South,Adult Day Care - Spot Income Contribution,Income,REVENUE
Wiltshire,http://opendatacommunities.org/id/unitary-authority/wiltshire,18/10/2022,1903463590,256.8,Able Hands Together CIC ,144783,SP11,Community Services,LDAS South,Adult Day Care - Spot Income Contribution,Income,REVENUE
Wiltshire,http://opendatacommunities.org/id/unitary-authority/wiltshire,18/10/2022,1903463592,780,Able Hands Together CIC ,144783,SP11,Community Services,LDAS South,Adult Day Care Contracts,Third Party Payments,REVENUE
Wiltshire,http://opendatacommunities.org/id/unitary-authority/wiltshire,18/10/2022,1903463593,660,Able Hands Together CIC ,144783,SP11,Community Services,LDAS South,Adult Day Care Contracts,Third Party Payments,REVENUE
Wiltshire,http://opendatacommunities.org/id/unitary-authority/wiltshire,18/10/2022,1903463640,720,Able Hands Together CIC ,144783,SP11,Community Services,LDAS West,Adult Day Care - Spot Income Contribution,Income,REVENUE
Wiltshire,http://opendatacommunities.org/id/unitary-authority/wiltshire,18/10/2022,1903463641,1200,Able Hands Together CIC ,144783,SP11,Community Services,LDAS West,Adult Day Care Contracts,Third Party Payments,REVENUE
Wiltshire,http://opendatacommunities.org/id/unitary-authority/wiltshire,18/10/2022,1903463644,720,Able Hands Together CIC ,144783,SP11,Community Services,LDAS West,Adult Day Care Contracts,Third Party Payments,REVENUE
Wiltshire,http://opendatacommunities.org/id/unitary-authority/wiltshire,18/10/2022,1903463645,900,Able Hands Together CIC ,144783,SP11,Community Services,LDAS West,Adult Day Care Contracts,Third Party Payments,REVENUE
Wiltshire,http://opendatacommunities.org/id/unitary-authority/wiltshire,20/10/2022,1903470121,720,Able Hands Together CIC ,144783,SP11,Community Services,LDAS West,Adult Day Care Contracts,Third Party Payments,REVENUE
Wiltshire,http://opendatacommunities.org/id/unitary-authority/wiltshire,20/10/2022,1903470122,480,Able Hands Together CIC ,144783,SP11,Community Services,LDAS West,Adult Day Care Contracts,Third Party Payments,REVENUE
Wiltshire,http://opendatacommunities.org/id/unitary-authority/wiltshire,20/10/2022,1903470124,480,Able Hands Together CIC ,144783,SP11,Community Services,LDAS South,Adult Day Care Contracts,Third Party Payments,REVENUE
Wiltshire,http://opendatacommunities.org/id/unitary-authority/wiltshire,24/10/2022,1903470950,780,Able Hands Together CIC ,144783,SP11,Community Services,LDAS South,Adult Day Care - Spot Income Contribution,Income,REVENUE
Wiltshire,http://opendatacommunities.org/id/unitary-authority/wiltshire,31/10/2022,1903478184,300,Able Hands Together CIC ,144783,SP11,Community Services,LDAS West,Adult Day Care - Spot Income Contribution,Income,REVENUE
Wiltshire,http://opendatacommunities.org/id/unitary-authority/wiltshire,31/10/2022,1903478185,1064,Able Hands Together CIC ,144783,SP11,Community Services,LDAS South,Adult Domiciliary Care,Third Party Payments,REVENUE
Wiltshire,http://opendatacommunities.org/id/unitary-authority/wiltshire,04/10/2022,1903456681,1192.73,Abney & Baker (Bath) Ltd ,146229,BA2 ,Community Services,North Care Packages,Adult Domiciliary Care,Third Party Payments,REVENUE
Wiltshire,http://opendatacommunities.org/id/unitary-authority/wiltshire,04/10/2022,1903456682,1912.95,Abney & Baker (Bath) Ltd ,146229,BA2 ,Community Services,West Care Packages,Adult Domiciliary Care Contribution,Income,REVENUE
Wiltshire,http://opendatacommunities.org/id/unitary-authority/wiltshire,04/10/2022,1903456683,1892.89,Abney & Baker (Bath) Ltd ,146229,BA2 ,Community Services,North Care Packages,Adult Domiciliary Care,Third Party Payments,REVENUE
Wiltshire,http://opendatacommunities.org/id/unitary-authority/wiltshire,04/10/2022,1903456684,1858.5,Abney & Baker (Bath) Ltd ,146229,BA2 ,Community Services,Adult Care Gross Loa,Adult Domiciliary Care,Third Party Payments,REVENUE
Wiltshire,http://opendatacommunities.org/id/unitary-authority/wiltshire,04/10/2022,1903456685,868.13,Abney & Baker (Bath) Ltd ,146229,BA2 ,Community Services,West Care Packages,Adult Domiciliary Care Contribution,Income,REVENUE
Wiltshire,http://opendatacommunities.org/id/unitary-authority/wiltshire,04/10/2022,1903456686,811.38,Abney & Baker (Bath) Ltd ,146229,BA2 ,Community Services,MH OP West Locality,Adult Domiciliary Care Contribution,Income,REVENUE
Wiltshire,http://opendatacommunities.org/id/unitary-authority/wiltshire,04/10/2022,1903456687,2552.03,Abney & Baker (Bath) Ltd ,146229,BA2 ,Community Services,West Care Packages,Adult Domiciliary Care Contribution,Income,REVENUE
Wiltshire,http://opendatacommunities.org/id/unitary-authority/wiltshire,04/10/2022,1903456688,2037.73,Abney & Baker (Bath) Ltd ,146229,BA2 ,Community Services,West Care Packages,Adult Domiciliary Care Contribution,Income,REVENUE
Wiltshire,http://opendatacommunities.org/id/unitary-authority/wiltshire,04/10/2022,1903456689,2005.28,Abney & Baker (Bath) Ltd ,146229,BA2 ,Community Services,West Care Packages,Adult Domiciliary Care Contribution,Income,REVENUE
Wiltshire,http://opendatacommunities.org/id/unitary-authority/wiltshire,04/10/2022,1903456690,2284.2,Abney & Baker (Bath) Ltd ,146229,BA2 ,Community Services,West Care Packages,Adult Domiciliary Care Contribution,Income,REVENUE
Wiltshire,http://opendatacommunities.org/id/unitary-authority/wiltshire,04/10/2022,1903456691,1092.79,Abney & Baker (Bath) Ltd ,146229,BA2 ,Community Services,West Care Packages,Adult Domiciliary Care,Third Party Payments,REVENUE
Wiltshire,http://opendatacommunities.org/id/unitary-authority/wiltshire,04/10/2022,1903456692,2070.93,Abney & Baker (Bath) Ltd ,146229,BA2 ,Community Services,West Care Packages,Adult Domiciliary Care,Third Party Payments,REVENUE
Wiltshire,http://opendatacommunities.org/id/unitary-authority/wiltshire,04/10/2022,1903456693,652.81,Abney & Baker (Bath) Ltd ,146229,BA2 ,Community Services,West Care Packages,Adult Domiciliary Care Contribution,Income,REVENUE
Wiltshire,http://opendatacommunities.org/id/unitary-authority/wiltshire,04/10/2022,1903456694,1011.87,Abney & Baker (Bath) Ltd ,146229,BA2 ,Community Services,West Care Packages,Adult Domiciliary Care Contribution,Income,REVENUE
Wiltshire,http://opendatacommunities.org/id/unitary-authority/wiltshire,05/10/2022,1903457022,1190.1,Abney & Baker (Bath) Ltd ,146229,BA2 ,Community Services,North Care Packages,Adult Domiciliary Care,Third Party Payments,REVENUE
Wiltshire,http://opendatacommunities.org/id/unitary-authority/wiltshire,26/10/2022,1903468956,2414.72,Acacia London Residential Healthcar ,147333,KT6 ,Community Services,North Care Packages,Adult Care Nursing Placements - Spot,Third Party Payments,REVENUE
Wiltshire,http://opendatacommunities.org/id/unitary-authority/wiltshire,27/10/2022,1903459362,2027,Access UK Limited ,128203,CT1 ,Community Services,In-House Reablement,Software Licences,Supplies and Services,REVENUE
Wiltshire,http://opendatacommunities.org/id/unitary-authority/wiltshire,11/10/2022,1903459365,2027,Access UK Limited ,128203,CT1 ,Community Services,In-House Reablement,Software Licences,Supplies and Services,REVENUE
Wiltshire,http://opendatacommunities.org/id/unitary-authority/wiltshire,18/10/2022,5107468287,3431.97,Access UK Ltd ,147478,CO7 ,Community Services,Market Sustainabilit,IT Hardware Purchases,Supplies and Services,REVENUE
Wiltshire,http://opendatacommunities.org/id/unitary-authority/wiltshire,26/10/2022,1903468643,6172.68,Accomplish Group Limited ,112775,B45 ,Community Services,LDAS North,Adult Residential Placements - Spot Purchase,Third Party Payments,REVENUE
Wiltshire,http://opendatacommunities.org/id/unitary-authority/wiltshire,26/10/2022,1903468644,8266,Accomplish Group Limited ,112775,B45 ,Community Services,LDAS North,Adult Residential Placements - Spot Purchase,Third Party Payments,REVENUE
Wiltshire,http://opendatacommunities.org/id/unitary-authority/wiltshire,26/10/2022,1903468652,6740,Accomplish Group Limited ,112775,B45 ,Community Services,MH AOWA N&E Locality,Adult Residential Placements - Spot Purchase,Third Party Payments,REVENUE
Wiltshire,http://opendatacommunities.org/id/unitary-authority/wiltshire,26/10/2022,1903474721,10616,Accomplish Group Limited ,112775,B45 ,Community Services,LDAS South,Adult Residential Placements - Spot Purchase,Third Party Payments,REVENUE
Wiltshire,http://opendatacommunities.org/id/unitary-authority/wiltshire,06/10/2022,1903458584,638.92,Ace Cabs ,139613,SP4 ,Community Services,MH AOWA South Locali,Transport Contracts,Third Party Payments,REVENUE
Wiltshire,http://opendatacommunities.org/id/unitary-authority/wiltshire,20/10/2022,5107468055,390,ACE Education Training LLP ,141474,N11 ,Resources,MembersCosts,Staff Training - General,Employee Related,REVENUE
Wiltshire,http://opendatacommunities.org/id/unitary-authority/wiltshire,17/10/2022,1903462607,3840,Ace Taxis Warminster Ace Taxis,131208,BA12,Neighbourhood & Planning,SEN 16+ Transport,Transport Contracts,Third Party Payments,REVENUE
Wiltshire,http://opendatacommunities.org/id/unitary-authority/wiltshire,13/10/2022,5107468084,775,Acer Tree Surgeons Ltd ,113296,BA13,Neighbourhood & Planning,Off Street Parking,Property Maintenance,Premises Related,REVENUE
Wiltshire,http://opendatacommunities.org/id/unitary-authority/wiltshire,17/10/2022,5107468216,880,Acer Tree Surgeons Ltd ,113296,BA13,Neighbourhood & Planning,Rights of Way,Grounds Maintenance,Premises Related,REVENUE
Wiltshire,http://opendatacommunities.org/id/unitary-authority/wiltshire,20/10/2022,5107468439,1100,Acer Tree Surgeons Ltd ,113296,BA13,Neighbourhood & Planning,Rights of Way,Grounds Maintenance,Premises Related,REVENUE
Wiltshire,http://opendatacommunities.org/id/unitary-authority/wiltshire,26/10/2022,1903468626,4927.48,Achieve Together  Ltd ,112721,BH24,Community Services,LDAS North,Adult Residential Placements - Spot Purchase,Third Party Payments,REVENUE
Wiltshire,http://opendatacommunities.org/id/unitary-authority/wiltshire,26/10/2022,1903468627,5847.36,Achieve Together  Ltd ,112721,BH24,Community Services,LDAS South,Adult Residential Placements - Spot Purchase,Third Party Payments,REVENUE
Wiltshire,http://opendatacommunities.org/id/unitary-authority/wiltshire,26/10/2022,1903468628,5296,Achieve Together  Ltd ,112721,BH24,Community Services,LDAS South,Adult Residential Placements - Spot Purchase,Third Party Payments,REVENUE
Wiltshire,http://opendatacommunities.org/id/unitary-authority/wiltshire,26/10/2022,1903468629,5685.04,Achieve Together  Ltd ,112721,BH24,Community Services,LDAS North,Adult Residential Placements - Spot Purchase,Third Party Payments,REVENUE
Wiltshire,http://opendatacommunities.org/id/unitary-authority/wiltshire,26/10/2022,1903469031,3938.76,Achieve Together Limited ,150698,KT22,Community Services,North Care Packages,Adult Residential Placements - Spot Purchase,Third Party Payments,REVENUE
Wiltshire,http://opendatacommunities.org/id/unitary-authority/wiltshire,26/10/2022,1903469032,6354.2,Achieve Together Limited ,150698,KT22,Community Services,MH AOWA South Locali,Adult Care Nursing Placements - Spot,Third Party Payments,REVENUE
Wiltshire,http://opendatacommunities.org/id/unitary-authority/wiltshire,26/10/2022,1903473158,3669.76,Achieve Together Limited ,150698,KT22,Community Services,LDAS West,Supported Living,Third Party Payments,REVENUE
Wiltshire,http://opendatacommunities.org/id/unitary-authority/wiltshire,26/10/2022,1903473159,417.36,Achieve Together Limited ,150698,KT22,Community Services,LDAS West,Supported Living,Third Party Payments,REVENUE
Wiltshire,http://opendatacommunities.org/id/unitary-authority/wiltshire,26/10/2022,1903468199,10536.64,Achieve Together Ltd ,110312,KT22,Community Services,LDAS West,Adult Residential Placements - Spot Purchase,Third Party Payments,REVENUE
Wiltshire,http://opendatacommunities.org/id/unitary-authority/wiltshire,26/10/2022,1903468200,13418.6,Achieve Together Ltd ,110312,KT22,Community Services,LDAS North,Adult Residential Placements - Spot Purchase,Third Party Payments,REVENUE
Wiltshire,http://opendatacommunities.org/id/unitary-authority/wiltshire,26/10/2022,1903468201,12043.68,Achieve Together Ltd ,110312,KT22,Community Services,LDAS West,Adult Residential Placements - Spot Purchase,Third Party Payments,REVENUE
Wiltshire,http://opendatacommunities.org/id/unitary-authority/wiltshire,26/10/2022,1903468202,11785.24,Achieve Together Ltd ,110312,KT22,Community Services,LDAS West,Adult Residential Placements - Spot Purchase,Third Party Payments,REVENUE
Wiltshire,http://opendatacommunities.org/id/unitary-authority/wiltshire,26/10/2022,1903468203,13209,Achieve Together Ltd ,110312,KT22,Community Services,LDAS West,Adult Residential Placements - Spot Purchase,Third Party Payments,REVENUE
Wiltshire,http://opendatacommunities.org/id/unitary-authority/wiltshire,26/10/2022,1903468204,13844.96,Achieve Together Ltd ,110312,KT22,Community Services,LDAS West,Adult Residential Placements - Spot Purchase,Third Party Payments,REVENUE
Wiltshire,http://opendatacommunities.org/id/unitary-authority/wiltshire,26/10/2022,1903468205,12206.32,Achieve Together Ltd ,110312,KT22,Community Services,LDAS West,Adult Residential Placements - Spot Purchase,Third Party Payments,REVENUE
Wiltshire,http://opendatacommunities.org/id/unitary-authority/wiltshire,26/10/2022,1903468206,11333.32,Achieve Together Ltd ,110312,KT22,Community Services,LDAS West,Adult Residential Placements - Spot Purchase,Third Party Payments,REVENUE
Wiltshire,http://opendatacommunities.org/id/unitary-authority/wiltshire,26/10/2022,1903468207,13983.88,Achieve Together Ltd ,110312,KT22,Community Services,LDAS West,Adult Residential Placements - Spot Purchase,Third Party Payments,REVENUE
Wiltshire,http://opendatacommunities.org/id/unitary-authority/wiltshire,26/10/2022,1903468208,16041.28,Achieve Together Ltd ,110312,KT22,Community Services,LDAS West,Adult Residential Placements - Spot Purchase,Third Party Payments,REVENUE
Wiltshire,http://opendatacommunities.org/id/unitary-authority/wiltshire,26/10/2022,1903468209,8564.12,Achieve Together Ltd ,110312,KT22,Community Services,LDAS North,Adult Residential Placements - Spot Purchase,Third Party Payments,REVENUE
Wiltshire,http://opendatacommunities.org/id/unitary-authority/wiltshire,26/10/2022,1903468210,8673.68,Achieve Together Ltd ,110312,KT22,Community Services,LDAS North,Adult Residential Placements - Spot Purchase,Third Party Payments,REVENUE
Wiltshire,http://opendatacommunities.org/id/unitary-authority/wiltshire,26/10/2022,1903468211,12884.92,Achieve Together Ltd ,110312,KT22,Community Services,LDAS West,Adult Residential Placements - Spot Purchase,Third Party Payments,REVENUE
Wiltshire,http://opendatacommunities.org/id/unitary-authority/wiltshire,26/10/2022,1903468212,11832.16,Achieve Together Ltd ,110312,KT22,Community Services,LDAS West,Adult Residential Placements - Spot Purchase,Third Party Payments,REVENUE
Wiltshire,http://opendatacommunities.org/id/unitary-authority/wiltshire,26/10/2022,1903468213,12642.68,Achieve Together Ltd ,110312,KT22,Community Services,LDAS West,Adult Residential Placements - Spot Purchase,Third Party Payments,REVENUE
Wiltshire,http://opendatacommunities.org/id/unitary-authority/wiltshire,26/10/2022,1903468214,12985.56,Achieve Together Ltd ,110312,KT22,Community Services,LDAS West,Adult Residential Placements - Spot Purchase,Third Party Payments,REVENUE
Wiltshire,http://opendatacommunities.org/id/unitary-authority/wiltshire,26/10/2022,1903468215,13137,Achieve Together Ltd ,110312,KT22,Community Services,LDAS West,Adult Residential Placements - Spot Purchase,Third Party Payments,REVENUE
Wiltshire,http://opendatacommunities.org/id/unitary-authority/wiltshire,26/10/2022,1903468216,13469.24,Achieve Together Ltd ,110312,KT22,Community Services,LDAS West,Adult Residential Placements - Spot Purchase,Third Party Payments,REVENUE
Wiltshire,http://opendatacommunities.org/id/unitary-authority/wiltshire,26/10/2022,1903468217,15316.24,Achieve Together Ltd ,110312,KT22,Community Services,LDAS West,Adult Residential Placements - Spot Purchase,Third Party Payments,REVENUE
Wiltshire,http://opendatacommunities.org/id/unitary-authority/wiltshire,26/10/2022,1903468218,14442.6,Achieve Together Ltd ,110312,KT22,Community Services,LDAS West,Adult Residential Placements - Spot Purchase,Third Party Payments,REVENUE
Wiltshire,http://opendatacommunities.org/id/unitary-authority/wiltshire,26/10/2022,1903472673,15330,Achieve Together Ltd ,110312,KT22,Community Services,LDAS West,Supported Living,Third Party Payments,REVENUE
Wiltshire,http://opendatacommunities.org/id/unitary-authority/wiltshire,18/10/2022,1903461599,3455.52,Acorn Education Trust - New Close ,148417,BA12,Children & Education,Free Enttlmnt 3 & 4y,Childcare Free Entitlement Early Years,Supplies and Services,REVENUE
Wiltshire,http://opendatacommunities.org/id/unitary-authority/wiltshire,21/10/2022,5107467736,350,Acorn Health & Safety Ltd ,128295,BS30,Resources,HR Central Training,Staff Training - General,Employee Related,REVENUE
Wiltshire,http://opendatacommunities.org/id/unitary-authority/wiltshire,13/10/2022,1903461075,5456.31,Action for the River Kennet (ARK) ,153377,SN8 ,Neighbourhood & Planning,NWD FiPL,Grants Expenditure,Supplies and Services,REVENUE
Wiltshire,http://opendatacommunities.org/id/unitary-authority/wiltshire,04/10/2022,5107466130,1690.39,Adams Morey Ltd ,110053,SP2 ,Neighbourhood & Planning,Fleet,Vehicle Repairs & Maintenance,Transport Related,REVENUE
Wiltshire,http://opendatacommunities.org/id/unitary-authority/wiltshire,04/10/2022,5107466131,335.77,Adams Morey Ltd ,110053,SP2 ,Neighbourhood & Planning,Fleet,Vehicle Repairs & Maintenance,Transport Related,REVENUE
Wiltshire,http://opendatacommunities.org/id/unitary-authority/wiltshire,14/10/2022,1903462422,17000,Adler  and  Allen Limited ,113326,HG1 ,Wiltshire Council,Wiltshire Council,Professional Fees,Supplies and Services,CAPITAL
Wiltshire,http://opendatacommunities.org/id/unitary-authority/wiltshire,17/10/2022,1903462594,606.31,AD-RAINS Limited ,100848,SN15,Neighbourhood & Planning,Mainstream 16+ Sec,Transport Contracts,Third Party Payments,REVENUE
Wiltshire,http://opendatacommunities.org/id/unitary-authority/wiltshire,17/10/2022,1903462594,3379.76,AD-RAINS Limited ,100848,SN15,Neighbourhood & Planning,Mainstream Secondary,Transport Contracts,Third Party Payments,REVENUE
Wiltshire,http://opendatacommunities.org/id/unitary-authority/wiltshire,17/10/2022,1903462595,3689.29,AD-RAINS Limited ,100848,SN15,Neighbourhood & Planning,Mainstream Secondary,Transport Contracts,Third Party Payments,REVENUE
Wiltshire,http://opendatacommunities.org/id/unitary-authority/wiltshire,17/10/2022,1903462602,3803.84,AD-RAINS Limited ,100848,SN15,Neighbourhood & Planning,Mainstream Secondary,Transport Contracts,Third Party Payments,REVENUE
Wiltshire,http://opendatacommunities.org/id/unitary-authority/wiltshire,17/10/2022,1903462603,3640.46,AD-RAINS Limited ,100848,SN15,Neighbourhood & Planning,Mainstream Secondary,Transport Contracts,Third Party Payments,REVENUE
Wiltshire,http://opendatacommunities.org/id/unitary-authority/wiltshire,17/10/2022,1903462606,3570,Adrian Shephard Taxi Service ,146753,BA12,Neighbourhood & Planning,SEN Secondary Tspt,Transport Contracts,Third Party Payments,REVENUE
Wiltshire,http://opendatacommunities.org/id/unitary-authority/wiltshire,14/10/2022,1903462360,1035.5,Adrian's Taxi ,138861,SN10,Neighbourhood & Planning,Mainstream Primary,Transport Contracts,Third Party Payments,REVENUE
Wiltshire,http://opendatacommunities.org/id/unitary-authority/wiltshire,14/10/2022,1903462360,1144.5,Adrian's Taxi ,138861,SN10,Neighbourhood & Planning,SEN Secondary Tspt,Transport Contracts,Third Party Payments,REVENUE
Wiltshire,http://opendatacommunities.org/id/unitary-authority/wiltshire,07/10/2022,5107467478,825,AELP ,143837,BS31,Neighbourhood & Planning,Multiply,Professional Subscriptions/Memberships,Employee Related,REVENUE
Wiltshire,http://opendatacommunities.org/id/unitary-authority/wiltshire,03/10/2022,5107466529,23131.25,Agilisys Limited ,110068,W12 ,Wiltshire Council,Wiltshire Council,Consultants Fees,Supplies and Services,CAPITAL
Wiltshire,http://opendatacommunities.org/id/unitary-authority/wiltshire,26/10/2022,1903473135,5716.4,Agincare Enable Ltd ,150043,DT5 ,Community Services,LDAS West,Supported Living,Third Party Payments,REVENUE
Wiltshire,http://opendatacommunities.org/id/unitary-authority/wiltshire,26/10/2022,1903473136,4922.84,Agincare Enable Ltd ,150043,DT5 ,Community Services,LDAS West,Supported Living,Third Party Payments,REVENUE
Wiltshire,http://opendatacommunities.org/id/unitary-authority/wiltshire,26/10/2022,1903473137,4144.84,Agincare Enable Ltd ,150043,DT5 ,Community Services,LDAS West,Supported Living,Third Party Payments,REVENUE
Wiltshire,http://opendatacommunities.org/id/unitary-authority/wiltshire,26/10/2022,1903473138,5607.56,Agincare Enable Ltd ,150043,DT5 ,Community Services,LDAS West,Supported Living,Third Party Payments,REVENUE
Wiltshire,http://opendatacommunities.org/id/unitary-authority/wiltshire,26/10/2022,1903473139,3911.44,Agincare Enable Ltd ,150043,DT5 ,Community Services,LDAS West,Supported Living,Third Party Payments,REVENUE
Wiltshire,http://opendatacommunities.org/id/unitary-authority/wiltshire,26/10/2022,1903473140,8579.44,Agincare Enable Ltd ,150043,DT5 ,Community Services,LDAS West,Supported Living,Third Party Payments,REVENUE
Wiltshire,http://opendatacommunities.org/id/unitary-authority/wiltshire,26/10/2022,1903473141,4300.44,Agincare Enable Ltd ,150043,DT5 ,Community Services,LDAS West,Supported Living,Third Party Payments,REVENUE
Wiltshire,http://opendatacommunities.org/id/unitary-authority/wiltshire,26/10/2022,1903473142,4222.64,Agincare Enable Ltd ,150043,DT5 ,Community Services,LDAS West,Supported Living,Third Party Payments,REVENUE
Wiltshire,http://opendatacommunities.org/id/unitary-authority/wiltshire,26/10/2022,1903473143,5389.64,Agincare Enable Ltd ,150043,DT5 ,Community Services,LDAS West,Supported Living,Third Party Payments,REVENUE
Wiltshire,http://opendatacommunities.org/id/unitary-authority/wiltshire,26/10/2022,1903473144,1945,Agincare Enable Ltd ,150043,DT5 ,Community Services,LDAS West,Supported Living,Third Party Payments,REVENUE
Wiltshire,http://opendatacommunities.org/id/unitary-authority/wiltshire,26/10/2022,1903473145,3833.64,Agincare Enable Ltd ,150043,DT5 ,Community Services,LDAS West,Supported Living,Third Party Payments,REVENUE
Wiltshire,http://opendatacommunities.org/id/unitary-authority/wiltshire,26/10/2022,1903473146,4144.84,Agincare Enable Ltd ,150043,DT5 ,Community Services,LDAS West,Supported Living,Third Party Payments,REVENUE
Wiltshire,http://opendatacommunities.org/id/unitary-authority/wiltshire,26/10/2022,1903473147,3833.64,Agincare Enable Ltd ,150043,DT5 ,Community Services,LDAS West,Supported Living,Third Party Payments,REVENUE
Wiltshire,http://opendatacommunities.org/id/unitary-authority/wiltshire,26/10/2022,1903473148,4067.04,Agincare Enable Ltd ,150043,DT5 ,Community Services,LDAS West,Supported Living,Third Party Payments,REVENUE
Wiltshire,http://opendatacommunities.org/id/unitary-authority/wiltshire,26/10/2022,1903473149,4666.08,Agincare Enable Ltd ,150043,DT5 ,Community Services,LDAS West,Supported Living,Third Party Payments,REVENUE
Wiltshire,http://opendatacommunities.org/id/unitary-authority/wiltshire,26/10/2022,1903473150,3133.44,Agincare Enable Ltd ,150043,DT5 ,Community Services,MH AOWA West Localit,Supported Living,Third Party Payments,REVENUE
Wiltshire,http://opendatacommunities.org/id/unitary-authority/wiltshire,26/10/2022,1903472656,700.04,Agincare Ltd ,110069,DT5 ,Community Services,LDAS West,Supported Living,Third Party Payments,REVENUE
Wiltshire,http://opendatacommunities.org/id/unitary-authority/wiltshire,26/10/2022,1903472658,544.6,Agincare Ltd ,110069,DT5 ,Community Services,North Care Packages,Supported Living,Third Party Payments,REVENUE
Wiltshire,http://opendatacommunities.org/id/unitary-authority/wiltshire,26/10/2022,1903472662,544.6,Agincare Ltd ,110069,DT5 ,Community Services,North Care Packages,Supported Living,Third Party Payments,REVENUE
Wiltshire,http://opendatacommunities.org/id/unitary-authority/wiltshire,26/10/2022,1903472665,622.4,Agincare Ltd ,110069,DT5 ,Community Services,LDAS North,Supported Living,Third Party Payments,REVENUE
Wiltshire,http://opendatacommunities.org/id/unitary-authority/wiltshire,26/10/2022,1903475044,1437.6,Agincare Ltd ,110069,DT5 ,Community Services,North Care Packages,Adult Domiciliary Care Contribution,Income,REVENUE
Wiltshire,http://opendatacommunities.org/id/unitary-authority/wiltshire,26/10/2022,1903475045,472.9,Agincare Ltd ,110069,DT5 ,Community Services,West Care Packages,Adult Domiciliary Care,Third Party Payments,REVENUE
Wiltshire,http://opendatacommunities.org/id/unitary-authority/wiltshire,26/10/2022,1903475046,620.24,Agincare Ltd ,110069,DT5 ,Community Services,LDAS North,Adult Domiciliary Care,Third Party Payments,REVENUE
Wiltshire,http://opendatacommunities.org/id/unitary-authority/wiltshire,26/10/2022,1903475047,840.56,Agincare Ltd ,110069,DT5 ,Community Services,North Care Packages,Adult Domiciliary Care,Third Party Payments,REVENUE
Wiltshire,http://opendatacommunities.org/id/unitary-authority/wiltshire,26/10/2022,1903475048,535.24,Agincare Ltd ,110069,DT5 ,Community Services,North Care Packages,Adult Domiciliary Care Contribution,Income,REVENUE
Wiltshire,http://opendatacommunities.org/id/unitary-authority/wiltshire,26/10/2022,1903475050,286.13,Agincare Ltd ,110069,DT5 ,Community Services,North Care Packages,Adult Domiciliary Care,Third Party Payments,REVENUE
Wiltshire,http://opendatacommunities.org/id/unitary-authority/wiltshire,26/10/2022,1903475051,788.42,Agincare Ltd ,110069,DT5 ,Community Services,North Care Packages,Adult Domiciliary Care Contribution,Income,REVENUE
Wiltshire,http://opendatacommunities.org/id/unitary-authority/wiltshire,26/10/2022,1903475052,286.13,Agincare Ltd ,110069,DT5 ,Community Services,North Care Packages,Adult Domiciliary Care,Third Party Payments,REVENUE
Wiltshire,http://opendatacommunities.org/id/unitary-authority/wiltshire,26/10/2022,1903475053,250.12,Agincare Ltd ,110069,DT5 ,Community Services,West Care Packages,Adult Domiciliary Care,Third Party Payments,REVENUE
Wiltshire,http://opendatacommunities.org/id/unitary-authority/wiltshire,26/10/2022,1903475057,968.96,Agincare Ltd ,110069,DT5 ,Community Services,North Care Packages,Adult Domiciliary Care Contribution,Income,REVENUE
Wiltshire,http://opendatacommunities.org/id/unitary-authority/wiltshire,26/10/2022,1903475058,1002.48,Agincare Ltd ,110069,DT5 ,Community Services,West Care Packages,Adult Domiciliary Care Contribution,Income,REVENUE
Wiltshire,http://opendatacommunities.org/id/unitary-authority/wiltshire,26/10/2022,1903475059,1275.47,Agincare Ltd ,110069,DT5 ,Community Services,North Care Packages,Adult Domiciliary Care,Third Party Payments,REVENUE
Wiltshire,http://opendatacommunities.org/id/unitary-authority/wiltshire,28/10/2022,1903477797,341.28,Agincare Ltd ,110069,DT5 ,Community Services,North Care Packages,Adult Domiciliary Care,Third Party Payments,REVENUE
Wiltshire,http://opendatacommunities.org/id/unitary-authority/wiltshire,28/10/2022,1903477798,418.19,Agincare Ltd ,110069,DT5 ,Community Services,North Care Packages,Adult Domiciliary Care,Third Party Payments,REVENUE
Wiltshire,http://opendatacommunities.org/id/unitary-authority/wiltshire,12/10/2022,1903460579,2349.15,Akcess Ltd ,101402,SN2 ,Neighbourhood & Planning,Mainstream Primary,Transport Contracts,Third Party Payments,REVENUE
Wiltshire,http://opendatacommunities.org/id/unitary-authority/wiltshire,12/10/2022,1903460581,2877.34,Akcess Ltd ,101402,SN2 ,Neighbourhood & Planning,Mainstream Secondary,Transport Contracts,Third Party Payments,REVENUE
Wiltshire,http://opendatacommunities.org/id/unitary-authority/wiltshire,12/10/2022,1903460582,2054.2,Akcess Ltd ,101402,SN2 ,Neighbourhood & Planning,Mainstream Primary,Transport Contracts,Third Party Payments,REVENUE
Wiltshire,http://opendatacommunities.org/id/unitary-authority/wiltshire,12/10/2022,1903460584,3631.2,Akcess Ltd ,101402,SN2 ,Neighbourhood & Planning,SEN Secondary Tspt,Transport Contracts,Third Party Payments,REVENUE
Wiltshire,http://opendatacommunities.org/id/unitary-authority/wiltshire,12/10/2022,1903460585,364.78,Akcess Ltd ,101402,SN2 ,Neighbourhood & Planning,Mainstream 16+ Sec,Transport Contracts,Third Party Payments,REVENUE
Wiltshire,http://opendatacommunities.org/id/unitary-authority/wiltshire,12/10/2022,1903460585,2197.84,Akcess Ltd ,101402,SN2 ,Neighbourhood & Planning,Mainstream Secondary,Transport Contracts,Third Party Payments,REVENUE
Wiltshire,http://opendatacommunities.org/id/unitary-authority/wiltshire,31/10/2022,1903477948,1333.33,Akcess Ltd ,101402,SN2 ,Community Services,Afghan Resettleme,Transport Contracts,Third Party Payments,REVENUE
Wiltshire,http://opendatacommunities.org/id/unitary-authority/wiltshire,31/10/2022,1903477948,2800,Akcess Ltd ,101402,SN2 ,Neighbourhood & Planning,SEN Primary Transprt,Transport Contracts,Third Party Payments,REVENUE
Wiltshire,http://opendatacommunities.org/id/unitary-authority/wiltshire,07/10/2022,1903458884,608.8,Alabare Christian Care Centre ,100837,SP2 ,Community Services,LDAS South,Adult Day Care - Spot Income Contribution,Income,REVENUE
Wiltshire,http://opendatacommunities.org/id/unitary-authority/wiltshire,07/10/2022,1903458886,405,Alabare Christian Care Centre ,100837,SP2 ,Community Services,LDAS South,Adult Day Care Contracts,Third Party Payments,REVENUE
Wiltshire,http://opendatacommunities.org/id/unitary-authority/wiltshire,07/10/2022,1903458887,405,Alabare Christian Care Centre ,100837,SP2 ,Community Services,LDAS South,Adult Day Care Contracts,Third Party Payments,REVENUE
Wiltshire,http://opendatacommunities.org/id/unitary-authority/wiltshire,07/10/2022,1903458888,540,Alabare Christian Care Centre ,100837,SP2 ,Community Services,LDAS South,Adult Day Care Contracts,Third Party Payments,REVENUE
Wiltshire,http://opendatacommunities.org/id/unitary-authority/wiltshire,07/10/2022,1903458889,405,Alabare Christian Care Centre ,100837,SP2 ,Community Services,LDAS South,Adult Day Care - Spot Income Contribution,Income,REVENUE
Wiltshire,http://opendatacommunities.org/id/unitary-authority/wiltshire,07/10/2022,1903458890,585,Alabare Christian Care Centre ,100837,SP2 ,Community Services,LDAS South,Adult Day Care Contracts,Third Party Payments,REVENUE
Wiltshire,http://opendatacommunities.org/id/unitary-authority/wiltshire,07/10/2022,1903458892,450,Alabare Christian Care Centre ,100837,SP2 ,Community Services,LDAS South,Adult Day Care Contracts,Third Party Payments,REVENUE
Wiltshire,http://opendatacommunities.org/id/unitary-authority/wiltshire,07/10/2022,1903458893,630,Alabare Christian Care Centre ,100837,SP2 ,Community Services,LDAS South,Adult Day Care Contracts,Third Party Payments,REVENUE
Wiltshire,http://opendatacommunities.org/id/unitary-authority/wiltshire,07/10/2022,1903458894,585,Alabare Christian Care Centre ,100837,SP2 ,Community Services,LDAS South,Adult Day Care Contracts,Third Party Payments,REVENUE
Wiltshire,http://opendatacommunities.org/id/unitary-authority/wiltshire,07/10/2022,1903458895,630,Alabare Christian Care Centre ,100837,SP2 ,Community Services,LDAS South,Adult Day Care - Spot Income Contribution,Income,REVENUE
Wiltshire,http://opendatacommunities.org/id/unitary-authority/wiltshire,07/10/2022,1903458899,810,Alabare Christian Care Centre ,100837,SP2 ,Community Services,South Care Packages,Adult Day Care Contracts,Third Party Payments,REVENUE
Wiltshire,http://opendatacommunities.org/id/unitary-authority/wiltshire,07/10/2022,1903458901,405,Alabare Christian Care Centre ,100837,SP2 ,Community Services,LDAS South,Adult Day Care Contracts,Third Party Payments,REVENUE
Wiltshire,http://opendatacommunities.org/id/unitary-authority/wiltshire,07/10/2022,1903458902,360,Alabare Christian Care Centre ,100837,SP2 ,Community Services,LDAS South,Adult Day Care Contracts,Third Party Payments,REVENUE
Wiltshire,http://opendatacommunities.org/id/unitary-authority/wiltshire,07/10/2022,1903458904,405,Alabare Christian Care Centre ,100837,SP2 ,Community Services,LDAS South,Adult Day Care Contracts,Third Party Payments,REVENUE
Wiltshire,http://opendatacommunities.org/id/unitary-authority/wiltshire,07/10/2022,1903458909,450,Alabare Christian Care Centre ,100837,SP2 ,Community Services,LDAS South,Adult Day Care Contracts,Third Party Payments,REVENUE
Wiltshire,http://opendatacommunities.org/id/unitary-authority/wiltshire,07/10/2022,1903458910,405,Alabare Christian Care Centre ,100837,SP2 ,Community Services,LDAS South,Adult Day Care Contracts,Third Party Payments,REVENUE
Wiltshire,http://opendatacommunities.org/id/unitary-authority/wiltshire,10/10/2022,1903459210,405,Alabare Christian Care Centre ,100837,SP2 ,Community Services,LDAS South,Adult Day Care Contracts,Third Party Payments,REVENUE
Wiltshire,http://opendatacommunities.org/id/unitary-authority/wiltshire,10/10/2022,1903459211,315,Alabare Christian Care Centre ,100837,SP2 ,Community Services,LDAS South,Adult Day Care Contracts,Third Party Payments,REVENUE
Wiltshire,http://opendatacommunities.org/id/unitary-authority/wiltshire,10/10/2022,1903459212,585,Alabare Christian Care Centre ,100837,SP2 ,Community Services,LDAS South,Adult Day Care Contracts,Third Party Payments,REVENUE
Wiltshire,http://opendatacommunities.org/id/unitary-authority/wiltshire,10/10/2022,1903459213,405,Alabare Christian Care Centre ,100837,SP2 ,Community Services,LDAS South,Adult Day Care Contracts,Third Party Payments,REVENUE
Wiltshire,http://opendatacommunities.org/id/unitary-authority/wiltshire,10/10/2022,1903459214,630,Alabare Christian Care Centre ,100837,SP2 ,Community Services,LDAS South,Adult Day Care Contracts,Third Party Payments,REVENUE
Wiltshire,http://opendatacommunities.org/id/unitary-authority/wiltshire,10/10/2022,1903459216,360,Alabare Christian Care Centre ,100837,SP2 ,Community Services,LDAS South,Adult Day Care Contracts,Third Party Payments,REVENUE
Wiltshire,http://opendatacommunities.org/id/unitary-authority/wiltshire,10/10/2022,1903459217,585,Alabare Christian Care Centre ,100837,SP2 ,Community Services,LDAS South,Adult Day Care Contracts,Third Party Payments,REVENUE
Wiltshire,http://opendatacommunities.org/id/unitary-authority/wiltshire,10/10/2022,1903459218,630,Alabare Christian Care Centre ,100837,SP2 ,Community Services,LDAS South,Adult Day Care Contracts,Third Party Payments,REVENUE
Wiltshire,http://opendatacommunities.org/id/unitary-authority/wiltshire,10/10/2022,1903459219,585,Alabare Christian Care Centre ,100837,SP2 ,Community Services,LDAS South,Adult Day Care Contracts,Third Party Payments,REVENUE
Wiltshire,http://opendatacommunities.org/id/unitary-authority/wiltshire,10/10/2022,1903459223,720,Alabare Christian Care Centre ,100837,SP2 ,Community Services,South Care Packages,Adult Day Care Contracts,Third Party Payments,REVENUE
Wiltshire,http://opendatacommunities.org/id/unitary-authority/wiltshire,10/10/2022,1903459225,315,Alabare Christian Care Centre ,100837,SP2 ,Community Services,LDAS South,Adult Day Care Contracts,Third Party Payments,REVENUE
Wiltshire,http://opendatacommunities.org/id/unitary-authority/wiltshire,10/10/2022,1903459226,360,Alabare Christian Care Centre ,100837,SP2 ,Community Services,LDAS South,Adult Day Care Contracts,Third Party Payments,REVENUE
Wiltshire,http://opendatacommunities.org/id/unitary-authority/wiltshire,10/10/2022,1903459228,315,Alabare Christian Care Centre ,100837,SP2 ,Community Services,LDAS South,Adult Day Care Contracts,Third Party Payments,REVENUE
Wiltshire,http://opendatacommunities.org/id/unitary-authority/wiltshire,10/10/2022,1903459233,360,Alabare Christian Care Centre ,100837,SP2 ,Community Services,LDAS South,Adult Day Care Contracts,Third Party Payments,REVENUE
Wiltshire,http://opendatacommunities.org/id/unitary-authority/wiltshire,10/10/2022,1903459234,405,Alabare Christian Care Centre ,100837,SP2 ,Community Services,LDAS South,Adult Day Care Contracts,Third Party Payments,REVENUE
Wiltshire,http://opendatacommunities.org/id/unitary-authority/wiltshire,10/10/2022,1903459237,405,Alabare Christian Care Centre ,100837,SP2 ,Community Services,LDAS South,Adult Day Care Contracts,Third Party Payments,REVENUE
Wiltshire,http://opendatacommunities.org/id/unitary-authority/wiltshire,10/10/2022,1903459239,315,Alabare Christian Care Centre ,100837,SP2 ,Community Services,LDAS South,Adult Day Care Contracts,Third Party Payments,REVENUE
Wiltshire,http://opendatacommunities.org/id/unitary-authority/wiltshire,10/10/2022,1903459241,315,Alabare Christian Care Centre ,100837,SP2 ,Community Services,LDAS South,Adult Day Care Contracts,Third Party Payments,REVENUE
Wiltshire,http://opendatacommunities.org/id/unitary-authority/wiltshire,10/10/2022,1903459247,315,Alabare Christian Care Centre ,100837,SP2 ,Community Services,MH AOWA South Locali,Adult Day Care Contracts,Third Party Payments,REVENUE
Wiltshire,http://opendatacommunities.org/id/unitary-authority/wiltshire,10/10/2022,1903459248,563.8,Alabare Christian Care Centre ,100837,SP2 ,Community Services,LDAS South,Adult Day Care - Spot Income Contribution,Income,REVENUE
Wiltshire,http://opendatacommunities.org/id/unitary-authority/wiltshire,10/10/2022,1903459249,315,Alabare Christian Care Centre ,100837,SP2 ,Community Services,LDAS South,Adult Day Care Contracts,Third Party Payments,REVENUE
Wiltshire,http://opendatacommunities.org/id/unitary-authority/wiltshire,10/10/2022,1903459250,540,Alabare Christian Care Centre ,100837,SP2 ,Community Services,MH AOWA N&E Locality,Adult Day Care Contracts,Third Party Payments,REVENUE
Wiltshire,http://opendatacommunities.org/id/unitary-authority/wiltshire,10/10/2022,1903459252,540,Alabare Christian Care Centre ,100837,SP2 ,Community Services,MH AOWA South Locali,Adult Day Care Contracts,Third Party Payments,REVENUE
Wiltshire,http://opendatacommunities.org/id/unitary-authority/wiltshire,10/10/2022,1903459256,720,Alabare Christian Care Centre ,100837,SP2 ,Community Services,South Care Packages,Adult Day Care Contracts,Third Party Payments,REVENUE
Wiltshire,http://opendatacommunities.org/id/unitary-authority/wiltshire,10/10/2022,1903459259,315,Alabare Christian Care Centre ,100837,SP2 ,Community Services,LDAS South,Adult Day Care Contracts,Third Party Payments,REVENUE
Wiltshire,http://opendatacommunities.org/id/unitary-authority/wiltshire,10/10/2022,1903459260,3593.92,Alabare Christian Care Centre ,100837,SP2 ,Community Services,MH AOWA South Locali,Adult Domiciliary Care,Third Party Payments,REVENUE
Wiltshire,http://opendatacommunities.org/id/unitary-authority/wiltshire,20/10/2022,1903470010,280,Alabare Christian Care Centre ,100837,SP2 ,Community Services,LDAS West,Adult Day Care Contracts,Third Party Payments,REVENUE
Wiltshire,http://opendatacommunities.org/id/unitary-authority/wiltshire,20/10/2022,1903470011,440,Alabare Christian Care Centre ,100837,SP2 ,Community Services,LDAS West,Adult Day Care Contracts,Third Party Payments,REVENUE
Wiltshire,http://opendatacommunities.org/id/unitary-authority/wiltshire,20/10/2022,1903470012,360,Alabare Christian Care Centre ,100837,SP2 ,Community Services,LDAS West,Adult Day Care Contracts,Third Party Payments,REVENUE
Wiltshire,http://opendatacommunities.org/id/unitary-authority/wiltshire,20/10/2022,1903470013,360,Alabare Christian Care Centre ,100837,SP2 ,Community Services,LDAS South,Adult Day Care - Spot Income Contribution,Income,REVENUE
Wiltshire,http://opendatacommunities.org/id/unitary-authority/wiltshire,26/10/2022,1903472459,3738.72,Alabare Christian Care Centre ,100837,SP2 ,Community Services,LDAS West,Supported Living,Third Party Payments,REVENUE
Wiltshire,http://opendatacommunities.org/id/unitary-authority/wiltshire,26/10/2022,1903472460,6227.92,Alabare Christian Care Centre ,100837,SP2 ,Community Services,South Care Packages,Supported Living,Third Party Payments,REVENUE
Wiltshire,http://opendatacommunities.org/id/unitary-authority/wiltshire,26/10/2022,1903472462,388.92,Alabare Christian Care Centre ,100837,SP2 ,Community Services,MH AOWA South Locali,Supported Living,Third Party Payments,REVENUE
Wiltshire,http://opendatacommunities.org/id/unitary-authority/wiltshire,26/10/2022,1903472463,1244.8,Alabare Christian Care Centre ,100837,SP2 ,Community Services,Adult Care Gross Loa,Supported Living,Third Party Payments,REVENUE
Wiltshire,http://opendatacommunities.org/id/unitary-authority/wiltshire,26/10/2022,1903472464,2903.44,Alabare Christian Care Centre ,100837,SP2 ,Community Services,LDAS South,Supported Living,Third Party Payments,REVENUE
Wiltshire,http://opendatacommunities.org/id/unitary-authority/wiltshire,26/10/2022,1903472465,797.28,Alabare Christian Care Centre ,100837,SP2 ,Community Services,LDAS South,Supported Living,Third Party Payments,REVENUE
Wiltshire,http://opendatacommunities.org/id/unitary-authority/wiltshire,26/10/2022,1903472466,2760.6,Alabare Christian Care Centre ,100837,SP2 ,Community Services,LDAS South,Supported Living,Third Party Payments,REVENUE
Wiltshire,http://opendatacommunities.org/id/unitary-authority/wiltshire,26/10/2022,1903472469,2787.12,Alabare Christian Care Centre ,100837,SP2 ,Community Services,LDAS South,Supported Living,Third Party Payments,REVENUE
Wiltshire,http://opendatacommunities.org/id/unitary-authority/wiltshire,26/10/2022,1903472470,3912.84,Alabare Christian Care Centre ,100837,SP2 ,Community Services,LDAS South,Supported Living,Third Party Payments,REVENUE
Wiltshire,http://opendatacommunities.org/id/unitary-authority/wiltshire,26/10/2022,1903472471,2483.96,Alabare Christian Care Centre ,100837,SP2 ,Community Services,LDAS South,Supported Living,Third Party Payments,REVENUE
Wiltshire,http://opendatacommunities.org/id/unitary-authority/wiltshire,26/10/2022,1903472472,985.28,Alabare Christian Care Centre ,100837,SP2 ,Community Services,LDAS South,Supported Living,Third Party Payments,REVENUE
Wiltshire,http://opendatacommunities.org/id/unitary-authority/wiltshire,26/10/2022,1903472473,829.52,Alabare Christian Care Centre ,100837,SP2 ,Community Services,LDAS South,Supported Living,Third Party Payments,REVENUE
Wiltshire,http://opendatacommunities.org/id/unitary-authority/wiltshire,26/10/2022,1903472474,8392.8,Alabare Christian Care Centre ,100837,SP2 ,Community Services,LDAS South,Supported Living,Third Party Payments,REVENUE
Wiltshire,http://opendatacommunities.org/id/unitary-authority/wiltshire,26/10/2022,1903472475,1439,Alabare Christian Care Centre ,100837,SP2 ,Community Services,LDAS South,Supported Living,Third Party Payments,REVENUE
Wiltshire,http://opendatacommunities.org/id/unitary-authority/wiltshire,26/10/2022,1903472476,622.28,Alabare Christian Care Centre ,100837,SP2 ,Community Services,LDAS South,Supported Living,Third Party Payments,REVENUE
Wiltshire,http://opendatacommunities.org/id/unitary-authority/wiltshire,26/10/2022,1903472477,3925.76,Alabare Christian Care Centre ,100837,SP2 ,Community Services,LDAS South,Supported Living,Third Party Payments,REVENUE
Wiltshire,http://opendatacommunities.org/id/unitary-authority/wiltshire,26/10/2022,1903472478,2601.72,Alabare Christian Care Centre ,100837,SP2 ,Community Services,LDAS South,Supported Living,Third Party Payments,REVENUE
Wiltshire,http://opendatacommunities.org/id/unitary-authority/wiltshire,26/10/2022,1903472479,2666.6,Alabare Christian Care Centre ,100837,SP2 ,Community Services,LDAS South,Supported Living,Third Party Payments,REVENUE
Wiltshire,http://opendatacommunities.org/id/unitary-authority/wiltshire,26/10/2022,1903472480,2588.8,Alabare Christian Care Centre ,100837,SP2 ,Community Services,LDAS South,Supported Living,Third Party Payments,REVENUE
Wiltshire,http://opendatacommunities.org/id/unitary-authority/wiltshire,26/10/2022,1903472481,311.12,Alabare Christian Care Centre ,100837,SP2 ,Community Services,LDAS South,Supported Living,Third Party Payments,REVENUE
Wiltshire,http://opendatacommunities.org/id/unitary-authority/wiltshire,26/10/2022,1903472482,1127.88,Alabare Christian Care Centre ,100837,SP2 ,Community Services,LDAS South,Supported Living,Third Party Payments,REVENUE
Wiltshire,http://opendatacommunities.org/id/unitary-authority/wiltshire,26/10/2022,1903472483,3243.44,Alabare Christian Care Centre ,100837,SP2 ,Community Services,LDAS South,Supported Living,Third Party Payments,REVENUE
Wiltshire,http://opendatacommunities.org/id/unitary-authority/wiltshire,26/10/2022,1903472484,829.52,Alabare Christian Care Centre ,100837,SP2 ,Community Services,LDAS South,Supported Living,Third Party Payments,REVENUE
Wiltshire,http://opendatacommunities.org/id/unitary-authority/wiltshire,26/10/2022,1903472485,3828.52,Alabare Christian Care Centre ,100837,SP2 ,Community Services,LDAS South,Supported Living,Third Party Payments,REVENUE
Wiltshire,http://opendatacommunities.org/id/unitary-authority/wiltshire,26/10/2022,1903472486,3107.56,Alabare Christian Care Centre ,100837,SP2 ,Community Services,LDAS South,Supported Living,Third Party Payments,REVENUE
Wiltshire,http://opendatacommunities.org/id/unitary-authority/wiltshire,26/10/2022,1903472487,3360.4,Alabare Christian Care Centre ,100837,SP2 ,Community Services,LDAS South,Supported Living,Third Party Payments,REVENUE
Wiltshire,http://opendatacommunities.org/id/unitary-authority/wiltshire,26/10/2022,1903472488,3426.6,Alabare Christian Care Centre ,100837,SP2 ,Community Services,LDAS South,Supported Living,Third Party Payments,REVENUE
Wiltshire,http://opendatacommunities.org/id/unitary-authority/wiltshire,26/10/2022,1903472489,3072.48,Alabare Christian Care Centre ,100837,SP2 ,Community Services,LDAS South,Supported Living,Third Party Payments,REVENUE
Wiltshire,http://opendatacommunities.org/id/unitary-authority/wiltshire,26/10/2022,1903472490,3049.16,Alabare Christian Care Centre ,100837,SP2 ,Community Services,LDAS South,Supported Living,Third Party Payments,REVENUE
Wiltshire,http://opendatacommunities.org/id/unitary-authority/wiltshire,26/10/2022,1903472491,3049.16,Alabare Christian Care Centre ,100837,SP2 ,Community Services,LDAS South,Supported Living,Third Party Payments,REVENUE
Wiltshire,http://opendatacommunities.org/id/unitary-authority/wiltshire,26/10/2022,1903472492,2459.16,Alabare Christian Care Centre ,100837,SP2 ,Community Services,LDAS South,Supported Living,Third Party Payments,REVENUE
Wiltshire,http://opendatacommunities.org/id/unitary-authority/wiltshire,26/10/2022,1903472493,552.64,Alabare Christian Care Centre ,100837,SP2 ,Community Services,LDAS South,Supported Living,Third Party Payments,REVENUE
Wiltshire,http://opendatacommunities.org/id/unitary-authority/wiltshire,26/10/2022,1903472494,1452.12,Alabare Christian Care Centre ,100837,SP2 ,Community Services,LDAS South,Supported Living,Third Party Payments,REVENUE
Wiltshire,http://opendatacommunities.org/id/unitary-authority/wiltshire,26/10/2022,1903472495,2761,Alabare Christian Care Centre ,100837,SP2 ,Community Services,LDAS South,Supported Living,Third Party Payments,REVENUE
Wiltshire,http://opendatacommunities.org/id/unitary-authority/wiltshire,26/10/2022,1903472504,327.36,Alabare Christian Care Centre ,100837,SP2 ,Community Services,LDAS South,Supported Living Contribution,Income,REVENUE
Wiltshire,http://opendatacommunities.org/id/unitary-authority/wiltshire,26/10/2022,1903472505,327.36,Alabare Christian Care Centre ,100837,SP2 ,Community Services,LDAS South,Supported Living Contribution,Income,REVENUE
Wiltshire,http://opendatacommunities.org/id/unitary-authority/wiltshire,26/10/2022,1903472506,327.36,Alabare Christian Care Centre ,100837,SP2 ,Community Services,LDAS South,Supported Living Contribution,Income,REVENUE
Wiltshire,http://opendatacommunities.org/id/unitary-authority/wiltshire,03/10/2022,5107466987,38613.12,Alabare Christian Care Centre ,100837,SP2 ,Neighbourhood & Planning,Housing Solutions,Other Contracts,Third Party Payments,REVENUE
Wiltshire,http://opendatacommunities.org/id/unitary-authority/wiltshire,03/10/2022,5107466988,145099.76,Alabare Christian Care Centre ,100837,SP2 ,Neighbourhood & Planning,Housing Solutions,Other Contracts,Third Party Payments,REVENUE
Wiltshire,http://opendatacommunities.org/id/unitary-authority/wiltshire,11/10/2022,1903459411,7007.33,ALD Automotive ,154156,BS16,Neighbourhood & Planning,Fleet,Commercial Leased Vehicles,Transport Related,REVENUE
Wiltshire,http://opendatacommunities.org/id/unitary-authority/wiltshire,11/10/2022,1903459412,7007.33,ALD Automotive ,154156,BS16,Neighbourhood & Planning,Fleet,Commercial Leased Vehicles,Transport Related,REVENUE
Wiltshire,http://opendatacommunities.org/id/unitary-authority/wiltshire,11/10/2022,1903459413,7007.33,ALD Automotive ,154156,BS16,Neighbourhood & Planning,Fleet,Commercial Leased Vehicles,Transport Related,REVENUE
Wiltshire,http://opendatacommunities.org/id/unitary-authority/wiltshire,11/10/2022,1903459414,7007.33,ALD Automotive ,154156,BS16,Neighbourhood & Planning,Fleet,Commercial Leased Vehicles,Transport Related,REVENUE
Wiltshire,http://opendatacommunities.org/id/unitary-authority/wiltshire,11/10/2022,1903459415,7007.33,ALD Automotive ,154156,BS16,Neighbourhood & Planning,Fleet,Commercial Leased Vehicles,Transport Related,REVENUE
Wiltshire,http://opendatacommunities.org/id/unitary-authority/wiltshire,11/10/2022,1903459416,7007.33,ALD Automotive ,154156,BS16,Neighbourhood & Planning,Fleet,Commercial Leased Vehicles,Transport Related,REVENUE
Wiltshire,http://opendatacommunities.org/id/unitary-authority/wiltshire,11/10/2022,1903459752,7007.33,ALD Automotive ,154156,BS16,Neighbourhood & Planning,Fleet,Commercial Leased Vehicles,Transport Related,REVENUE
Wiltshire,http://opendatacommunities.org/id/unitary-authority/wiltshire,11/10/2022,1903459753,7007.33,ALD Automotive ,154156,BS16,Neighbourhood & Planning,Fleet,Commercial Leased Vehicles,Transport Related,REVENUE
Wiltshire,http://opendatacommunities.org/id/unitary-authority/wiltshire,11/10/2022,1903459754,7007.33,ALD Automotive ,154156,BS16,Neighbourhood & Planning,Fleet,Commercial Leased Vehicles,Transport Related,REVENUE
Wiltshire,http://opendatacommunities.org/id/unitary-authority/wiltshire,11/10/2022,1903459755,7007.33,ALD Automotive ,154156,BS16,Neighbourhood & Planning,Fleet,Commercial Leased Vehicles,Transport Related,REVENUE
Wiltshire,http://opendatacommunities.org/id/unitary-authority/wiltshire,11/10/2022,1903459826,7007.33,ALD Automotive ,154156,BS16,Neighbourhood & Planning,Fleet,Commercial Leased Vehicles,Transport Related,REVENUE
Wiltshire,http://opendatacommunities.org/id/unitary-authority/wiltshire,26/10/2022,1903472354,2057.14,Aldbourne Nursing Home ,110090,SN8 ,Community Services,North Care Packages,Adult Care Nursing Placements - Spot,Third Party Payments,REVENUE
Wiltshire,http://opendatacommunities.org/id/unitary-authority/wiltshire,26/10/2022,1903472355,3200,Aldbourne Nursing Home ,110090,SN8 ,Community Services,North Care Packages,Adult Care Nursing Placements - Spot,Third Party Payments,REVENUE
Wiltshire,http://opendatacommunities.org/id/unitary-authority/wiltshire,26/10/2022,1903472356,3200,Aldbourne Nursing Home ,110090,SN8 ,Community Services,North Care Packages,Adult Care Nursing Placements - Spot,Third Party Payments,REVENUE
Wiltshire,http://opendatacommunities.org/id/unitary-authority/wiltshire,26/10/2022,1903472357,3200,Aldbourne Nursing Home ,110090,SN8 ,Community Services,North Care Packages,Adult Care Nursing Placements - Spot,Third Party Payments,REVENUE
Wiltshire,http://opendatacommunities.org/id/unitary-authority/wiltshire,26/10/2022,1903472359,2971.43,Aldbourne Nursing Home ,110090,SN8 ,Community Services,North Care Packages,Adult Care Nursing Placements - Spot,Third Party Payments,REVENUE
Wiltshire,http://opendatacommunities.org/id/unitary-authority/wiltshire,26/10/2022,1903472360,3200,Aldbourne Nursing Home ,110090,SN8 ,Community Services,North Care Packages,Adult Care Nursing Placements - Spot,Third Party Payments,REVENUE
Wiltshire,http://opendatacommunities.org/id/unitary-authority/wiltshire,26/10/2022,1903468823,6237.48,Alexandra Homes (Bristol) Ltd ,131787,BS15,Community Services,LDAS North,Adult Residential Placements - Spot Purchase,Third Party Payments,REVENUE
Wiltshire,http://opendatacommunities.org/id/unitary-authority/wiltshire,03/10/2022,1903456285,348,Alina Homecare - Disabilty Support ,139903,BH12,Community Services,West Care Packages,Adult Domiciliary Care,Third Party Payments,REVENUE
Wiltshire,http://opendatacommunities.org/id/unitary-authority/wiltshire,03/10/2022,1903456288,358.88,Alina Homecare - Disabilty Support ,139903,BH12,Community Services,West Care Packages,Adult Domiciliary Care,Third Party Payments,REVENUE
Wiltshire,http://opendatacommunities.org/id/unitary-authority/wiltshire,19/10/2022,1903468045,342.4,Alina Homecare - Disabilty Support ,139903,BH12,Community Services,South Care Packages,Adult Domiciliary Care,Third Party Payments,REVENUE
Wiltshire,http://opendatacommunities.org/id/unitary-authority/wiltshire,26/10/2022,1903472880,544.6,Alina Homecare - Disabilty Support ,139903,BH12,Community Services,LDAS South,Supported Living,Third Party Payments,REVENUE
Wiltshire,http://opendatacommunities.org/id/unitary-authority/wiltshire,26/10/2022,1903472881,544.6,Alina Homecare - Disabilty Support ,139903,BH12,Community Services,LDAS South,Supported Living,Third Party Payments,REVENUE
Wiltshire,http://opendatacommunities.org/id/unitary-authority/wiltshire,26/10/2022,1903472882,544.6,Alina Homecare - Disabilty Support ,139903,BH12,Community Services,LDAS South,Supported Living,Third Party Payments,REVENUE
Wiltshire,http://opendatacommunities.org/id/unitary-authority/wiltshire,26/10/2022,1903472884,12082.76,Alina Homecare - Disabilty Support ,139903,BH12,Community Services,LDAS West,Supported Living,Third Party Payments,REVENUE
Wiltshire,http://opendatacommunities.org/id/unitary-authority/wiltshire,26/10/2022,1903472885,2256.2,Alina Homecare - Disabilty Support ,139903,BH12,Community Services,LDAS West,Supported Living,Third Party Payments,REVENUE
Wiltshire,http://opendatacommunities.org/id/unitary-authority/wiltshire,26/10/2022,1903472886,2152.04,Alina Homecare - Disabilty Support ,139903,BH12,Community Services,LDAS South,Supported Living,Third Party Payments,REVENUE
Wiltshire,http://opendatacommunities.org/id/unitary-authority/wiltshire,26/10/2022,1903472887,4762.68,Alina Homecare - Disabilty Support ,139903,BH12,Community Services,LDAS South,Supported Living,Third Party Payments,REVENUE
Wiltshire,http://opendatacommunities.org/id/unitary-authority/wiltshire,26/10/2022,1903472888,4244,Alina Homecare - Disabilty Support ,139903,BH12,Community Services,LDAS South,Supported Living,Third Party Payments,REVENUE
Wiltshire,http://opendatacommunities.org/id/unitary-authority/wiltshire,26/10/2022,1903472889,4692.28,Alina Homecare - Disabilty Support ,139903,BH12,Community Services,LDAS South,Supported Living,Third Party Payments,REVENUE
Wiltshire,http://opendatacommunities.org/id/unitary-authority/wiltshire,26/10/2022,1903472890,2074.24,Alina Homecare - Disabilty Support ,139903,BH12,Community Services,LDAS South,Supported Living,Third Party Payments,REVENUE
Wiltshire,http://opendatacommunities.org/id/unitary-authority/wiltshire,26/10/2022,1903472891,4166.24,Alina Homecare - Disabilty Support ,139903,BH12,Community Services,LDAS South,Supported Living,Third Party Payments,REVENUE
Wiltshire,http://opendatacommunities.org/id/unitary-authority/wiltshire,26/10/2022,1903472892,3777.24,Alina Homecare - Disabilty Support ,139903,BH12,Community Services,LDAS South,Supported Living,Third Party Payments,REVENUE
Wiltshire,http://opendatacommunities.org/id/unitary-authority/wiltshire,26/10/2022,1903472893,4762.68,Alina Homecare - Disabilty Support ,139903,BH12,Community Services,LDAS South,Supported Living,Third Party Payments,REVENUE
Wiltshire,http://opendatacommunities.org/id/unitary-authority/wiltshire,26/10/2022,1903472894,1867.2,Alina Homecare - Disabilty Support ,139903,BH12,Community Services,LDAS South,Supported Living,Third Party Payments,REVENUE
Wiltshire,http://opendatacommunities.org/id/unitary-authority/wiltshire,26/10/2022,1903472895,736.11,Alina Homecare - Disabilty Support ,139903,BH12,Community Services,LDAS South,Supported Living,Third Party Payments,REVENUE
Wiltshire,http://opendatacommunities.org/id/unitary-authority/wiltshire,26/10/2022,1903472896,6870.32,Alina Homecare - Disabilty Support ,139903,BH12,Community Services,LDAS South,Supported Living,Third Party Payments,REVENUE
Wiltshire,http://opendatacommunities.org/id/unitary-authority/wiltshire,26/10/2022,1903472897,6870.32,Alina Homecare - Disabilty Support ,139903,BH12,Community Services,LDAS South,Supported Living,Third Party Payments,REVENUE
Wiltshire,http://opendatacommunities.org/id/unitary-authority/wiltshire,26/10/2022,1903472898,6870.32,Alina Homecare - Disabilty Support ,139903,BH12,Community Services,LDAS South,Supported Living,Third Party Payments,REVENUE
Wiltshire,http://opendatacommunities.org/id/unitary-authority/wiltshire,26/10/2022,1903472899,6870.32,Alina Homecare - Disabilty Support ,139903,BH12,Community Services,LDAS South,Supported Living,Third Party Payments,REVENUE
Wiltshire,http://opendatacommunities.org/id/unitary-authority/wiltshire,26/10/2022,1903472900,6870.32,Alina Homecare - Disabilty Support ,139903,BH12,Community Services,LDAS South,Supported Living,Third Party Payments,REVENUE
Wiltshire,http://opendatacommunities.org/id/unitary-authority/wiltshire,26/10/2022,1903472901,6870.32,Alina Homecare - Disabilty Support ,139903,BH12,Community Services,LDAS South,Supported Living,Third Party Payments,REVENUE
Wiltshire,http://opendatacommunities.org/id/unitary-authority/wiltshire,26/10/2022,1903472902,6870.32,Alina Homecare - Disabilty Support ,139903,BH12,Community Services,LDAS South,Supported Living,Third Party Payments,REVENUE
Wiltshire,http://opendatacommunities.org/id/unitary-authority/wiltshire,26/10/2022,1903472903,6870.32,Alina Homecare - Disabilty Support ,139903,BH12,Community Services,LDAS South,Supported Living,Third Party Payments,REVENUE
Wiltshire,http://opendatacommunities.org/id/unitary-authority/wiltshire,26/10/2022,1903472904,1991.16,Alina Homecare - Disabilty Support ,139903,BH12,Community Services,LDAS South,Supported Living Contribution,Income,REVENUE
Wiltshire,http://opendatacommunities.org/id/unitary-authority/wiltshire,26/10/2022,1903472905,9292.07,Alina Homecare - Disabilty Support ,139903,BH12,Community Services,LDAS South,Supported Living Contribution,Income,REVENUE
Wiltshire,http://opendatacommunities.org/id/unitary-authority/wiltshire,26/10/2022,1903472906,3339.27,Alina Homecare - Disabilty Support ,139903,BH12,Community Services,LDAS South,Supported Living,Third Party Payments,REVENUE
Wiltshire,http://opendatacommunities.org/id/unitary-authority/wiltshire,26/10/2022,1903472907,15583.24,Alina Homecare - Disabilty Support ,139903,BH12,Community Services,LDAS South,Supported Living,Third Party Payments,REVENUE
Wiltshire,http://opendatacommunities.org/id/unitary-authority/wiltshire,26/10/2022,1903472908,15583.24,Alina Homecare - Disabilty Support ,139903,BH12,Community Services,LDAS South,Supported Living,Third Party Payments,REVENUE
Wiltshire,http://opendatacommunities.org/id/unitary-authority/wiltshire,26/10/2022,1903473430,352.84,Alina Homecare - Disabilty Support ,139903,BH12,Community Services,West Care Packages,Adult Domiciliary Care Contribution,Income,REVENUE
Wiltshire,http://opendatacommunities.org/id/unitary-authority/wiltshire,26/10/2022,1903473431,352.84,Alina Homecare - Disabilty Support ,139903,BH12,Community Services,West Care Packages,Adult Domiciliary Care Contribution,Income,REVENUE
Wiltshire,http://opendatacommunities.org/id/unitary-authority/wiltshire,26/10/2022,1903473432,352.84,Alina Homecare - Disabilty Support ,139903,BH12,Community Services,West Care Packages,Adult Domiciliary Care Contribution,Income,REVENUE
Wiltshire,http://opendatacommunities.org/id/unitary-authority/wiltshire,26/10/2022,1903473433,611.2,Alina Homecare - Disabilty Support ,139903,BH12,Community Services,South Care Packages,Adult Domiciliary Care,Third Party Payments,REVENUE
Wiltshire,http://opendatacommunities.org/id/unitary-authority/wiltshire,26/10/2022,1903473434,1711.36,Alina Homecare - Disabilty Support ,139903,BH12,Community Services,South Care Packages,Adult Domiciliary Care,Third Party Payments,REVENUE
Wiltshire,http://opendatacommunities.org/id/unitary-authority/wiltshire,26/10/2022,1903473435,1711.36,Alina Homecare - Disabilty Support ,139903,BH12,Community Services,South Care Packages,Adult Domiciliary Care,Third Party Payments,REVENUE
Wiltshire,http://opendatacommunities.org/id/unitary-authority/wiltshire,26/10/2022,1903473436,1711.36,Alina Homecare - Disabilty Support ,139903,BH12,Community Services,South Care Packages,Adult Domiciliary Care,Third Party Payments,REVENUE
Wiltshire,http://opendatacommunities.org/id/unitary-authority/wiltshire,26/10/2022,1903473437,1711.36,Alina Homecare - Disabilty Support ,139903,BH12,Community Services,South Care Packages,Adult Domiciliary Care,Third Party Payments,REVENUE
Wiltshire,http://opendatacommunities.org/id/unitary-authority/wiltshire,26/10/2022,1903475091,978.75,Alina Homecare - Disabilty Support ,139903,BH12,Community Services,LDAS West,Adult Domiciliary Care,Third Party Payments,REVENUE
Wiltshire,http://opendatacommunities.org/id/unitary-authority/wiltshire,28/10/2022,5107468993,1867.2,Alina Homecare - Disabilty Support ,139903,BH12,Children & Education,0-25 extnl disabty p,Other Social & Welfare Costs,Third Party Payments,REVENUE
Wiltshire,http://opendatacommunities.org/id/unitary-authority/wiltshire,05/10/2022,1903458084,336.74,ALizor Ltd ,150250,SP2 ,Community Services,South Care Packages,Adult Domiciliary Care,Third Party Payments,REVENUE
Wiltshire,http://opendatacommunities.org/id/unitary-authority/wiltshire,26/10/2022,1903473036,4614.96,All the other Lucy's (ATOL) ,148945,SW18,Community Services,LDAS South,Supported Living,Third Party Payments,REVENUE
Wiltshire,http://opendatacommunities.org/id/unitary-authority/wiltshire,28/10/2022,1903468365,3985.08,Alliance Home Care ,110986,SN15,Community Services,MH AOWA N&E Locality,Adult Residential Placements - Spot Purchase,Third Party Payments,REVENUE
Wiltshire,http://opendatacommunities.org/id/unitary-authority/wiltshire,28/10/2022,1903468366,3998.52,Alliance Home Care ,110986,SN15,Community Services,MH AOWA N&E Locality,Adult Residential Placements - Spot Purchase,Third Party Payments,REVENUE
Wiltshire,http://opendatacommunities.org/id/unitary-authority/wiltshire,28/10/2022,1903468367,4008.48,Alliance Home Care ,110986,SN15,Community Services,MH AOWA N&E Locality,Adult Residential Placements - Spot Purchase,Third Party Payments,REVENUE
Wiltshire,http://opendatacommunities.org/id/unitary-authority/wiltshire,28/10/2022,1903468368,3772.24,Alliance Home Care ,110986,SN15,Community Services,MH AOWA N&E Locality,Adult Residential Placements - Spot Purchase,Third Party Payments,REVENUE
Wiltshire,http://opendatacommunities.org/id/unitary-authority/wiltshire,28/10/2022,1903468369,3504.52,Alliance Home Care ,110986,SN15,Community Services,MH AOWA N&E Locality,Adult Residential Placements - Spot Purchase,Third Party Payments,REVENUE
Wiltshire,http://opendatacommunities.org/id/unitary-authority/wiltshire,20/10/2022,1903470093,457.6,Allied Care Services Limited ,134663,GU21,Community Services,MH AOWA N&E Locality,Adult Domiciliary Care Contribution,Income,REVENUE
Wiltshire,http://opendatacommunities.org/id/unitary-authority/wiltshire,20/10/2022,1903470095,457.6,Allied Care Services Limited ,134663,GU21,Community Services,MH AOWA N&E Locality,Adult Domiciliary Care Contribution,Income,REVENUE
Wiltshire,http://opendatacommunities.org/id/unitary-authority/wiltshire,20/10/2022,1903470097,457.6,Allied Care Services Limited ,134663,GU21,Community Services,MH AOWA N&E Locality,Adult Domiciliary Care Contribution,Income,REVENUE
Wiltshire,http://opendatacommunities.org/id/unitary-authority/wiltshire,18/10/2022,1903461748,5740.2,Allsorts Pre-school Nursery ,113437,SN4 ,Children & Education,Free Enttlmnt 3 & 4y,Childcare Free Entitlement Early Years,Supplies and Services,REVENUE
Wiltshire,http://opendatacommunities.org/id/unitary-authority/wiltshire,18/10/2022,1903461749,1613.11,Allsorts Pre-school Nursery ,113437,SN4 ,Children & Education,Free Entitlement 2 Y,Childcare Free Entitlement Early Years,Supplies and Services,REVENUE
Wiltshire,http://opendatacommunities.org/id/unitary-authority/wiltshire,03/10/2022,5107467043,788,ALLSPARES  AUTO  LTD ,110116,CF33,Neighbourhood & Planning,Fleet,Vehicle Parts,Transport Related,REVENUE
Wiltshire,http://opendatacommunities.org/id/unitary-authority/wiltshire,12/10/2022,5107467893,788,ALLSPARES  AUTO  LTD ,110116,CF33,Neighbourhood & Planning,Fleet,Vehicle Parts,Transport Related,REVENUE
Wiltshire,http://opendatacommunities.org/id/unitary-authority/wiltshire,10/10/2022,1903459295,923.14,Alltogether Care LLP ,143884,DT4 ,Community Services,West Care Packages,Adult Domiciliary Care,Third Party Payments,REVENUE
Wiltshire,http://opendatacommunities.org/id/unitary-authority/wiltshire,10/10/2022,1903459298,368.72,Alltogether Care LLP ,143884,DT4 ,Community Services,West Care Packages,Adult Domiciliary Care Contribution,Income,REVENUE
Wiltshire,http://opendatacommunities.org/id/unitary-authority/wiltshire,11/10/2022,1903459409,768.23,Alltogether Care LLP ,143884,DT4 ,Community Services,West Care Packages,Adult Domiciliary Care,Third Party Payments,REVENUE
Wiltshire,http://opendatacommunities.org/id/unitary-authority/wiltshire,11/10/2022,1903460069,550.86,Alltogether Care LLP ,143884,DT4 ,Community Services,West Care Packages,Adult Domiciliary Care,Third Party Payments,REVENUE
Wiltshire,http://opendatacommunities.org/id/unitary-authority/wiltshire,11/10/2022,1903460070,1005.95,Alltogether Care LLP ,143884,DT4 ,Community Services,Rapid Response,Adult Domiciliary Care,Third Party Payments,REVENUE
Wiltshire,http://opendatacommunities.org/id/unitary-authority/wiltshire,25/10/2022,1903473439,265.76,Alltogether Care LLP ,143884,DT4 ,Community Services,South Care Packages,Adult Domiciliary Care Contribution,Income,REVENUE
Wiltshire,http://opendatacommunities.org/id/unitary-authority/wiltshire,25/10/2022,1903473440,265.76,Alltogether Care LLP ,143884,DT4 ,Community Services,South Care Packages,Adult Domiciliary Care Contribution,Income,REVENUE
Wiltshire,http://opendatacommunities.org/id/unitary-authority/wiltshire,25/10/2022,1903473441,265.76,Alltogether Care LLP ,143884,DT4 ,Community Services,South Care Packages,Adult Domiciliary Care Contribution,Income,REVENUE
Wiltshire,http://opendatacommunities.org/id/unitary-authority/wiltshire,25/10/2022,1903473442,265.76,Alltogether Care LLP ,143884,DT4 ,Community Services,South Care Packages,Adult Domiciliary Care Contribution,Income,REVENUE
Wiltshire,http://opendatacommunities.org/id/unitary-authority/wiltshire,25/10/2022,1903473444,612,Alltogether Care LLP ,143884,DT4 ,Resources,Covid19 - Hospital D,Adult Domiciliary Care,Third Party Payments,REVENUE
Wiltshire,http://opendatacommunities.org/id/unitary-authority/wiltshire,17/10/2022,1903462639,326.83,Alpha Taxis ,100124,BA14,Neighbourhood & Planning,Mainstream Secondary,Transport Contracts,Third Party Payments,REVENUE
Wiltshire,http://opendatacommunities.org/id/unitary-authority/wiltshire,17/10/2022,1903462640,2641.57,Alpha Taxis ,100124,BA14,Neighbourhood & Planning,SEN Secondary Tspt,Transport Contracts,Third Party Payments,REVENUE
Wiltshire,http://opendatacommunities.org/id/unitary-authority/wiltshire,17/10/2022,1903462641,1411,Alpha Taxis ,100124,BA14,Neighbourhood & Planning,SEN Secondary Tspt,Transport Contracts,Third Party Payments,REVENUE
Wiltshire,http://opendatacommunities.org/id/unitary-authority/wiltshire,17/10/2022,1903462642,2168.47,Alpha Taxis ,100124,BA14,Neighbourhood & Planning,SEN Primary Transprt,Transport Contracts,Third Party Payments,REVENUE
Wiltshire,http://opendatacommunities.org/id/unitary-authority/wiltshire,17/10/2022,1903462644,2210,Alpha Taxis ,100124,BA14,Neighbourhood & Planning,SEN Primary Transprt,Transport Contracts,Third Party Payments,REVENUE
Wiltshire,http://opendatacommunities.org/id/unitary-authority/wiltshire,17/10/2022,1903462649,1270.59,Alpha Taxis ,100124,BA14,Neighbourhood & Planning,SEN Primary Transprt,Transport Contracts,Third Party Payments,REVENUE
Wiltshire,http://opendatacommunities.org/id/unitary-authority/wiltshire,17/10/2022,1903462649,1429.41,Alpha Taxis ,100124,BA14,Neighbourhood & Planning,SEN Secondary Tspt,Transport Contracts,Third Party Payments,REVENUE
Wiltshire,http://opendatacommunities.org/id/unitary-authority/wiltshire,17/10/2022,1903462650,414,Alpha Taxis ,100124,BA14,Neighbourhood & Planning,SEN Primary Transprt,Transport Contracts,Third Party Payments,REVENUE
Wiltshire,http://opendatacommunities.org/id/unitary-authority/wiltshire,17/10/2022,1903462653,285.6,Alpha Taxis ,100124,BA14,Neighbourhood & Planning,Mainstream 16+ Sec,Transport Contracts,Third Party Payments,REVENUE
Wiltshire,http://opendatacommunities.org/id/unitary-authority/wiltshire,17/10/2022,1903462655,331.96,Alpha Taxis ,100124,BA14,Neighbourhood & Planning,Public Transport,Transport Contracts,Third Party Payments,REVENUE
Wiltshire,http://opendatacommunities.org/id/unitary-authority/wiltshire,17/10/2022,1903462661,536.18,Alpha Taxis ,100124,BA14,Neighbourhood & Planning,SEN Primary Transprt,Transport Contracts,Third Party Payments,REVENUE
Wiltshire,http://opendatacommunities.org/id/unitary-authority/wiltshire,17/10/2022,1903462662,273.92,Alpha Taxis ,100124,BA14,Neighbourhood & Planning,Mainstream Secondary,Transport Contracts,Third Party Payments,REVENUE
Wiltshire,http://opendatacommunities.org/id/unitary-authority/wiltshire,17/10/2022,1903462665,264.57,Alpha Taxis ,100124,BA14,Neighbourhood & Planning,Mainstream 16+ Sec,Transport Contracts,Third Party Payments,REVENUE
Wiltshire,http://opendatacommunities.org/id/unitary-authority/wiltshire,17/10/2022,1903462665,793.68,Alpha Taxis ,100124,BA14,Neighbourhood & Planning,Mainstream Secondary,Transport Contracts,Third Party Payments,REVENUE
Wiltshire,http://opendatacommunities.org/id/unitary-authority/wiltshire,31/10/2022,1903477954,283.27,Alpha Taxis ,100124,BA14,Neighbourhood & Planning,Mainstream Secondary,Transport Contracts,Third Party Payments,REVENUE
Wiltshire,http://opendatacommunities.org/id/unitary-authority/wiltshire,31/10/2022,1903477955,366.86,Alpha Taxis ,100124,BA14,Neighbourhood & Planning,SEN Primary Transprt,Transport Contracts,Third Party Payments,REVENUE
Wiltshire,http://opendatacommunities.org/id/unitary-authority/wiltshire,31/10/2022,1903477956,1807.39,Alpha Taxis ,100124,BA14,Neighbourhood & Planning,SEN Secondary Tspt,Transport Contracts,Third Party Payments,REVENUE
Wiltshire,http://opendatacommunities.org/id/unitary-authority/wiltshire,31/10/2022,1903477958,1483.69,Alpha Taxis ,100124,BA14,Neighbourhood & Planning,SEN Primary Transprt,Transport Contracts,Third Party Payments,REVENUE
Wiltshire,http://opendatacommunities.org/id/unitary-authority/wiltshire,27/10/2022,1903477405,2970,Alpha Taxis (Tidworth) ,137541,SP9 ,Neighbourhood & Planning,Mainstream Primary,Transport Contracts,Third Party Payments,REVENUE
Wiltshire,http://opendatacommunities.org/id/unitary-authority/wiltshire,27/10/2022,1903477408,278.86,Alpha Taxis (Tidworth) ,137541,SP9 ,Neighbourhood & Planning,Mainstream Secondary,Transport Contracts,Third Party Payments,REVENUE
Wiltshire,http://opendatacommunities.org/id/unitary-authority/wiltshire,31/10/2022,1903477949,1320,Alpha Taxis (Tidworth) ,137541,SP9 ,Neighbourhood & Planning,SEN 16+ Transport,Transport Contracts,Third Party Payments,REVENUE
Wiltshire,http://opendatacommunities.org/id/unitary-authority/wiltshire,18/10/2022,1903463457,357,Alzheimers Support ,110127,BA14,Community Services,West Care Packages,Adult Day Care Contracts,Third Party Payments,REVENUE
Wiltshire,http://opendatacommunities.org/id/unitary-authority/wiltshire,18/10/2022,1903463458,470,Alzheimers Support ,110127,BA14,Community Services,West Care Packages,Adult Day Care - Spot Income Contribution,Income,REVENUE
Wiltshire,http://opendatacommunities.org/id/unitary-authority/wiltshire,14/10/2022,5107467111,9966.25,Alzheimers Support ,110127,BA14,Community Services,ASC Community C&G,Grants Expenditure,Supplies and Services,REVENUE
Wiltshire,http://opendatacommunities.org/id/unitary-authority/wiltshire,14/10/2022,5107467112,23148.83,Alzheimers Support ,110127,BA14,Community Services,ASC Community C&G,Grants Expenditure,Supplies and Services,REVENUE
Wiltshire,http://opendatacommunities.org/id/unitary-authority/wiltshire,26/10/2022,1903468534,3520,Amberwood Nursing Home ,155478,EX8 ,Resources,Covid19 - Hospital D,Adult Care Nursing Placements - Spot,Third Party Payments,REVENUE
Wiltshire,http://opendatacommunities.org/id/unitary-authority/wiltshire,18/10/2022,1903463171,712.5,Amesbury Taxis ,150486,SP11,Neighbourhood & Planning,SEN Primary Transprt,Transport Contracts,Third Party Payments,REVENUE
Wiltshire,http://opendatacommunities.org/id/unitary-authority/wiltshire,19/10/2022,1903467873,1967.6,Amesbury Taxis ,150486,SP11,Neighbourhood & Planning,SEN Secondary Tspt,Transport Contracts,Third Party Payments,REVENUE
Wiltshire,http://opendatacommunities.org/id/unitary-authority/wiltshire,17/10/2022,5107468126,3543.3,Amicus Foster Care Limited ,126050,BS2 ,Children & Education,Independent Fosterin,Childrens Agency Placement,Third Party Payments,REVENUE
Wiltshire,http://opendatacommunities.org/id/unitary-authority/wiltshire,18/10/2022,5107468195,3614.6,Amicus Foster Care Limited ,126050,BS2 ,Children & Education,Independent Fosterin,Childrens Agency Placement,Third Party Payments,REVENUE
Wiltshire,http://opendatacommunities.org/id/unitary-authority/wiltshire,26/10/2022,1903470972,2782.46,AMS Care Wiltshire ,130764,SN4 ,Community Services,North Care Packages,Adult Care Nursing Placements - Spot,Third Party Payments,REVENUE
Wiltshire,http://opendatacommunities.org/id/unitary-authority/wiltshire,26/10/2022,1903470973,2782.46,AMS Care Wiltshire ,130764,SN4 ,Community Services,North Care Packages,Adult Care Nursing Placements - Spot,Third Party Payments,REVENUE
Wiltshire,http://opendatacommunities.org/id/unitary-authority/wiltshire,26/10/2022,1903470974,463.74,AMS Care Wiltshire ,130764,SN4 ,Community Services,North Care Packages,Adult Care Nursing Placements - Spot,Third Party Payments,REVENUE
Wiltshire,http://opendatacommunities.org/id/unitary-authority/wiltshire,26/10/2022,1903470975,3246.2,AMS Care Wiltshire ,130764,SN4 ,Community Services,North Care Packages,Adult Care Nursing Placements - Spot,Third Party Payments,REVENUE
Wiltshire,http://opendatacommunities.org/id/unitary-authority/wiltshire,26/10/2022,1903470976,3018.2,AMS Care Wiltshire ,130764,SN4 ,Community Services,North Care Packages,Adult Care Nursing Placements - Spot,Third Party Payments,REVENUE
Wiltshire,http://opendatacommunities.org/id/unitary-authority/wiltshire,26/10/2022,1903470977,3246.2,AMS Care Wiltshire ,130764,SN4 ,Community Services,North Care Packages,Adult Care Nursing Placements - Spot,Third Party Payments,REVENUE
Wiltshire,http://opendatacommunities.org/id/unitary-authority/wiltshire,26/10/2022,1903470978,3246.2,AMS Care Wiltshire ,130764,SN4 ,Community Services,North Care Packages,Adult Care Nursing Placements - Spot,Third Party Payments,REVENUE
Wiltshire,http://opendatacommunities.org/id/unitary-authority/wiltshire,26/10/2022,1903470979,3018.2,AMS Care Wiltshire ,130764,SN4 ,Community Services,West Care Packages,Adult Care Nursing Placements - Spot,Third Party Payments,REVENUE
Wiltshire,http://opendatacommunities.org/id/unitary-authority/wiltshire,26/10/2022,1903470980,2939.48,AMS Care Wiltshire ,130764,SN4 ,Community Services,Adult Care Gross Loa,Adult Care Nursing Placements - Spot,Third Party Payments,REVENUE
Wiltshire,http://opendatacommunities.org/id/unitary-authority/wiltshire,26/10/2022,1903470981,3307.2,AMS Care Wiltshire ,130764,SN4 ,Community Services,Adult Care Gross Loa,Adult Care Nursing Placements - Spot,Third Party Payments,REVENUE
Wiltshire,http://opendatacommunities.org/id/unitary-authority/wiltshire,26/10/2022,1903470982,3020.72,AMS Care Wiltshire ,130764,SN4 ,Community Services,Adult Care Gross Loa,Adult Care Nursing Placements - Spot,Third Party Payments,REVENUE
Wiltshire,http://opendatacommunities.org/id/unitary-authority/wiltshire,26/10/2022,1903470983,2998,AMS Care Wiltshire ,130764,SN4 ,Community Services,Adult Care Gross Loa,Adult Care Nursing Placements - Spot,Third Party Payments,REVENUE
Wiltshire,http://opendatacommunities.org/id/unitary-authority/wiltshire,26/10/2022,1903470984,3246.2,AMS Care Wiltshire ,130764,SN4 ,Community Services,Adult Care Gross Loa,Adult Care Nursing Placements - Spot,Third Party Payments,REVENUE
Wiltshire,http://opendatacommunities.org/id/unitary-authority/wiltshire,26/10/2022,1903470985,3018.2,AMS Care Wiltshire ,130764,SN4 ,Community Services,Placement Block Cont,Adult Care Nursing Placements- Block Contract,Third Party Payments,REVENUE
Wiltshire,http://opendatacommunities.org/id/unitary-authority/wiltshire,26/10/2022,1903470986,3246.2,AMS Care Wiltshire ,130764,SN4 ,Community Services,Placement Block Cont,Adult Care Nursing Placements- Block Contract,Third Party Payments,REVENUE
Wiltshire,http://opendatacommunities.org/id/unitary-authority/wiltshire,26/10/2022,1903470987,3246.2,AMS Care Wiltshire ,130764,SN4 ,Community Services,Placement Block Cont,Adult Care Nursing Placements- Block Contract,Third Party Payments,REVENUE
Wiltshire,http://opendatacommunities.org/id/unitary-authority/wiltshire,26/10/2022,1903470988,3246.2,AMS Care Wiltshire ,130764,SN4 ,Community Services,Placement Block Cont,Adult Care Nursing Placements- Block Contract,Third Party Payments,REVENUE
Wiltshire,http://opendatacommunities.org/id/unitary-authority/wiltshire,26/10/2022,1903470989,3246.2,AMS Care Wiltshire ,130764,SN4 ,Community Services,Placement Block Cont,Adult Care Nursing Placements- Block Contract,Third Party Payments,REVENUE
Wiltshire,http://opendatacommunities.org/id/unitary-authority/wiltshire,26/10/2022,1903470990,3124.08,AMS Care Wiltshire ,130764,SN4 ,Community Services,Placement Block Cont,Adult Care Nursing Placements- Block Contract,Third Party Payments,REVENUE
Wiltshire,http://opendatacommunities.org/id/unitary-authority/wiltshire,26/10/2022,1903470991,3124.08,AMS Care Wiltshire ,130764,SN4 ,Community Services,Placement Block Cont,Adult Care Nursing Placements- Block Contract,Third Party Payments,REVENUE
Wiltshire,http://opendatacommunities.org/id/unitary-authority/wiltshire,26/10/2022,1903470992,3124.08,AMS Care Wiltshire ,130764,SN4 ,Community Services,Placement Block Cont,Adult Care Nursing Placements- Block Contract,Third Party Payments,REVENUE
Wiltshire,http://opendatacommunities.org/id/unitary-authority/wiltshire,26/10/2022,1903470993,3124.08,AMS Care Wiltshire ,130764,SN4 ,Community Services,Placement Block Cont,Adult Care Nursing Placements- Block Contract,Third Party Payments,REVENUE
Wiltshire,http://opendatacommunities.org/id/unitary-authority/wiltshire,26/10/2022,1903470994,3124.08,AMS Care Wiltshire ,130764,SN4 ,Community Services,Placement Block Cont,Adult Care Nursing Placements- Block Contract,Third Party Payments,REVENUE
Wiltshire,http://opendatacommunities.org/id/unitary-authority/wiltshire,26/10/2022,1903470995,3124.08,AMS Care Wiltshire ,130764,SN4 ,Community Services,Placement Block Cont,Adult Care Nursing Placements- Block Contract,Third Party Payments,REVENUE
Wiltshire,http://opendatacommunities.org/id/unitary-authority/wiltshire,26/10/2022,1903470996,3124.08,AMS Care Wiltshire ,130764,SN4 ,Community Services,Placement Block Cont,Adult Care Nursing Placements- Block Contract,Third Party Payments,REVENUE
Wiltshire,http://opendatacommunities.org/id/unitary-authority/wiltshire,26/10/2022,1903470997,3124.08,AMS Care Wiltshire ,130764,SN4 ,Community Services,Placement Block Cont,Adult Care Nursing Placements- Block Contract,Third Party Payments,REVENUE
Wiltshire,http://opendatacommunities.org/id/unitary-authority/wiltshire,26/10/2022,1903470998,3124.08,AMS Care Wiltshire ,130764,SN4 ,Community Services,Placement Block Cont,Adult Care Nursing Placements- Block Contract,Third Party Payments,REVENUE
Wiltshire,http://opendatacommunities.org/id/unitary-authority/wiltshire,26/10/2022,1903470999,3124.08,AMS Care Wiltshire ,130764,SN4 ,Community Services,Placement Block Cont,Adult Care Nursing Placements- Block Contract,Third Party Payments,REVENUE
Wiltshire,http://opendatacommunities.org/id/unitary-authority/wiltshire,26/10/2022,1903471000,3124.08,AMS Care Wiltshire ,130764,SN4 ,Community Services,Placement Block Cont,Adult Care Nursing Placements- Block Contract,Third Party Payments,REVENUE
Wiltshire,http://opendatacommunities.org/id/unitary-authority/wiltshire,26/10/2022,1903471001,2874.44,AMS Care Wiltshire ,130764,SN4 ,Community Services,Placement Block Cont,Adult Care Nursing Placements- Block Contract,Third Party Payments,REVENUE
Wiltshire,http://opendatacommunities.org/id/unitary-authority/wiltshire,26/10/2022,1903471002,2874.44,AMS Care Wiltshire ,130764,SN4 ,Community Services,Placement Block Cont,Adult Care Nursing Placements- Block Contract,Third Party Payments,REVENUE
Wiltshire,http://opendatacommunities.org/id/unitary-authority/wiltshire,26/10/2022,1903471003,2874.44,AMS Care Wiltshire ,130764,SN4 ,Community Services,Placement Block Cont,Adult Care Nursing Placements- Block Contract,Third Party Payments,REVENUE
Wiltshire,http://opendatacommunities.org/id/unitary-authority/wiltshire,26/10/2022,1903471004,2874.44,AMS Care Wiltshire ,130764,SN4 ,Community Services,Placement Block Cont,Adult Care Nursing Placements- Block Contract,Third Party Payments,REVENUE
Wiltshire,http://opendatacommunities.org/id/unitary-authority/wiltshire,26/10/2022,1903471005,2874.44,AMS Care Wiltshire ,130764,SN4 ,Community Services,Placement Block Cont,Adult Care Nursing Placements- Block Contract,Third Party Payments,REVENUE
Wiltshire,http://opendatacommunities.org/id/unitary-authority/wiltshire,26/10/2022,1903471006,2874.44,AMS Care Wiltshire ,130764,SN4 ,Community Services,Placement Block Cont,Adult Care Nursing Placements- Block Contract,Third Party Payments,REVENUE
Wiltshire,http://opendatacommunities.org/id/unitary-authority/wiltshire,26/10/2022,1903471007,2874.44,AMS Care Wiltshire ,130764,SN4 ,Community Services,Placement Block Cont,Adult Care Nursing Placements- Block Contract,Third Party Payments,REVENUE
Wiltshire,http://opendatacommunities.org/id/unitary-authority/wiltshire,26/10/2022,1903471008,3124.08,AMS Care Wiltshire ,130764,SN4 ,Community Services,Placement Block Cont,Adult Care Nursing Placements- Block Contract,Third Party Payments,REVENUE
Wiltshire,http://opendatacommunities.org/id/unitary-authority/wiltshire,26/10/2022,1903471016,343.9,AMS Care Wiltshire ,130764,SN4 ,Community Services,Placement Block Cont,Adult Nursing Place- Block Contract Contribution,Income,REVENUE
Wiltshire,http://opendatacommunities.org/id/unitary-authority/wiltshire,26/10/2022,1903471017,663.8,AMS Care Wiltshire ,130764,SN4 ,Community Services,Placement Block Cont,Adult Nursing Place- Block Contract Contribution,Income,REVENUE
Wiltshire,http://opendatacommunities.org/id/unitary-authority/wiltshire,26/10/2022,1903471019,645.8,AMS Care Wiltshire ,130764,SN4 ,Community Services,Placement Block Cont,Adult Nursing Place- Block Contract Contribution,Income,REVENUE
Wiltshire,http://opendatacommunities.org/id/unitary-authority/wiltshire,26/10/2022,1903472274,14816,AMS Care Wiltshire ,130764,SN4 ,Resources,Covid19 - Hospital D,Adult Care Nursing Placements - Spot,Third Party Payments,REVENUE
Wiltshire,http://opendatacommunities.org/id/unitary-authority/wiltshire,26/10/2022,1903472275,14816,AMS Care Wiltshire ,130764,SN4 ,Resources,Covid19 - Hospital D,Adult Care Nursing Placements - Spot,Third Party Payments,REVENUE
Wiltshire,http://opendatacommunities.org/id/unitary-authority/wiltshire,26/10/2022,1903472276,14816,AMS Care Wiltshire ,130764,SN4 ,Resources,Covid19 - Hospital D,Adult Care Nursing Placements - Spot,Third Party Payments,REVENUE
Wiltshire,http://opendatacommunities.org/id/unitary-authority/wiltshire,26/10/2022,1903472277,14816,AMS Care Wiltshire ,130764,SN4 ,Resources,Covid19 - Hospital D,Adult Care Nursing Placements - Spot,Third Party Payments,REVENUE
Wiltshire,http://opendatacommunities.org/id/unitary-authority/wiltshire,26/10/2022,1903472278,14816,AMS Care Wiltshire ,130764,SN4 ,Resources,Covid19 - Hospital D,Adult Care Nursing Placements - Spot,Third Party Payments,REVENUE
Wiltshire,http://opendatacommunities.org/id/unitary-authority/wiltshire,26/10/2022,1903472279,14816,AMS Care Wiltshire ,130764,SN4 ,Resources,Covid19 - Hospital D,Adult Care Nursing Placements - Spot,Third Party Payments,REVENUE
Wiltshire,http://opendatacommunities.org/id/unitary-authority/wiltshire,26/10/2022,1903472280,1970.91,AMS Care Wiltshire ,130764,SN4 ,Community Services,Placement Block Cont,Adult Care Nursing Placements- Block Contract,Third Party Payments,REVENUE
Wiltshire,http://opendatacommunities.org/id/unitary-authority/wiltshire,26/10/2022,1903472281,347.81,AMS Care Wiltshire ,130764,SN4 ,Community Services,Placement Block Cont,Adult Care Nursing Placements- Block Contract,Third Party Payments,REVENUE
Wiltshire,http://opendatacommunities.org/id/unitary-authority/wiltshire,19/10/2022,5107468340,7869.2,Andover Fire and Security Ltd ,147308,SP10,Wiltshire Council,Wiltshire Council,Professional Fees,Supplies and Services,CAPITAL
Wiltshire,http://opendatacommunities.org/id/unitary-authority/wiltshire,26/10/2022,1903472361,1550,Andover Nursing Home ,110142,SP10,Community Services,South Care Packages,Adult Care Nursing Placements - Spot,Third Party Payments,REVENUE
Wiltshire,http://opendatacommunities.org/id/unitary-authority/wiltshire,26/10/2022,1903472362,1328.57,Andover Nursing Home ,110142,SP10,Community Services,South Care Packages,Adult Care Nursing Placements - Spot,Third Party Payments,REVENUE
Wiltshire,http://opendatacommunities.org/id/unitary-authority/wiltshire,26/10/2022,1903472363,4871.43,Andover Nursing Home ,110142,SP10,Community Services,South Care Packages,Adult Care Nursing Placements - Spot,Third Party Payments,REVENUE
Wiltshire,http://opendatacommunities.org/id/unitary-authority/wiltshire,26/10/2022,1903472364,4871.43,Andover Nursing Home ,110142,SP10,Community Services,South Care Packages,Adult Care Nursing Placements - Spot,Third Party Payments,REVENUE
Wiltshire,http://opendatacommunities.org/id/unitary-authority/wiltshire,26/10/2022,1903472365,1328.57,Andover Nursing Home ,110142,SP10,Community Services,South Care Packages,Adult Care Nursing Placements - Spot,Third Party Payments,REVENUE
Wiltshire,http://opendatacommunities.org/id/unitary-authority/wiltshire,26/10/2022,1903472366,6200,Andover Nursing Home ,110142,SP10,Community Services,South Care Packages,Adult Care Nursing Placements - Spot,Third Party Payments,REVENUE
Wiltshire,http://opendatacommunities.org/id/unitary-authority/wiltshire,26/10/2022,1903474795,1800,Andy Taxis Limited ,100874,SP4 ,Neighbourhood & Planning,SEN Secondary Tspt,Transport Contracts,Third Party Payments,REVENUE
Wiltshire,http://opendatacommunities.org/id/unitary-authority/wiltshire,17/10/2022,1903462612,4633.3,Andybus  and  Coach Ltd ,100132,SN16,Neighbourhood & Planning,Mainstream Secondary,Transport Contracts,Third Party Payments,REVENUE
Wiltshire,http://opendatacommunities.org/id/unitary-authority/wiltshire,17/10/2022,1903462619,3700.73,Andybus  and  Coach Ltd ,100132,SN16,Neighbourhood & Planning,Mainstream Primary,Transport Contracts,Third Party Payments,REVENUE
Wiltshire,http://opendatacommunities.org/id/unitary-authority/wiltshire,26/10/2022,1903475148,985.5,Angels Care At Home ,149925,SN2 ,Community Services,North Care Packages,Adult Domiciliary Care,Third Party Payments,REVENUE
Wiltshire,http://opendatacommunities.org/id/unitary-authority/wiltshire,26/10/2022,1903475150,483.28,Angels Care At Home ,149925,SN2 ,Community Services,North Care Packages,Adult Domiciliary Care,Third Party Payments,REVENUE
Wiltshire,http://opendatacommunities.org/id/unitary-authority/wiltshire,26/10/2022,1903475151,1587.04,Angels Care At Home ,149925,SN2 ,Community Services,MH AOWA N&E Locality,Adult Domiciliary Care,Third Party Payments,REVENUE
Wiltshire,http://opendatacommunities.org/id/unitary-authority/wiltshire,26/10/2022,1903475152,1427.2,Angels Care At Home ,149925,SN2 ,Community Services,North Care Packages,Adult Domiciliary Care Contribution,Income,REVENUE
Wiltshire,http://opendatacommunities.org/id/unitary-authority/wiltshire,26/10/2022,1903475154,345.66,Angels Care At Home ,149925,SN2 ,Community Services,North Care Packages,Adult Domiciliary Care,Third Party Payments,REVENUE
Wiltshire,http://opendatacommunities.org/id/unitary-authority/wiltshire,26/10/2022,1903475157,2792.16,Angels Care At Home ,149925,SN2 ,Community Services,North Care Packages,Adult Domiciliary Care,Third Party Payments,REVENUE
Wiltshire,http://opendatacommunities.org/id/unitary-authority/wiltshire,04/10/2022,1903456472,309.89,Anglian Water t/a Wave Utilities ,155172,DH1 ,Resources,FM Leisure Centres,Water,Premises Related,REVENUE
Wiltshire,http://opendatacommunities.org/id/unitary-authority/wiltshire,04/10/2022,1903456473,269.23,Anglian Water t/a Wave Utilities ,155172,DH1 ,Neighbourhood & Planning,Permitted Sites,Water,Premises Related,REVENUE
Wiltshire,http://opendatacommunities.org/id/unitary-authority/wiltshire,04/10/2022,1903456474,565.07,Anglian Water t/a Wave Utilities ,155172,DH1 ,Resources,FM Highway Depots,Water,Premises Related,REVENUE
Wiltshire,http://opendatacommunities.org/id/unitary-authority/wiltshire,04/10/2022,1903456480,347.91,Anglian Water t/a Wave Utilities ,155172,DH1 ,Resources,FM Highway Depots,Water,Premises Related,REVENUE
Wiltshire,http://opendatacommunities.org/id/unitary-authority/wiltshire,04/10/2022,1903456483,1009.79,Anglian Water t/a Wave Utilities ,155172,DH1 ,Resources,FM Highway Depots,Water,Premises Related,REVENUE
Wiltshire,http://opendatacommunities.org/id/unitary-authority/wiltshire,04/10/2022,1903456484,373.18,Anglian Water t/a Wave Utilities ,155172,DH1 ,Resources,SAFM - Other Assets,Water,Premises Related,REVENUE
Wiltshire,http://opendatacommunities.org/id/unitary-authority/wiltshire,04/10/2022,1903456504,385.53,Anglian Water t/a Wave Utilities ,155172,DH1 ,Resources,Bourne Hill,Water,Premises Related,REVENUE
Wiltshire,http://opendatacommunities.org/id/unitary-authority/wiltshire,04/10/2022,1903456507,541.91,Anglian Water t/a Wave Utilities ,155172,DH1 ,Resources,Salisbury City Hall,Water,Premises Related,REVENUE
Wiltshire,http://opendatacommunities.org/id/unitary-authority/wiltshire,04/10/2022,1903456512,595.96,Anglian Water t/a Wave Utilities ,155172,DH1 ,Resources,FM Libraries,Water,Premises Related,REVENUE
Wiltshire,http://opendatacommunities.org/id/unitary-authority/wiltshire,04/10/2022,1903456513,464.7,Anglian Water t/a Wave Utilities ,155172,DH1 ,Resources,FM Highway Depots,Water,Premises Related,REVENUE
Wiltshire,http://opendatacommunities.org/id/unitary-authority/wiltshire,04/10/2022,1903456515,332.48,Anglian Water t/a Wave Utilities ,155172,DH1 ,Resources,FM Libraries,Water,Premises Related,REVENUE
Wiltshire,http://opendatacommunities.org/id/unitary-authority/wiltshire,04/10/2022,1903456517,403.28,Anglian Water t/a Wave Utilities ,155172,DH1 ,Resources,FM Highway Depots,Water,Premises Related,REVENUE
Wiltshire,http://opendatacommunities.org/id/unitary-authority/wiltshire,04/10/2022,1903456522,259.12,Anglian Water t/a Wave Utilities ,155172,DH1 ,Resources,SAFM - Other Assets,Water,Premises Related,REVENUE
Wiltshire,http://opendatacommunities.org/id/unitary-authority/wiltshire,04/10/2022,1903456530,935.87,Anglian Water t/a Wave Utilities ,155172,DH1 ,Resources,FM Leisure Centres,Water,Premises Related,REVENUE
Wiltshire,http://opendatacommunities.org/id/unitary-authority/wiltshire,04/10/2022,1903456532,307.55,Anglian Water t/a Wave Utilities ,155172,DH1 ,Resources,SAFM - Other Assets,Water,Premises Related,REVENUE
Wiltshire,http://opendatacommunities.org/id/unitary-authority/wiltshire,04/10/2022,1903456536,1189.53,Anglian Water t/a Wave Utilities ,155172,DH1 ,Resources,FM Leisure Centres,Water,Premises Related,REVENUE
Wiltshire,http://opendatacommunities.org/id/unitary-authority/wiltshire,04/10/2022,1903456543,1311.32,Anglian Water t/a Wave Utilities ,155172,DH1 ,Resources,FM Leisure Centres,Water,Premises Related,REVENUE
Wiltshire,http://opendatacommunities.org/id/unitary-authority/wiltshire,04/10/2022,1903456545,2561.74,Anglian Water t/a Wave Utilities ,155172,DH1 ,Resources,FM Highway Depots,Water,Premises Related,REVENUE
Wiltshire,http://opendatacommunities.org/id/unitary-authority/wiltshire,04/10/2022,1903456547,1250.97,Anglian Water t/a Wave Utilities ,155172,DH1 ,Resources,FM Leisure Centres,Water,Premises Related,REVENUE
Wiltshire,http://opendatacommunities.org/id/unitary-authority/wiltshire,04/10/2022,1903456552,2954.81,Anglian Water t/a Wave Utilities ,155172,DH1 ,Resources,FM Leisure Centres,Water,Premises Related,REVENUE
Wiltshire,http://opendatacommunities.org/id/unitary-authority/wiltshire,04/10/2022,1903456569,1098.18,Anglian Water t/a Wave Utilities ,155172,DH1 ,Resources,FM Leisure Centres,Water,Premises Related,REVENUE
Wiltshire,http://opendatacommunities.org/id/unitary-authority/wiltshire,04/10/2022,1903456570,685.57,Anglian Water t/a Wave Utilities ,155172,DH1 ,Resources,FM Leisure Centres,Water,Premises Related,REVENUE
Wiltshire,http://opendatacommunities.org/id/unitary-authority/wiltshire,04/10/2022,1903456571,378.8,Anglian Water t/a Wave Utilities ,155172,DH1 ,Resources,FM Leisure Centres,Water,Premises Related,REVENUE
Wiltshire,http://opendatacommunities.org/id/unitary-authority/wiltshire,04/10/2022,1903456572,3756.16,Anglian Water t/a Wave Utilities ,155172,DH1 ,Resources,FM Leisure Centres,Water,Premises Related,REVENUE
Wiltshire,http://opendatacommunities.org/id/unitary-authority/wiltshire,04/10/2022,1903456573,857.21,Anglian Water t/a Wave Utilities ,155172,DH1 ,Resources,FM Leisure Centres,Water,Premises Related,REVENUE
Wiltshire,http://opendatacommunities.org/id/unitary-authority/wiltshire,04/10/2022,1903456575,1621.42,Anglian Water t/a Wave Utilities ,155172,DH1 ,Resources,FM Leisure Centres,Water,Premises Related,REVENUE
Wiltshire,http://opendatacommunities.org/id/unitary-authority/wiltshire,04/10/2022,1903456576,913.68,Anglian Water t/a Wave Utilities ,155172,DH1 ,Resources,Monkton Park,Water,Premises Related,REVENUE
Wiltshire,http://opendatacommunities.org/id/unitary-authority/wiltshire,04/10/2022,1903456577,1474.24,Anglian Water t/a Wave Utilities ,155172,DH1 ,Neighbourhood & Planning,SH Nadder Close,Water,Premises Related,REVENUE
Wiltshire,http://opendatacommunities.org/id/unitary-authority/wiltshire,04/10/2022,1903456580,1472.24,Anglian Water t/a Wave Utilities ,155172,DH1 ,Resources,FM Leisure Centres,Water,Premises Related,REVENUE
Wiltshire,http://opendatacommunities.org/id/unitary-authority/wiltshire,04/10/2022,1903456581,343.65,Anglian Water t/a Wave Utilities ,155172,DH1 ,Resources,Melksham Campus,Water,Premises Related,REVENUE
Wiltshire,http://opendatacommunities.org/id/unitary-authority/wiltshire,04/10/2022,1903456584,277.67,Anglian Water t/a Wave Utilities ,155172,DH1 ,Resources,FM Leisure Centres,Water,Premises Related,REVENUE
Wiltshire,http://opendatacommunities.org/id/unitary-authority/wiltshire,04/10/2022,1903456587,556.02,Anglian Water t/a Wave Utilities ,155172,DH1 ,Neighbourhood & Planning,Lode Hill G&T Site,Water,Premises Related,REVENUE
Wiltshire,http://opendatacommunities.org/id/unitary-authority/wiltshire,04/10/2022,1903456588,2208.2,Anglian Water t/a Wave Utilities ,155172,DH1 ,Resources,Corsham Campus,Water,Premises Related,REVENUE
Wiltshire,http://opendatacommunities.org/id/unitary-authority/wiltshire,04/10/2022,1903456590,3674.21,Anglian Water t/a Wave Utilities ,155172,DH1 ,Resources,5 Rivers LC,Water,Premises Related,REVENUE
Wiltshire,http://opendatacommunities.org/id/unitary-authority/wiltshire,04/10/2022,5107465152,614.16,Annie's Catering ,125517,SN10,Children & Education,School Effectvnss Tm,Premises Rental,Premises Related,REVENUE
Wiltshire,http://opendatacommunities.org/id/unitary-authority/wiltshire,04/10/2022,5107466724,780,APA Consultants Ltd ,113361,SN10,Neighbourhood & Planning,Dev Management,Consultants Fees,Supplies and Services,REVENUE
Wiltshire,http://opendatacommunities.org/id/unitary-authority/wiltshire,04/10/2022,5107466725,390,APA Consultants Ltd ,113361,SN10,Neighbourhood & Planning,Dev Management,Consultants Fees,Supplies and Services,REVENUE
Wiltshire,http://opendatacommunities.org/id/unitary-authority/wiltshire,07/10/2022,1903458933,2067.32,Apex Prime Care Ltd ,148170,SO40,Community Services,MH AOWA West Localit,Adult Domiciliary Care,Third Party Payments,REVENUE
Wiltshire,http://opendatacommunities.org/id/unitary-authority/wiltshire,07/10/2022,1903458934,981.31,Apex Prime Care Ltd ,148170,SO40,Community Services,West Care Packages,Adult Domiciliary Care,Third Party Payments,REVENUE
Wiltshire,http://opendatacommunities.org/id/unitary-authority/wiltshire,07/10/2022,1903458935,488.4,Apex Prime Care Ltd ,148170,SO40,Community Services,South Care Packages,Adult Domiciliary Care,Third Party Payments,REVENUE
Wiltshire,http://opendatacommunities.org/id/unitary-authority/wiltshire,21/10/2022,1903470703,480.62,Apex Prime Care Ltd ,148170,SO40,Community Services,West Care Packages,Adult Domiciliary Care Contribution,Income,REVENUE
Wiltshire,http://opendatacommunities.org/id/unitary-authority/wiltshire,21/10/2022,1903470704,1121.2,Apex Prime Care Ltd ,148170,SO40,Community Services,West Care Packages,Adult Domiciliary Care Contribution,Income,REVENUE
Wiltshire,http://opendatacommunities.org/id/unitary-authority/wiltshire,21/10/2022,1903470705,1671.55,Apex Prime Care Ltd ,148170,SO40,Community Services,MH AOWA West Localit,Adult Domiciliary Care,Third Party Payments,REVENUE
Wiltshire,http://opendatacommunities.org/id/unitary-authority/wiltshire,21/10/2022,1903470706,878.35,Apex Prime Care Ltd ,148170,SO40,Community Services,West Care Packages,Adult Domiciliary Care,Third Party Payments,REVENUE
Wiltshire,http://opendatacommunities.org/id/unitary-authority/wiltshire,21/10/2022,1903470707,508.75,Apex Prime Care Ltd ,148170,SO40,Community Services,South Care Packages,Adult Domiciliary Care,Third Party Payments,REVENUE
Wiltshire,http://opendatacommunities.org/id/unitary-authority/wiltshire,24/10/2022,1903470953,488.81,Apex Prime Care Ltd ,148170,SO40,Community Services,West Care Packages,Adult Domiciliary Care Contribution,Income,REVENUE
Wiltshire,http://opendatacommunities.org/id/unitary-authority/wiltshire,24/10/2022,1903470954,1023.21,Apex Prime Care Ltd ,148170,SO40,Community Services,West Care Packages,Adult Domiciliary Care Contribution,Income,REVENUE
Wiltshire,http://opendatacommunities.org/id/unitary-authority/wiltshire,24/10/2022,1903470955,1121.2,Apex Prime Care Ltd ,148170,SO40,Community Services,West Care Packages,Adult Domiciliary Care Contribution,Income,REVENUE
Wiltshire,http://opendatacommunities.org/id/unitary-authority/wiltshire,18/10/2022,1903461800,12547,Appletree Nursery 1026 ,110163,SN11,Children & Education,Free Enttlmnt 3 & 4y,Childcare Free Entitlement Early Years,Supplies and Services,REVENUE
Wiltshire,http://opendatacommunities.org/id/unitary-authority/wiltshire,18/10/2022,1903461801,1792.35,Appletree Nursery 1026 ,110163,SN11,Children & Education,Free Entitlement 2 Y,Childcare Free Entitlement Early Years,Supplies and Services,REVENUE
Wiltshire,http://opendatacommunities.org/id/unitary-authority/wiltshire,24/10/2022,5107468658,21886,Appletree Treatment Centre ,153659,LA9 ,Children & Education,External Residential,Childrens Agency Placement,Third Party Payments,REVENUE
Wiltshire,http://opendatacommunities.org/id/unitary-authority/wiltshire,26/10/2022,1903468539,1728.57,Applewood Care Home ,155899,RG26,Community Services,Adult Care Gross Loa,Adult Residential Placements - Spot Purchase,Third Party Payments,REVENUE
Wiltshire,http://opendatacommunities.org/id/unitary-authority/wiltshire,26/10/2022,1903468540,4400,Applewood Care Home ,155899,RG26,Community Services,Adult Care Gross Loa,Adult Residential Placements - Spot Purchase,Third Party Payments,REVENUE
Wiltshire,http://opendatacommunities.org/id/unitary-authority/wiltshire,26/10/2022,1903468541,4400,Applewood Care Home ,155899,RG26,Community Services,Adult Care Gross Loa,Adult Residential Placements - Spot Purchase,Third Party Payments,REVENUE
Wiltshire,http://opendatacommunities.org/id/unitary-authority/wiltshire,25/10/2022,5107467416,1951.68,APS Group ,148025,SK3 ,Resources,Customer Services,Printing,Supplies and Services,REVENUE
Wiltshire,http://opendatacommunities.org/id/unitary-authority/wiltshire,26/10/2022,1903474430,277.4,Aquaid South Coast ,110167,SO50,Resources,FM Highway Depots,Catering,Supplies and Services,REVENUE
Wiltshire,http://opendatacommunities.org/id/unitary-authority/wiltshire,10/10/2022,5107467604,3000,Aquatech Drainage Consultants Ltd Mr Chris Uden,135011,DT1 ,Neighbourhood & Planning,Sewerage,Property Maintenance,Premises Related,REVENUE
Wiltshire,http://opendatacommunities.org/id/unitary-authority/wiltshire,10/10/2022,5107467694,2862.5,Aquatech Drainage Consultants Ltd Mr Chris Uden,135011,DT1 ,Wiltshire Council,Wiltshire Council,Property Maintenance,Premises Related,CAPITAL
Wiltshire,http://opendatacommunities.org/id/unitary-authority/wiltshire,26/10/2022,5107468837,3950,Aquatech Drainage Consultants Ltd Mr Chris Uden,135011,DT1 ,Wiltshire Council,Wiltshire Council,Property Maintenance,Premises Related,CAPITAL
Wiltshire,http://opendatacommunities.org/id/unitary-authority/wiltshire,26/10/2022,1903468715,5200,Arbory Residential Home ,113587,SP11,Community Services,South Care Packages,Adult Residential Placements - Spot Purchase,Third Party Payments,REVENUE
Wiltshire,http://opendatacommunities.org/id/unitary-authority/wiltshire,28/10/2022,5107468096,254.8,Arco Limited ,130295,HU1 ,Neighbourhood & Planning,Housg Rprs Contracts,Clothing and Uniform Purchase,Supplies and Services,REVENUE
Wiltshire,http://opendatacommunities.org/id/unitary-authority/wiltshire,26/10/2022,1903464279,2175,Arliemoor Care Homes ,110174,EX22,Community Services,MH AOWA West Localit,Adult Domiciliary Care,Third Party Payments,REVENUE
Wiltshire,http://opendatacommunities.org/id/unitary-authority/wiltshire,26/10/2022,1903468172,2859.36,Arliemoor Care Homes ,110174,EX22,Community Services,MH AOWA South Locali,Adult Residential Placements - Spot Purchase,Third Party Payments,REVENUE
Wiltshire,http://opendatacommunities.org/id/unitary-authority/wiltshire,26/10/2022,1903468173,7332.6,Arliemoor Care Homes ,110174,EX22,Community Services,MH AOWA South Locali,Adult Residential Placements - Spot Purchase,Third Party Payments,REVENUE
Wiltshire,http://opendatacommunities.org/id/unitary-authority/wiltshire,26/10/2022,1903468174,2272,Arliemoor Care Homes ,110174,EX22,Community Services,MH AOWA West Localit,Adult Residential Placements - Spot Purchase,Third Party Payments,REVENUE
Wiltshire,http://opendatacommunities.org/id/unitary-authority/wiltshire,05/10/2022,5107466035,1450,Armour Heritage ,141479,BA11,Wiltshire Council,Wiltshire Council,Professional Fees,Supplies and Services,CAPITAL
Wiltshire,http://opendatacommunities.org/id/unitary-authority/wiltshire,27/10/2022,5107468426,9285,ARP Research Limited ,139794,S35 ,Community Services,HRA System Supp Perf,Consultants Fees,Supplies and Services,REVENUE
Wiltshire,http://opendatacommunities.org/id/unitary-authority/wiltshire,19/10/2022,1903468084,3500,Arrow Care Services Ltd ,146643,SN12,Community Services,West Care Packages,Adult Domiciliary Care,Third Party Payments,REVENUE
Wiltshire,http://opendatacommunities.org/id/unitary-authority/wiltshire,19/10/2022,1903468085,281.76,Arrow Care Services Ltd ,146643,SN12,Community Services,West Care Packages,Adult Domiciliary Care,Third Party Payments,REVENUE
Wiltshire,http://opendatacommunities.org/id/unitary-authority/wiltshire,19/10/2022,1903468086,516.71,Arrow Care Services Ltd ,146643,SN12,Community Services,West Care Packages,Adult Domiciliary Care,Third Party Payments,REVENUE
Wiltshire,http://opendatacommunities.org/id/unitary-authority/wiltshire,19/10/2022,1903468090,865.48,Arrow Care Services Ltd ,146643,SN12,Community Services,West Care Packages,Adult Domiciliary Care,Third Party Payments,REVENUE
Wiltshire,http://opendatacommunities.org/id/unitary-authority/wiltshire,19/10/2022,1903468091,1207.24,Arrow Care Services Ltd ,146643,SN12,Community Services,West Care Packages,Adult Domiciliary Care Contribution,Income,REVENUE
Wiltshire,http://opendatacommunities.org/id/unitary-authority/wiltshire,19/10/2022,1903468092,1464.44,Arrow Care Services Ltd ,146643,SN12,Community Services,West Care Packages,Adult Domiciliary Care Contribution,Income,REVENUE
Wiltshire,http://opendatacommunities.org/id/unitary-authority/wiltshire,19/10/2022,1903468093,1124.2,Arrow Care Services Ltd ,146643,SN12,Community Services,West Care Packages,Adult Domiciliary Care Contribution,Income,REVENUE
Wiltshire,http://opendatacommunities.org/id/unitary-authority/wiltshire,19/10/2022,1903468094,887.04,Arrow Care Services Ltd ,146643,SN12,Community Services,MH OP West Locality,Adult Domiciliary Care Contribution,Income,REVENUE
Wiltshire,http://opendatacommunities.org/id/unitary-authority/wiltshire,19/10/2022,1903468096,4940,Arrow Care Services Ltd ,146643,SN12,Resources,Covid19 - Hospital D,Adult Domiciliary Care,Third Party Payments,REVENUE
Wiltshire,http://opendatacommunities.org/id/unitary-authority/wiltshire,19/10/2022,1903468097,935.23,Arrow Care Services Ltd ,146643,SN12,Community Services,Non CHC complex Hlth,Adult Domiciliary Care,Third Party Payments,REVENUE
Wiltshire,http://opendatacommunities.org/id/unitary-authority/wiltshire,19/10/2022,1903468098,373.1,Arrow Care Services Ltd ,146643,SN12,Community Services,West Care Packages,Adult Domiciliary Care,Third Party Payments,REVENUE
Wiltshire,http://opendatacommunities.org/id/unitary-authority/wiltshire,19/10/2022,1903468099,975.69,Arrow Care Services Ltd ,146643,SN12,Community Services,Non CHC complex Hlth,Adult Domiciliary Care,Third Party Payments,REVENUE
Wiltshire,http://opendatacommunities.org/id/unitary-authority/wiltshire,20/10/2022,1903470125,1438.4,Arrow Care Services Ltd ,146643,SN12,Community Services,Non CHC complex Hlth,Adult Domiciliary Care,Third Party Payments,REVENUE
Wiltshire,http://opendatacommunities.org/id/unitary-authority/wiltshire,25/10/2022,1903473505,413.32,Arrow Care Services Ltd ,146643,SN12,Community Services,Non CHC complex Hlth,Adult Domiciliary Care Contribution,Income,REVENUE
Wiltshire,http://opendatacommunities.org/id/unitary-authority/wiltshire,25/10/2022,1903473505,686.99,Arrow Care Services Ltd ,146643,SN12,Community Services,West Care Packages,Adult Domiciliary Care,Third Party Payments,REVENUE
Wiltshire,http://opendatacommunities.org/id/unitary-authority/wiltshire,26/10/2022,1903474763,1267.5,ASDA Stores Ltd ,154205,LS11,Children & Education,Med Needs Ed Srvc,Catering,Supplies and Services,REVENUE
Wiltshire,http://opendatacommunities.org/id/unitary-authority/wiltshire,25/10/2022,1903473472,962.64,Ash Care Services ,140706,SP2 ,Community Services,South Care Packages,Adult Domiciliary Care Contribution,Income,REVENUE
Wiltshire,http://opendatacommunities.org/id/unitary-authority/wiltshire,25/10/2022,1903473473,354.56,Ash Care Services ,140706,SP2 ,Community Services,South Care Packages,Adult Domiciliary Care,Third Party Payments,REVENUE
Wiltshire,http://opendatacommunities.org/id/unitary-authority/wiltshire,25/10/2022,1903473475,610,Ash Care Services ,140706,SP2 ,Community Services,MH OP South Locality,Adult Domiciliary Care,Third Party Payments,REVENUE
Wiltshire,http://opendatacommunities.org/id/unitary-authority/wiltshire,25/10/2022,1903473476,743.04,Ash Care Services ,140706,SP2 ,Community Services,South Care Packages,Adult Domiciliary Care Contribution,Income,REVENUE
Wiltshire,http://opendatacommunities.org/id/unitary-authority/wiltshire,25/10/2022,1903473477,839.76,Ash Care Services ,140706,SP2 ,Community Services,South Care Packages,Adult Domiciliary Care Contribution,Income,REVENUE
Wiltshire,http://opendatacommunities.org/id/unitary-authority/wiltshire,25/10/2022,1903473478,615.76,Ash Care Services ,140706,SP2 ,Community Services,South Care Packages,Adult Domiciliary Care Contribution,Income,REVENUE
Wiltshire,http://opendatacommunities.org/id/unitary-authority/wiltshire,25/10/2022,1903473479,1307.04,Ash Care Services ,140706,SP2 ,Community Services,South Care Packages,Adult Domiciliary Care Contribution,Income,REVENUE
Wiltshire,http://opendatacommunities.org/id/unitary-authority/wiltshire,25/10/2022,1903473481,709.12,Ash Care Services ,140706,SP2 ,Community Services,South Care Packages,Adult Domiciliary Care,Third Party Payments,REVENUE
Wiltshire,http://opendatacommunities.org/id/unitary-authority/wiltshire,25/10/2022,1903473482,1547.96,Ash Care Services ,140706,SP2 ,Community Services,South Care Packages,Adult Domiciliary Care Contribution,Income,REVENUE
Wiltshire,http://opendatacommunities.org/id/unitary-authority/wiltshire,26/10/2022,1903468918,3896.88,Ashness Care ,143773,N15 ,Community Services,MH AOWA N&E Locality,Adult Residential Placements - Spot Purchase,Third Party Payments,REVENUE
Wiltshire,http://opendatacommunities.org/id/unitary-authority/wiltshire,18/10/2022,1903461722,2506.14,Ashton Keynes Playgroup 249 ,110188,SN6 ,Children & Education,Free Enttlmnt 3 & 4y,Childcare Free Entitlement Early Years,Supplies and Services,REVENUE
Wiltshire,http://opendatacommunities.org/id/unitary-authority/wiltshire,18/10/2022,1903461723,597.45,Ashton Keynes Playgroup 249 ,110188,SN6 ,Children & Education,Free Entitlement 2 Y,Childcare Free Entitlement Early Years,Supplies and Services,REVENUE
Wiltshire,http://opendatacommunities.org/id/unitary-authority/wiltshire,18/10/2022,5107468236,8500,Ashton Mill Services Limited ,144812,SN12,Health & Wellbeing,Environmental Protec,Cleaning,Premises Related,REVENUE
Wiltshire,http://opendatacommunities.org/id/unitary-authority/wiltshire,03/10/2022,1903440736,442.97,Askews & Holts Library Services Ltd ,101034,PR1 ,Community Services,Archives & Local Stu,Books & Publications,Supplies and Services,REVENUE
Wiltshire,http://opendatacommunities.org/id/unitary-authority/wiltshire,03/10/2022,1903440736,7034.63,Askews & Holts Library Services Ltd ,101034,PR1 ,Community Services,Libraries,Books & Publications,Supplies and Services,REVENUE
Wiltshire,http://opendatacommunities.org/id/unitary-authority/wiltshire,11/10/2022,1903455189,11128.29,Askews & Holts Library Services Ltd ,101034,PR1 ,Community Services,Libraries,Books & Publications,Supplies and Services,REVENUE
Wiltshire,http://opendatacommunities.org/id/unitary-authority/wiltshire,27/10/2022,1903464424,4488.98,Askews & Holts Library Services Ltd ,101034,PR1 ,Community Services,Libraries,Books & Publications,Supplies and Services,REVENUE
Wiltshire,http://opendatacommunities.org/id/unitary-authority/wiltshire,27/10/2022,1903466953,4510.01,Askews & Holts Library Services Ltd ,101034,PR1 ,Community Services,Libraries,Books & Publications,Supplies and Services,REVENUE
Wiltshire,http://opendatacommunities.org/id/unitary-authority/wiltshire,28/10/2022,5107468958,270,Asphalt Recycling UK Ltd ,149290,SN26,Neighbourhood & Planning,Off Street Parking,Property Maintenance,Premises Related,REVENUE
Wiltshire,http://opendatacommunities.org/id/unitary-authority/wiltshire,28/10/2022,5107468959,14782,Asphalt Recycling UK Ltd ,149290,SN26,Neighbourhood & Planning,Off Street Parking,Property Maintenance,Premises Related,REVENUE
Wiltshire,http://opendatacommunities.org/id/unitary-authority/wiltshire,31/10/2022,5107468970,1090,Asphalt Recycling UK Ltd ,149290,SN26,Neighbourhood & Planning,Off Street Parking,Property Maintenance,Premises Related,REVENUE
Wiltshire,http://opendatacommunities.org/id/unitary-authority/wiltshire,12/10/2022,1903460597,1867.6,Aspire Taxis ,101274,SP2 ,Neighbourhood & Planning,SEN Secondary Tspt,Transport Contracts,Third Party Payments,REVENUE
Wiltshire,http://opendatacommunities.org/id/unitary-authority/wiltshire,12/10/2022,1903460598,1207.94,Aspire Taxis ,101274,SP2 ,Neighbourhood & Planning,SEN Primary Transprt,Transport Contracts,Third Party Payments,REVENUE
Wiltshire,http://opendatacommunities.org/id/unitary-authority/wiltshire,12/10/2022,1903460598,2415.86,Aspire Taxis ,101274,SP2 ,Neighbourhood & Planning,SEN Secondary Tspt,Transport Contracts,Third Party Payments,REVENUE
Wiltshire,http://opendatacommunities.org/id/unitary-authority/wiltshire,12/10/2022,1903460599,726.32,Aspire Taxis ,101274,SP2 ,Neighbourhood & Planning,Mainstream Primary,Transport Contracts,Third Party Payments,REVENUE
Wiltshire,http://opendatacommunities.org/id/unitary-authority/wiltshire,12/10/2022,1903460600,4800,Aspire Taxis ,101274,SP2 ,Neighbourhood & Planning,SEN Secondary Tspt,Transport Contracts,Third Party Payments,REVENUE
Wiltshire,http://opendatacommunities.org/id/unitary-authority/wiltshire,12/10/2022,1903460602,378.91,Aspire Taxis ,101274,SP2 ,Neighbourhood & Planning,Mainstream Primary,Transport Contracts,Third Party Payments,REVENUE
Wiltshire,http://opendatacommunities.org/id/unitary-authority/wiltshire,12/10/2022,1903460602,378.91,Aspire Taxis ,101274,SP2 ,Neighbourhood & Planning,SEN Primary Transprt,Transport Contracts,Third Party Payments,REVENUE
Wiltshire,http://opendatacommunities.org/id/unitary-authority/wiltshire,12/10/2022,1903460603,2905,Aspire Taxis ,101274,SP2 ,Neighbourhood & Planning,SEN Secondary Tspt,Transport Contracts,Third Party Payments,REVENUE
Wiltshire,http://opendatacommunities.org/id/unitary-authority/wiltshire,12/10/2022,1903460605,1530,Aspire Taxis ,101274,SP2 ,Neighbourhood & Planning,SEN 16+ Transport,Transport Contracts,Third Party Payments,REVENUE
Wiltshire,http://opendatacommunities.org/id/unitary-authority/wiltshire,12/10/2022,1903460606,518.8,Aspire Taxis ,101274,SP2 ,Neighbourhood & Planning,Mainstream Secondary,Transport Contracts,Third Party Payments,REVENUE
Wiltshire,http://opendatacommunities.org/id/unitary-authority/wiltshire,12/10/2022,1903460607,915.12,Aspire Taxis ,101274,SP2 ,Neighbourhood & Planning,Mainstream Secondary,Transport Contracts,Third Party Payments,REVENUE
Wiltshire,http://opendatacommunities.org/id/unitary-authority/wiltshire,12/10/2022,1903460607,1372.62,Aspire Taxis ,101274,SP2 ,Neighbourhood & Planning,Mainstream Primary,Transport Contracts,Third Party Payments,REVENUE
Wiltshire,http://opendatacommunities.org/id/unitary-authority/wiltshire,13/10/2022,1903461378,456.6,Aspire Taxis ,101274,SP2 ,Community Services,LDAS South,Transport Contracts,Third Party Payments,REVENUE
Wiltshire,http://opendatacommunities.org/id/unitary-authority/wiltshire,13/10/2022,1903461379,3278.8,Aspire Taxis ,101274,SP2 ,Neighbourhood & Planning,SEN Secondary Tspt,Transport Contracts,Third Party Payments,REVENUE
Wiltshire,http://opendatacommunities.org/id/unitary-authority/wiltshire,20/10/2022,1903469577,2514.6,Aspire Taxis ,101274,SP2 ,Neighbourhood & Planning,SEN Primary Transprt,Transport Contracts,Third Party Payments,REVENUE
Wiltshire,http://opendatacommunities.org/id/unitary-authority/wiltshire,20/10/2022,1903469577,2514.6,Aspire Taxis ,101274,SP2 ,Neighbourhood & Planning,SEN Secondary Tspt,Transport Contracts,Third Party Payments,REVENUE
Wiltshire,http://opendatacommunities.org/id/unitary-authority/wiltshire,20/10/2022,1903469578,2135.4,Aspire Taxis ,101274,SP2 ,Neighbourhood & Planning,SEN Secondary Tspt,Transport Contracts,Third Party Payments,REVENUE
Wiltshire,http://opendatacommunities.org/id/unitary-authority/wiltshire,20/10/2022,1903469578,2907.2,Aspire Taxis ,101274,SP2 ,Neighbourhood & Planning,SEN Primary Transprt,Transport Contracts,Third Party Payments,REVENUE
Wiltshire,http://opendatacommunities.org/id/unitary-authority/wiltshire,20/10/2022,1903469589,1100,Aspire Taxis ,101274,SP2 ,Neighbourhood & Planning,SEN Secondary Tspt,Transport Contracts,Third Party Payments,REVENUE
Wiltshire,http://opendatacommunities.org/id/unitary-authority/wiltshire,20/10/2022,1903469590,270,Aspire Taxis ,101274,SP2 ,Community Services,LDAS South,Transport Contracts,Third Party Payments,REVENUE
Wiltshire,http://opendatacommunities.org/id/unitary-authority/wiltshire,20/10/2022,1903469590,360,Aspire Taxis ,101274,SP2 ,Neighbourhood & Planning,SEN Secondary Tspt,Transport Contracts,Third Party Payments,REVENUE
Wiltshire,http://opendatacommunities.org/id/unitary-authority/wiltshire,20/10/2022,1903469590,840,Aspire Taxis ,101274,SP2 ,Neighbourhood & Planning,SEN 16+ Transport,Transport Contracts,Third Party Payments,REVENUE
Wiltshire,http://opendatacommunities.org/id/unitary-authority/wiltshire,20/10/2022,1903469591,2054.34,Aspire Taxis ,101274,SP2 ,Neighbourhood & Planning,SEN Secondary Tspt,Transport Contracts,Third Party Payments,REVENUE
Wiltshire,http://opendatacommunities.org/id/unitary-authority/wiltshire,20/10/2022,1903469592,470.34,Aspire Taxis ,101274,SP2 ,Neighbourhood & Planning,SEN Primary Transprt,Transport Contracts,Third Party Payments,REVENUE
Wiltshire,http://opendatacommunities.org/id/unitary-authority/wiltshire,20/10/2022,1903469592,940.66,Aspire Taxis ,101274,SP2 ,Neighbourhood & Planning,SEN Secondary Tspt,Transport Contracts,Third Party Payments,REVENUE
Wiltshire,http://opendatacommunities.org/id/unitary-authority/wiltshire,20/10/2022,1903469593,4461.2,Aspire Taxis ,101274,SP2 ,Neighbourhood & Planning,SEN Primary Transprt,Transport Contracts,Third Party Payments,REVENUE
Wiltshire,http://opendatacommunities.org/id/unitary-authority/wiltshire,20/10/2022,1903469594,1587.42,Aspire Taxis ,101274,SP2 ,Neighbourhood & Planning,SEN Primary Transprt,Transport Contracts,Third Party Payments,REVENUE
Wiltshire,http://opendatacommunities.org/id/unitary-authority/wiltshire,20/10/2022,1903469595,2069.86,Aspire Taxis ,101274,SP2 ,Neighbourhood & Planning,SEN Primary Transprt,Transport Contracts,Third Party Payments,REVENUE
Wiltshire,http://opendatacommunities.org/id/unitary-authority/wiltshire,20/10/2022,1903469596,449.6,Aspire Taxis ,101274,SP2 ,Neighbourhood & Planning,Mainstream Primary,Transport Contracts,Third Party Payments,REVENUE
Wiltshire,http://opendatacommunities.org/id/unitary-authority/wiltshire,20/10/2022,1903469596,899.2,Aspire Taxis ,101274,SP2 ,Neighbourhood & Planning,SEN Primary Transprt,Transport Contracts,Third Party Payments,REVENUE
Wiltshire,http://opendatacommunities.org/id/unitary-authority/wiltshire,20/10/2022,1903469597,2500,Aspire Taxis ,101274,SP2 ,Neighbourhood & Planning,SEN Secondary Tspt,Transport Contracts,Third Party Payments,REVENUE
Wiltshire,http://opendatacommunities.org/id/unitary-authority/wiltshire,20/10/2022,1903469598,1300,Aspire Taxis ,101274,SP2 ,Neighbourhood & Planning,Mainstream Primary,Transport Contracts,Third Party Payments,REVENUE
Wiltshire,http://opendatacommunities.org/id/unitary-authority/wiltshire,20/10/2022,1903469599,273.88,Aspire Taxis ,101274,SP2 ,Neighbourhood & Planning,SEN Secondary Tspt,Transport Contracts,Third Party Payments,REVENUE
Wiltshire,http://opendatacommunities.org/id/unitary-authority/wiltshire,20/10/2022,1903469599,2054.12,Aspire Taxis ,101274,SP2 ,Neighbourhood & Planning,Mainstream Secondary,Transport Contracts,Third Party Payments,REVENUE
Wiltshire,http://opendatacommunities.org/id/unitary-authority/wiltshire,20/10/2022,1903469600,3100,Aspire Taxis ,101274,SP2 ,Neighbourhood & Planning,SEN Secondary Tspt,Transport Contracts,Third Party Payments,REVENUE
Wiltshire,http://opendatacommunities.org/id/unitary-authority/wiltshire,20/10/2022,1903469601,300,Aspire Taxis ,101274,SP2 ,Neighbourhood & Planning,Mainstream Secondary,Transport Contracts,Third Party Payments,REVENUE
Wiltshire,http://opendatacommunities.org/id/unitary-authority/wiltshire,20/10/2022,1903469601,300,Aspire Taxis ,101274,SP2 ,Neighbourhood & Planning,Mainstream 16+ Sec,Transport Contracts,Third Party Payments,REVENUE
Wiltshire,http://opendatacommunities.org/id/unitary-authority/wiltshire,20/10/2022,1903469602,740,Aspire Taxis ,101274,SP2 ,Neighbourhood & Planning,SEN Secondary Tspt,Transport Contracts,Third Party Payments,REVENUE
Wiltshire,http://opendatacommunities.org/id/unitary-authority/wiltshire,20/10/2022,1903469604,405,Aspire Taxis ,101274,SP2 ,Neighbourhood & Planning,SEN Secondary Tspt,Transport Contracts,Third Party Payments,REVENUE
Wiltshire,http://opendatacommunities.org/id/unitary-authority/wiltshire,28/10/2022,1903476890,570,Assoc Of Electoral Administrators ,113675,SR2 ,Resources,RegistrationofElectr,Professional Subscriptions/Memberships,Employee Related,REVENUE
Wiltshire,http://opendatacommunities.org/id/unitary-authority/wiltshire,10/10/2022,5107466006,447,Associated Optical ,155663,SL1 ,Community Services,Hearing & Vision,Client Aids and Adaptations,Third Party Payments,REVENUE
Wiltshire,http://opendatacommunities.org/id/unitary-authority/wiltshire,10/10/2022,1903366998,1948.32,Assured Healthcare Solutions Ltd ,149399,CV23,Community Services,MH AOWA N&E Locality,Adult Care Nursing Placements - Spot,Third Party Payments,REVENUE
Wiltshire,http://opendatacommunities.org/id/unitary-authority/wiltshire,10/10/2022,1903366999,572.02,Assured Healthcare Solutions Ltd ,149399,CV23,Community Services,MH AOWA N&E Locality,Adult Nursing Place- Spot Purchase Contr,Income,REVENUE
Wiltshire,http://opendatacommunities.org/id/unitary-authority/wiltshire,19/10/2022,1903464421,450,Aster ,135687,SN10,Neighbourhood & Planning,Housing Solutions,Grants Expenditure,Supplies and Services,REVENUE
Wiltshire,http://opendatacommunities.org/id/unitary-authority/wiltshire,06/10/2022,5107467489,490,Astill Tree Care Limited ,146406,BA9 ,Neighbourhood & Planning,Asset Management,Professional Fees,Supplies and Services,REVENUE
Wiltshire,http://opendatacommunities.org/id/unitary-authority/wiltshire,07/10/2022,5107467567,490,Astill Tree Care Limited ,146406,BA9 ,Wiltshire Council,Wiltshire Council,Professional Fees,Supplies and Services,CAPITAL
Wiltshire,http://opendatacommunities.org/id/unitary-authority/wiltshire,18/10/2022,1903462060,10355.14,Atelier Nursery Ltd ,145940,SN15,Children & Education,Free Enttlmnt 3 & 4y,Childcare Free Entitlement Early Years,Supplies and Services,REVENUE
Wiltshire,http://opendatacommunities.org/id/unitary-authority/wiltshire,18/10/2022,1903462160,298.72,Atelier Nursery Ltd ,145940,SN15,Children & Education,Free Entitlement 2 Y,Childcare Free Entitlement Early Years,Supplies and Services,REVENUE
Wiltshire,http://opendatacommunities.org/id/unitary-authority/wiltshire,21/10/2022,1903470755,363.7,Atkins Ltd ,110197,KT18,Wiltshire Council,Wiltshire Council,Highways Contracts,Third Party Payments,CAPITAL
Wiltshire,http://opendatacommunities.org/id/unitary-authority/wiltshire,21/10/2022,1903470755,592.7,Atkins Ltd ,110197,KT18,Wiltshire Council,Wiltshire Council,Highways Contracts,Third Party Payments,CAPITAL
Wiltshire,http://opendatacommunities.org/id/unitary-authority/wiltshire,21/10/2022,1903470755,949.12,Atkins Ltd ,110197,KT18,Wiltshire Council,Wiltshire Council,Highways Contracts,Third Party Payments,CAPITAL
Wiltshire,http://opendatacommunities.org/id/unitary-authority/wiltshire,21/10/2022,1903470755,1000,Atkins Ltd ,110197,KT18,Wiltshire Council,Wiltshire Council,Highways Contracts,Third Party Payments,CAPITAL
Wiltshire,http://opendatacommunities.org/id/unitary-authority/wiltshire,21/10/2022,1903470755,1000,Atkins Ltd ,110197,KT18,Wiltshire Council,Wiltshire Council,Highways Contracts,Third Party Payments,CAPITAL
Wiltshire,http://opendatacommunities.org/id/unitary-authority/wiltshire,21/10/2022,1903470755,1447.64,Atkins Ltd ,110197,KT18,Wiltshire Council,Wiltshire Council,Highways Contracts,Third Party Payments,CAPITAL
Wiltshire,http://opendatacommunities.org/id/unitary-authority/wiltshire,21/10/2022,1903470755,1500,Atkins Ltd ,110197,KT18,Wiltshire Council,Wiltshire Council,Highways Contracts,Third Party Payments,CAPITAL
Wiltshire,http://opendatacommunities.org/id/unitary-authority/wiltshire,21/10/2022,1903470755,1571.21,Atkins Ltd ,110197,KT18,Wiltshire Council,Wiltshire Council,Highways Contracts,Third Party Payments,CAPITAL
Wiltshire,http://opendatacommunities.org/id/unitary-authority/wiltshire,21/10/2022,1903470755,2052.91,Atkins Ltd ,110197,KT18,Wiltshire Council,Wiltshire Council,Highways Contracts,Third Party Payments,CAPITAL
Wiltshire,http://opendatacommunities.org/id/unitary-authority/wiltshire,21/10/2022,1903470755,2157.86,Atkins Ltd ,110197,KT18,Wiltshire Council,Wiltshire Council,Highways Contracts,Third Party Payments,CAPITAL
Wiltshire,http://opendatacommunities.org/id/unitary-authority/wiltshire,21/10/2022,1903470755,2280.43,Atkins Ltd ,110197,KT18,Wiltshire Council,Wiltshire Council,Highways Contracts,Third Party Payments,CAPITAL
Wiltshire,http://opendatacommunities.org/id/unitary-authority/wiltshire,21/10/2022,1903470755,2900.91,Atkins Ltd ,110197,KT18,Wiltshire Council,Wiltshire Council,Highways Contracts,Third Party Payments,CAPITAL
Wiltshire,http://opendatacommunities.org/id/unitary-authority/wiltshire,21/10/2022,1903470755,3000,Atkins Ltd ,110197,KT18,Wiltshire Council,Wiltshire Council,Highways Contracts,Third Party Payments,CAPITAL
Wiltshire,http://opendatacommunities.org/id/unitary-authority/wiltshire,21/10/2022,1903470755,3851.2,Atkins Ltd ,110197,KT18,Wiltshire Council,Wiltshire Council,Highways Contracts,Third Party Payments,CAPITAL
Wiltshire,http://opendatacommunities.org/id/unitary-authority/wiltshire,21/10/2022,1903470755,4122.38,Atkins Ltd ,110197,KT18,Wiltshire Council,Wiltshire Council,Highways Contracts,Third Party Payments,CAPITAL
Wiltshire,http://opendatacommunities.org/id/unitary-authority/wiltshire,21/10/2022,1903470755,4886.56,Atkins Ltd ,110197,KT18,Wiltshire Council,Wiltshire Council,Highways Contracts,Third Party Payments,CAPITAL
Wiltshire,http://opendatacommunities.org/id/unitary-authority/wiltshire,21/10/2022,1903470755,6276.23,Atkins Ltd ,110197,KT18,Wiltshire Council,Wiltshire Council,Highways Contracts,Third Party Payments,CAPITAL
Wiltshire,http://opendatacommunities.org/id/unitary-authority/wiltshire,21/10/2022,1903470755,6924.22,Atkins Ltd ,110197,KT18,Wiltshire Council,Wiltshire Council,Highways Contracts,Third Party Payments,CAPITAL
Wiltshire,http://opendatacommunities.org/id/unitary-authority/wiltshire,21/10/2022,1903470755,8033.78,Atkins Ltd ,110197,KT18,Neighbourhood & Planning,Highw Hedges & Trees,Highways Contracts,Third Party Payments,REVENUE
Wiltshire,http://opendatacommunities.org/id/unitary-authority/wiltshire,21/10/2022,1903470755,8185.49,Atkins Ltd ,110197,KT18,Wiltshire Council,Wiltshire Council,Highways Contracts,Third Party Payments,CAPITAL
Wiltshire,http://opendatacommunities.org/id/unitary-authority/wiltshire,21/10/2022,1903470755,8878.44,Atkins Ltd ,110197,KT18,Wiltshire Council,Wiltshire Council,Highways Contracts,Third Party Payments,CAPITAL
Wiltshire,http://opendatacommunities.org/id/unitary-authority/wiltshire,21/10/2022,1903470755,10945,Atkins Ltd ,110197,KT18,Neighbourhood & Planning,Permitting,Highways Contracts,Third Party Payments,REVENUE
Wiltshire,http://opendatacommunities.org/id/unitary-authority/wiltshire,21/10/2022,1903470755,12873.21,Atkins Ltd ,110197,KT18,Neighbourhood & Planning,Depot Strategy,Highways Contracts,Third Party Payments,REVENUE
Wiltshire,http://opendatacommunities.org/id/unitary-authority/wiltshire,21/10/2022,1903470755,13230,Atkins Ltd ,110197,KT18,Wiltshire Council,Wiltshire Council,Highways Contracts,Third Party Payments,CAPITAL
Wiltshire,http://opendatacommunities.org/id/unitary-authority/wiltshire,21/10/2022,1903470755,14034.61,Atkins Ltd ,110197,KT18,Wiltshire Council,Wiltshire Council,Highways Contracts,Third Party Payments,CAPITAL
Wiltshire,http://opendatacommunities.org/id/unitary-authority/wiltshire,21/10/2022,1903470755,14752.71,Atkins Ltd ,110197,KT18,Wiltshire Council,Wiltshire Council,Highways Contracts,Third Party Payments,CAPITAL
Wiltshire,http://opendatacommunities.org/id/unitary-authority/wiltshire,21/10/2022,1903470755,20837.4,Atkins Ltd ,110197,KT18,Neighbourhood & Planning,Traffic Signal Mtc,Highways Contracts,Third Party Payments,REVENUE
Wiltshire,http://opendatacommunities.org/id/unitary-authority/wiltshire,21/10/2022,1903470755,21345.14,Atkins Ltd ,110197,KT18,Wiltshire Council,Wiltshire Council,Highways Contracts,Third Party Payments,CAPITAL
Wiltshire,http://opendatacommunities.org/id/unitary-authority/wiltshire,21/10/2022,1903470755,21630.43,Atkins Ltd ,110197,KT18,Neighbourhood & Planning,Street Lighting,Highways Contracts,Third Party Payments,REVENUE
Wiltshire,http://opendatacommunities.org/id/unitary-authority/wiltshire,21/10/2022,1903470755,35814.84,Atkins Ltd ,110197,KT18,Wiltshire Council,Wiltshire Council,Highways Contracts,Third Party Payments,CAPITAL
Wiltshire,http://opendatacommunities.org/id/unitary-authority/wiltshire,21/10/2022,1903470755,35886.54,Atkins Ltd ,110197,KT18,Wiltshire Council,Wiltshire Council,Highways Contracts,Third Party Payments,CAPITAL
Wiltshire,http://opendatacommunities.org/id/unitary-authority/wiltshire,21/10/2022,1903470755,48324.01,Atkins Ltd ,110197,KT18,Wiltshire Council,Wiltshire Council,Highways Contracts,Third Party Payments,CAPITAL
Wiltshire,http://opendatacommunities.org/id/unitary-authority/wiltshire,21/10/2022,1903470755,58537.17,Atkins Ltd ,110197,KT18,Neighbourhood & Planning,Transport Plan & DC,Highways Contracts,Third Party Payments,REVENUE
Wiltshire,http://opendatacommunities.org/id/unitary-authority/wiltshire,21/10/2022,1903470755,78957,Atkins Ltd ,110197,KT18,Neighbourhood & Planning,Capability Fund,Highways Contracts,Third Party Payments,REVENUE
Wiltshire,http://opendatacommunities.org/id/unitary-authority/wiltshire,21/10/2022,1903470755,145125.27,Atkins Ltd ,110197,KT18,Wiltshire Council,Wiltshire Council,Highways Contracts,Third Party Payments,CAPITAL
Wiltshire,http://opendatacommunities.org/id/unitary-authority/wiltshire,21/10/2022,1903470755,229057.17,Atkins Ltd ,110197,KT18,Wiltshire Council,Wiltshire Council,Highways Contracts,Third Party Payments,CAPITAL
Wiltshire,http://opendatacommunities.org/id/unitary-authority/wiltshire,11/10/2022,5107467734,5400,Atlantic Data Ltd ,132987,MK5 ,Resources,HR Recruitment & DBS,Disclosure and Barring Service Checks,Employee Related,REVENUE
Wiltshire,http://opendatacommunities.org/id/unitary-authority/wiltshire,05/10/2022,1903456986,735.44,Audley Care White Horse ,121958,SN8 ,Community Services,North Care Packages,Adult Domiciliary Care Contribution,Income,REVENUE
Wiltshire,http://opendatacommunities.org/id/unitary-authority/wiltshire,05/10/2022,1903456987,2136.44,Audley Care White Horse ,121958,SN8 ,Community Services,North Care Packages,Adult Domiciliary Care Contribution,Income,REVENUE
Wiltshire,http://opendatacommunities.org/id/unitary-authority/wiltshire,05/10/2022,1903456988,1681.16,Audley Care White Horse ,121958,SN8 ,Community Services,West Care Packages,Adult Domiciliary Care Contribution,Income,REVENUE
Wiltshire,http://opendatacommunities.org/id/unitary-authority/wiltshire,05/10/2022,1903456989,743.61,Audley Care White Horse ,121958,SN8 ,Community Services,North Care Packages,Adult Domiciliary Care Contribution,Income,REVENUE
Wiltshire,http://opendatacommunities.org/id/unitary-authority/wiltshire,05/10/2022,1903456990,3467.4,Audley Care White Horse ,121958,SN8 ,Community Services,North Care Packages,Adult Domiciliary Care Contribution,Income,REVENUE
Wiltshire,http://opendatacommunities.org/id/unitary-authority/wiltshire,05/10/2022,1903456991,945.04,Audley Care White Horse ,121958,SN8 ,Community Services,North Care Packages,Adult Domiciliary Care Contribution,Income,REVENUE
Wiltshire,http://opendatacommunities.org/id/unitary-authority/wiltshire,05/10/2022,1903458065,515.49,Audley Care White Horse ,121958,SN8 ,Community Services,North Care Packages,Adult Domiciliary Care Contribution,Income,REVENUE
Wiltshire,http://opendatacommunities.org/id/unitary-authority/wiltshire,05/10/2022,1903458067,772.28,Audley Care White Horse ,121958,SN8 ,Community Services,North Care Packages,Adult Domiciliary Care Contribution,Income,REVENUE
Wiltshire,http://opendatacommunities.org/id/unitary-authority/wiltshire,05/10/2022,1903458068,1461.24,Audley Care White Horse ,121958,SN8 ,Community Services,MH OP N&E Locality,Adult Domiciliary Care,Third Party Payments,REVENUE
Wiltshire,http://opendatacommunities.org/id/unitary-authority/wiltshire,05/10/2022,1903458069,354.56,Audley Care White Horse ,121958,SN8 ,Community Services,North Care Packages,Adult Domiciliary Care,Third Party Payments,REVENUE
Wiltshire,http://opendatacommunities.org/id/unitary-authority/wiltshire,05/10/2022,1903458070,2314.56,Audley Care White Horse ,121958,SN8 ,Community Services,North Care Packages,Adult Domiciliary Care,Third Party Payments,REVENUE
Wiltshire,http://opendatacommunities.org/id/unitary-authority/wiltshire,05/10/2022,1903458072,434.56,Audley Care White Horse ,121958,SN8 ,Community Services,North Care Packages,Adult Domiciliary Care,Third Party Payments,REVENUE
Wiltshire,http://opendatacommunities.org/id/unitary-authority/wiltshire,05/10/2022,1903458073,767.38,Audley Care White Horse ,121958,SN8 ,Community Services,North Care Packages,Adult Domiciliary Care Contribution,Income,REVENUE
Wiltshire,http://opendatacommunities.org/id/unitary-authority/wiltshire,05/10/2022,1903458074,3439.16,Audley Care White Horse ,121958,SN8 ,Community Services,North Care Packages,Adult Domiciliary Care Contribution,Income,REVENUE
Wiltshire,http://opendatacommunities.org/id/unitary-authority/wiltshire,05/10/2022,1903458075,575.2,Audley Care White Horse ,121958,SN8 ,Community Services,South Care Packages,Adult Domiciliary Care Contribution,Income,REVENUE
Wiltshire,http://opendatacommunities.org/id/unitary-authority/wiltshire,06/10/2022,1903458649,1055.04,Audley Care White Horse ,121958,SN8 ,Community Services,North Care Packages,Adult Domiciliary Care,Third Party Payments,REVENUE
Wiltshire,http://opendatacommunities.org/id/unitary-authority/wiltshire,06/10/2022,1903458650,1803.48,Audley Care White Horse ,121958,SN8 ,Community Services,North Care Packages,Adult Domiciliary Care,Third Party Payments,REVENUE
Wiltshire,http://opendatacommunities.org/id/unitary-authority/wiltshire,06/10/2022,1903458651,279.36,Audley Care White Horse ,121958,SN8 ,Community Services,Rapid Response,Adult Domiciliary Care,Third Party Payments,REVENUE
Wiltshire,http://opendatacommunities.org/id/unitary-authority/wiltshire,06/10/2022,1903458652,354.56,Audley Care White Horse ,121958,SN8 ,Community Services,North Care Packages,Adult Domiciliary Care,Third Party Payments,REVENUE
Wiltshire,http://opendatacommunities.org/id/unitary-authority/wiltshire,06/10/2022,1903458653,279.36,Audley Care White Horse ,121958,SN8 ,Community Services,North Care Packages,Adult Domiciliary Care,Third Party Payments,REVENUE
Wiltshire,http://opendatacommunities.org/id/unitary-authority/wiltshire,06/10/2022,1903458654,569.2,Audley Care White Horse ,121958,SN8 ,Community Services,West Care Packages,Adult Domiciliary Care Contribution,Income,REVENUE
Wiltshire,http://opendatacommunities.org/id/unitary-authority/wiltshire,06/10/2022,1903458655,403.08,Audley Care White Horse ,121958,SN8 ,Community Services,West Care Packages,Adult Domiciliary Care,Third Party Payments,REVENUE
Wiltshire,http://opendatacommunities.org/id/unitary-authority/wiltshire,06/10/2022,1903458656,293.16,Audley Care White Horse ,121958,SN8 ,Community Services,West Care Packages,Adult Domiciliary Care Contribution,Income,REVENUE
Wiltshire,http://opendatacommunities.org/id/unitary-authority/wiltshire,06/10/2022,1903458657,758.6,Audley Care White Horse ,121958,SN8 ,Community Services,West Care Packages,Adult Domiciliary Care Contribution,Income,REVENUE
Wiltshire,http://opendatacommunities.org/id/unitary-authority/wiltshire,06/10/2022,1903458658,1815.6,Audley Care White Horse ,121958,SN8 ,Community Services,West Care Packages,Adult Domiciliary Care,Third Party Payments,REVENUE
Wiltshire,http://opendatacommunities.org/id/unitary-authority/wiltshire,06/10/2022,1903458659,1466.04,Audley Care White Horse ,121958,SN8 ,Community Services,West Care Packages,Adult Domiciliary Care Contribution,Income,REVENUE
Wiltshire,http://opendatacommunities.org/id/unitary-authority/wiltshire,06/10/2022,1903458660,795.6,Audley Care White Horse ,121958,SN8 ,Community Services,West Care Packages,Adult Domiciliary Care,Third Party Payments,REVENUE
Wiltshire,http://opendatacommunities.org/id/unitary-authority/wiltshire,06/10/2022,1903458661,591.16,Audley Care White Horse ,121958,SN8 ,Community Services,LDAS West,Adult Domiciliary Care Contribution,Income,REVENUE
Wiltshire,http://opendatacommunities.org/id/unitary-authority/wiltshire,06/10/2022,1903458663,933.3,Audley Care White Horse ,121958,SN8 ,Community Services,West Care Packages,Adult Domiciliary Care,Third Party Payments,REVENUE
Wiltshire,http://opendatacommunities.org/id/unitary-authority/wiltshire,25/10/2022,1903473459,909.67,Audley Care White Horse ,121958,SN8 ,Community Services,Non CHC complex Hlth,Adult Domiciliary Care Contribution,Income,REVENUE
Wiltshire,http://opendatacommunities.org/id/unitary-authority/wiltshire,25/10/2022,1903473460,2593.9,Audley Care White Horse ,121958,SN8 ,Community Services,Non CHC complex Hlth,Adult Domiciliary Care Contribution,Income,REVENUE
Wiltshire,http://opendatacommunities.org/id/unitary-authority/wiltshire,26/10/2022,1903472409,2578.57,Aura Care Living Cirencester Ltd ,149994,.,Community Services,North Care Packages,Adult Care Nursing Placements - Spot,Third Party Payments,REVENUE
Wiltshire,http://opendatacommunities.org/id/unitary-authority/wiltshire,26/10/2022,1903472410,2714.29,Aura Care Living Cirencester Ltd ,149994,.,Community Services,North Care Packages,Adult Care Nursing Placements - Spot,Third Party Payments,REVENUE
Wiltshire,http://opendatacommunities.org/id/unitary-authority/wiltshire,26/10/2022,1903472411,3800,Aura Care Living Cirencester Ltd ,149994,.,Community Services,Adult Care Gross Loa,Adult Care Nursing Placements - Spot,Third Party Payments,REVENUE
Wiltshire,http://opendatacommunities.org/id/unitary-authority/wiltshire,26/10/2022,1903472412,3800,Aura Care Living Cirencester Ltd ,149994,.,Community Services,Adult Care Gross Loa,Adult Care Nursing Placements - Spot,Third Party Payments,REVENUE
Wiltshire,http://opendatacommunities.org/id/unitary-authority/wiltshire,26/10/2022,1903472415,3800,Aura Care Living Cirencester Ltd ,149994,.,Community Services,Adult Care Gross Loa,Adult Care Nursing Placements - Spot,Third Party Payments,REVENUE
Wiltshire,http://opendatacommunities.org/id/unitary-authority/wiltshire,26/10/2022,1903472417,3392.86,Aura Care Living Cirencester Ltd ,149994,.,Community Services,North Care Packages,Adult Care Nursing Placements - Spot,Third Party Payments,REVENUE
Wiltshire,http://opendatacommunities.org/id/unitary-authority/wiltshire,26/10/2022,1903472418,5000,Aura Care Living Cirencester Ltd ,149994,.,Community Services,North Care Packages,Adult Care Nursing Placements - Spot,Third Party Payments,REVENUE
Wiltshire,http://opendatacommunities.org/id/unitary-authority/wiltshire,26/10/2022,1903472419,5000,Aura Care Living Cirencester Ltd ,149994,.,Community Services,North Care Packages,Adult Care Nursing Placements - Spot,Third Party Payments,REVENUE
Wiltshire,http://opendatacommunities.org/id/unitary-authority/wiltshire,26/10/2022,1903472420,5000,Aura Care Living Cirencester Ltd ,149994,.,Community Services,North Care Packages,Adult Care Nursing Placements - Spot,Third Party Payments,REVENUE
Wiltshire,http://opendatacommunities.org/id/unitary-authority/wiltshire,26/10/2022,1903472421,4464.29,Aura Care Living Cirencester Ltd ,149994,.,Community Services,North Care Packages,Adult Care Nursing Placements - Spot,Third Party Payments,REVENUE
Wiltshire,http://opendatacommunities.org/id/unitary-authority/wiltshire,26/10/2022,1903472422,357.14,Aura Care Living Cirencester Ltd ,149994,.,Community Services,North Care Packages,Adult Care Nursing Placements - Spot,Third Party Payments,REVENUE
Wiltshire,http://opendatacommunities.org/id/unitary-authority/wiltshire,26/10/2022,1903472423,4642.86,Aura Care Living Cirencester Ltd ,149994,.,Resources,Covid19 - Hospital D,Adult Care Nursing Placements - Spot,Third Party Payments,REVENUE
Wiltshire,http://opendatacommunities.org/id/unitary-authority/wiltshire,26/10/2022,1903472424,5000,Aura Care Living Cirencester Ltd ,149994,.,Resources,Covid19 - Hospital D,Adult Care Nursing Placements - Spot,Third Party Payments,REVENUE
Wiltshire,http://opendatacommunities.org/id/unitary-authority/wiltshire,26/10/2022,1903472425,5000,Aura Care Living Cirencester Ltd ,149994,.,Resources,Covid19 - Hospital D,Adult Care Nursing Placements - Spot,Third Party Payments,REVENUE
Wiltshire,http://opendatacommunities.org/id/unitary-authority/wiltshire,26/10/2022,1903472426,1785.71,Aura Care Living Cirencester Ltd ,149994,.,Resources,Covid19 - Hospital D,Adult Care Nursing Placements - Spot,Third Party Payments,REVENUE
Wiltshire,http://opendatacommunities.org/id/unitary-authority/wiltshire,26/10/2022,1903472427,714.29,Aura Care Living Cirencester Ltd ,149994,.,Resources,Covid19 - Hospital D,Adult Care Nursing Placements - Spot,Third Party Payments,REVENUE
Wiltshire,http://opendatacommunities.org/id/unitary-authority/wiltshire,26/10/2022,1903472428,5000,Aura Care Living Cirencester Ltd ,149994,.,Resources,Covid19 - Hospital D,Adult Care Nursing Placements - Spot,Third Party Payments,REVENUE
Wiltshire,http://opendatacommunities.org/id/unitary-authority/wiltshire,26/10/2022,1903472429,5000,Aura Care Living Cirencester Ltd ,149994,.,Resources,Covid19 - Hospital D,Adult Care Nursing Placements - Spot,Third Party Payments,REVENUE
Wiltshire,http://opendatacommunities.org/id/unitary-authority/wiltshire,26/10/2022,1903472430,1607.14,Aura Care Living Cirencester Ltd ,149994,.,Resources,Covid19 - Hospital D,Adult Care Nursing Placements - Spot,Third Party Payments,REVENUE
Wiltshire,http://opendatacommunities.org/id/unitary-authority/wiltshire,26/10/2022,1903468194,6007.4,Autism Specialised care Homes ,110205,BS10,Community Services,LDAS North,Adult Residential Placements - Spot Purchase,Third Party Payments,REVENUE
Wiltshire,http://opendatacommunities.org/id/unitary-authority/wiltshire,26/10/2022,1903468195,7332.32,Autism West Midlands ,110206,WR9 ,Community Services,LDAS North,Adult Residential Placements - Spot Purchase,Third Party Payments,REVENUE
Wiltshire,http://opendatacommunities.org/id/unitary-authority/wiltshire,03/10/2022,1903456263,1456.84,Autonomy Care Limited ,126128,SN12,Community Services,West Care Packages,Adult Domiciliary Care,Third Party Payments,REVENUE
Wiltshire,http://opendatacommunities.org/id/unitary-authority/wiltshire,03/10/2022,1903456264,2471.38,Autonomy Care Limited ,126128,SN12,Community Services,West Care Packages,Adult Domiciliary Care,Third Party Payments,REVENUE
Wiltshire,http://opendatacommunities.org/id/unitary-authority/wiltshire,03/10/2022,1903456265,285.72,Autonomy Care Limited ,126128,SN12,Community Services,West Care Packages,Adult Domiciliary Care,Third Party Payments,REVENUE
Wiltshire,http://opendatacommunities.org/id/unitary-authority/wiltshire,03/10/2022,1903456266,735.83,Autonomy Care Limited ,126128,SN12,Community Services,Adult Care Gross Loa,Adult Domiciliary Care,Third Party Payments,REVENUE
Wiltshire,http://opendatacommunities.org/id/unitary-authority/wiltshire,03/10/2022,1903456267,8144.32,Autonomy Care Limited ,126128,SN12,Community Services,LDAS West,Supported Living,Third Party Payments,REVENUE
Wiltshire,http://opendatacommunities.org/id/unitary-authority/wiltshire,03/10/2022,1903456268,1831.58,Autonomy Care Limited ,126128,SN12,Community Services,LDAS North,Supported Living,Third Party Payments,REVENUE
Wiltshire,http://opendatacommunities.org/id/unitary-authority/wiltshire,03/10/2022,1903456269,1999.8,Autonomy Care Limited ,126128,SN12,Community Services,LDAS West,Supported Living,Third Party Payments,REVENUE
Wiltshire,http://opendatacommunities.org/id/unitary-authority/wiltshire,03/10/2022,1903456270,2268.46,Autonomy Care Limited ,126128,SN12,Community Services,LDAS West,Supported Living,Third Party Payments,REVENUE
Wiltshire,http://opendatacommunities.org/id/unitary-authority/wiltshire,03/10/2022,1903456271,447.18,Autonomy Care Limited ,126128,SN12,Community Services,LDAS North,Supported Living Contribution,Income,REVENUE
Wiltshire,http://opendatacommunities.org/id/unitary-authority/wiltshire,03/10/2022,1903456272,17257.3,Autonomy Care Limited ,126128,SN12,Community Services,LDAS West,Supported Living,Third Party Payments,REVENUE
Wiltshire,http://opendatacommunities.org/id/unitary-authority/wiltshire,03/10/2022,1903456273,23869.23,Autonomy Care Limited ,126128,SN12,Community Services,LDAS North,Supported Living Contribution,Income,REVENUE
Wiltshire,http://opendatacommunities.org/id/unitary-authority/wiltshire,03/10/2022,1903456274,18587.8,Autonomy Care Limited ,126128,SN12,Community Services,LDAS North,Supported Living Contribution,Income,REVENUE
Wiltshire,http://opendatacommunities.org/id/unitary-authority/wiltshire,03/10/2022,1903456275,1189.44,Autonomy Care Limited ,126128,SN12,Community Services,South Care Packages,Adult Domiciliary Care Contribution,Income,REVENUE
Wiltshire,http://opendatacommunities.org/id/unitary-authority/wiltshire,03/10/2022,1903456276,256.8,Autonomy Care Limited ,126128,SN12,Community Services,South Care Packages,Adult Domiciliary Care,Third Party Payments,REVENUE
Wiltshire,http://opendatacommunities.org/id/unitary-authority/wiltshire,03/10/2022,1903456277,292.56,Autonomy Care Limited ,126128,SN12,Community Services,South Care Packages,Adult Domiciliary Care,Third Party Payments,REVENUE
Wiltshire,http://opendatacommunities.org/id/unitary-authority/wiltshire,03/10/2022,1903456278,298.84,Autonomy Care Limited ,126128,SN12,Community Services,South Care Packages,Adult Domiciliary Care,Third Party Payments,REVENUE
Wiltshire,http://opendatacommunities.org/id/unitary-authority/wiltshire,03/10/2022,1903456279,375.04,Autonomy Care Limited ,126128,SN12,Community Services,MH OP South Locality,Adult Domiciliary Care Contribution,Income,REVENUE
